{"text_format":"1","workbook":"xlsx","n_sheets":8,"sheets":["Ker","Tomb","Haz","VIG","Resz","Ugyf","Da","Resz (2)"],"not_rendered":{"charts":0,"images":5,"macros":1,"external_links":0,"defined_names":6,"comments":4,"pivot_tables":0},"unopened":[],"bounds":{"document_bytes":16777216,"sheet_cells":100000,"rows_first":2000,"rows_last":500,"rows_between":2000,"halvings":0,"cell_chars":16384,"cell_head_chars":4096},"cells_cut":0,"cells_raw":0,"read":"whole","date_system":"1900"}

{"sheet":"Ker","index":0,"n_rows":159,"n_cols":11,"rows_kept":159,"cut":false,"hidden":false,"merged":[[151,8,151,9]]}
["Sor szám.","Neve","Neme","Címe","Cég név","Tel. Szám","Fax szám","Mobil szám","E-mail","Képviselő kódja","Fiók neve"]
[1,"Nagy Gabriella",2,null,"Prezervál Biztosítási Alkusz Kft ",null,"0613810204","06309342756","n.gabriella@prezerval.hu",20042008,2]
[2]
[3]
[4]
[5]
[6]
[7]
[8]
[9]
[10]
[11]
[12]
[13]
[14]
[15]
[16]
[17]
[18]
[19]
[20]
[21]
[22]
[23]
[24]
[25]
[26]
[27]
[28]
[29]
[30]
[31]
[32]
[33]
[34]
[35]
[36]
[37]
[38]
[39]
[40]
[41]
[42]
[43]
[44]
[45]
[46]
[47]
[48]
[49]
[50]
[51]
[52]
[53]
[54]
[55]
[56]
[57]
[58]
[59]
[60]
[61]
[62]
[63]
[64]
[65]
[66]
[67]
[68]
[69]
[70]
[71]
[72]
[73]
[74]
[75]
[76]
[77]
[78]
[79]
[80]
[81]
[82]
[83]
[84]
[85]
[86]
[87]
[88]
[89]
[90]
[91]
[92]
[93]
[94]
[95]
[96]
[97]
[98]
[99]
[100]
[101]
[102]
[103]
[104]
[105]
[106]
[107]
[108]
[109]
[110]
[111]
[112]
[113]
[114]
[115]
[116]
[117]
[118]
[119]
[120]
[121]
[122]
[123]
[124]
[125]
[126]
[127]
[128]
[129]
[130]
[131]
[132]
[133]
[134]
[135]
[136]
[137]
[138]
[139]
[140]
[141]
[142]
[143]
[144]
[145]
[146]
[147]
[148]
[149]
[150]
[null,"Fiók nevek megadása;",1,"Budapest Alkusz IV",null,"Területileg illetékes referens;","Kiss Zoltán","titulusa;","Mid-Office vagyon kockázatvállaló"]
[null,null,2,"Budapest Alkusz I"]
[null,null,3,"Élet-Alkusz Igazgatóság",null,"Baloldali aláíró választása;",1,"titulusa;",{"$f":"VLOOKUP(G154,Tomb!R36:T38,3,0)","v":"kockázatvállaló, termékfelelős"}]
[null,null,4,"Budapest Alkusz II"]
[null,null,5]
[null,null,6]
[null,null,7]
[null,null,8]

{"sheet":"Tomb","index":1,"n_rows":309,"n_cols":32,"rows_kept":309,"cut":false,"hidden":true,"merged":[[43,12,50,12],[232,27,250,27],[13,0,16,7],[8,0,12,7],[167,29,169,29],[167,27,169,27],[43,7,43,8],[1,27,162,27],[1,29,162,29],[19,12,26,12],[27,12,34,12],[35,12,42,12],[251,27,252,27],[253,27,266,27],[216,27,231,27],[177,29,198,29],[199,29,215,29],[177,27,198,27],[199,27,215,27]]}
[null,null,null,{"$f":"G65","v":2},1,2,3,4,null,"Épület kora",null,"‰",null,null,{"$f":"NOW()","v":"2014-09-28T14:55:02.800"},"2016-01-30",{"$f":"IF(P1<O1,1,0)","v":0},null,null,null,null,null,1,2,3,null,"Terület M",{"$f":"IF(ISERROR($AB$268),0,$AB$268)","v":1},"Terület K",{"$f":"IF(ISERROR($AD$217),0,$AD$217)","v":1},"Árvíz",{"$f":"IF(ISERROR($AF$309),0,$AF$309)","v":0}]
[{"$f":"IF(AND(C65=1,OR(G55=1,G55=3,G55=4)),1,IF(AND(C65=2,OR(G55=1,G55=3,G55=4)),2,IF(AND(C65=1,G55=2),3,IF(AND(C65=2,G55=2),4,IF(AND(G55=5,OR(C65=1,C65=3)),3,0)))))","v":1},"Típusa",null,"Kategória","I","II","III","IV",null,0,0,0.45,"0 év",null,null,null,null,null,null,null,"Felület",null,"Egy rtg.","Hőszig.","Fóliázás",null,1011,"Budapest",1011,"Budapest",3042,"Palotás                            "]
[1,"Hagyományos tech. lakóép.",null,"A",160000,190000,241000,260000,null,1,2,0.55000000000000004,"1-2 év",null,null,null,null,null,null,null,null,0,0,0,0,null,1012,null,1012,null,3381,"Pély                               "]
[2,"Modern tech. lakóép.",null,"B",170000,170000,221000,235000,null,3,25,0.65,"3-25 év",null,null,null,null,null,null,null,1,5,1600,3200,800,null,1013,null,1013,null,3382,"Tarnaszentmiklós                   "]
[3,"Hagyományos tech. nyaraló",null,"C",130000,165000,201000,215000,null,26,50,0.75,"26-50 év",null,null,null,null,null,null,null,6,10,3000,6000,1400,null,1014,null,1014,null,3384,"Kisköre"]
[4,"Modern tech. nyaraló",null,"D",160000,160000,201000,215000,null,51,100,0.9,"51-100 év",null,null,null,null,null,null,null,11,15,4300,9000,2000,null,1015,null,1015,null,3385,"Tiszanána                          "]
[5,"Melléképület",null,"F",100000,131000,145000,160000,null,101,null,1.25,"100 évnél idősebb",null,null,null,null,null,null,null,16,20,5500,11500,2600,null,1016,null,1016,null,3386,"Sarud                              "]
[null,null,null,null,null,null,null,null,null,null,null,null,null,null,null,null,null,null,null,null,21,25,6900,14100,3300,null,1021,null,1021,null,3418,"Szentistván                        "]
["A fenti táblázat adatait legfeljebb 10%-kal lehet csökkenteni, kivéve:                                               Budapest agglomerációja (Budakalász, Budaörs, Érd, Gyál, Leányfalu, Nagykovácsi, Pilisvörösvár, Pomáz, Solymár, Szentendre, Üllő, Vecsés)",null,null,null,null,null,null,null,null,"Z Többszöröz",null,"‰",null,"Kártérítési határ",null,"‰",null,null,null,null,26,30,8000,16500,3900,null,1022,null,1022,null,3443,"Mezőnagymihály                     "]
[null,null,null,null,null,null,null,null,null,0,1,0,null,"Extra fedezet",null,1,null,null,null,null,31,35,9200,19000,4500,null,1023,null,1023,null,3444,"Gelej                              "]
[null,null,null,null,null,null,null,null,null,1,2,0.15,null,"Üveg",null,null,null,null,null,null,36,40,10000,21200,5000,null,1024,null,1024,null,3450,"Mezőcsát                           "]
[null,null,null,null,null,null,null,null,null,2,3,0.3,null,null,null,null,null,null,null,null,41,45,11200,23500,5600,null,1025,null,1025,null,3458,"Tiszakeszi"]
[null,null,null,null,null,null,null,null,null,null,null,null,null,"Benem fejezett",null,"‰",null,null,null,null,46,50,12200,25700,6100,null,1026,null,1026,null,3459,"Igrici                             "]
["valamint Debrecen, Győr, Miskolc, Pécs, Szeged, Székesfehérvár közigazgatási határain belül levő kockázatviselési hellyel felvett ajánlatok esetén (területi engedmény).",null,null,null,null,null,null,null,null,null,null,null,null,{"$f":"K55","v":1},null,0.4,null,null,null,null,51,55,13300,28000,6800,null,1027,null,1027,null,3461,"Egerlövő                           "]
[null,null,null,null,null,null,null,null,null,null,null,null,null,null,null,null,null,null,null,null,56,60,14400,30000,7300,null,1028,null,1028,null,3462,"Borsodivánka                       "]
[null,null,null,null,null,null,null,null,null,null,null,null,null,"Tűzveszélyes",null,"‰",null,null,null,null,"Megkezdett 10 m2 -ként",null,2300,4800,1300,null,1029,null,1029,null,3464,"Tiszavalk"]
[null,null,null,null,null,null,null,null,null,null,null,null,null,{"$f":"W55","v":2},null,0.1,null,null,null,null,null,null,null,null,null,null,1031,null,1031,null,3465,"Tiszabábolna"]
[null,null,null,null,null,null,null,null,null,null,null,null,null,null,null,null,null,null,null,null,null,null,null,null,null,null,1032,null,1032,null,3466,"Tiszadorogma"]
["Engedmények",null,null,null,"‰",null,"Felelősség",null,1,2,null,null,"Mennyiségi eng.",null,{"$f":"Haz!O30/1000","v":688800},{"$f":"IF(Haz!B18>Haz!K18,Haz!B18,Haz!K18)","v":225000},null,"Üveg",{"$f":"IF(OR(Haz!$O$30=0,AND(Haz!$O$30>0,Haz!$B$51=1)),1,IF(AND(Haz!$O$30>0,Haz!$B$51=2),2,IF(AND(Haz!$O$30>0,Haz!$B$51=3),3,0)))","v":1},"kód","szorzó",null,null,null,null,null,1033,null,1033,null,3467,"Ároktő"]
["Felújítás",null,1,null,0.02,null,"Fedezet",1,0.05,{"$f":"I20+K20","v":0.15000000000000002},0.1,null,180000,0,100,0,null,{"$f":"\"\"","v":""},{"$f":"IF($S$19=2,R20,\"\")","v":""},1,null,null,null,null,null,null,1034,null,1034,null,3565,"Tiszalúc                           "]
[{"$f":"I81","v":0},null,2,null,0.04,null,"‰",2,0.08,{"$f":"I21+K21","v":0.22000000000000003},0.14000000000000001,null,null,100001,200,0,null,"Sík üvegezés",{"$f":"IF($S$19=2,R21,\"\")","v":""},2,7.0000000000000007E-2,null,null,null,null,null,1035,null,1035,null,3578,"Girincs                            "]
[null,null,3,null,0.06,null,null,3,0.12,{"$f":"I22+K22","v":0.3},0.18,null,null,200001,300,0.02,null,"Előtetők, felülvilágítók, napkollektorok","",3,0.09,null,null,null,null,null,1036,null,1036,null,3579,"Kesznyéten                         "]
["Funkció",null,1,null,0.05,null,"Be nem fejezett",null,0.2,null,null,null,null,300001,400,0.03,null,"Ón, ólom, maratott díszüveg, tükör","",4,0.04,null,null,null,null,null,1037,null,1037,null,3580,"Tiszaújváros                       "]
[{"$f":"G55","v":1},null,2,null,0,null,null,null,1,2,null,null,null,400001,600,0.04,null,"Műanyag fényáteresztők","",5,0.05,null,null,null,null,null,1038,null,1038,null,3586,"Sajóörös                           "]
[null,null,3,null,0.05,null,"Limit",1,15,7.5,null,null,null,600001,800,0.06,null,"Épületszerkezeti üvegezés","",6,7.0000000000000007E-2,null,null,null,null,null,1039,null,1039,null,3587,"Tiszapalkonya"]
[null,null,4,null,0.05,null,"mFt",2,35,15,null,null,null,800001,1200,0.08,null,"Akvárium üvegezése","",7,0.15,null,null,null,null,null,1041,null,1041,null,3588,"Hejőkürt                           "]
[null,null,5,null,0,null,null,3,75,35,null,null,null,1200001,1000000,0.15,null,"Üvegezés fóliázása","",8,0.02,null,null,null,null,null,1042,null,1042,null,3589,"Tiszatarján                        "]
["Áll szem.",null,null,null,0.02,null,"Munkáltatói",null,null,7000,null,null,191000,0,100,0,null,"Üvegpótlás (daru, állvány)","",9,0.15,null,null,null,null,null,1043,null,1043,null,3591,"Oszlár                             "]
["Nem Panel.",null,null,null,0.02,null,"Közkép. felbi.",null,{"$f":"ROUNDUP(Haz!$L$14/100,0)","v":1},15000,null,null,null,100001,200,0.04,null,"Speciális üvegezés","",10,0.15,null,null,null,null,null,1044,null,1044,null,3592,"Nemesbikk                          "]
["Önrész",null,0,1,0,null,null,null,null,null,null,null,null,200001,300,0.06,null,"Első kockázatra",{"$f":"IF($S$19=3,R30,\"\")","v":""},1,0.15,null,null,null,null,null,1045,null,1045,null,3594,"Hejőpapi                           "]
[{"$f":"IF(AND(NOT(O66),NOT(P66),NOT(Q67)),1,IF(AND(O66,NOT(P66),NOT(Q67)),2,IF(AND(NOT(O66),P66,NOT(Q67)),3,IF(AND(NOT(O66),NOT(P66),Q67),4,0))))","v":1},null,25,2,0.02,null,"Jármű",null,3500000,1200,null,null,null,300001,400,0.08,null,null,null,null,null,null,null,null,null,null,1046,null,1046,null,3910,"Tokaj"]
[null,null,50,3,0.04,null,null,null,null,null,null,null,null,400001,600,0.1,null,null,null,null,null,null,null,null,null,null,1047,null,1047,null,3921,"Taktaszada                         "]
[null,null,100,4,0.06,null,"Felvonó GEPTB",null,null,null,null,null,null,600001,800,0.12,null,null,"Aláírók",null,null,null,null,null,null,null,1048,null,1048,null,3922,"Taktaharkány                       "]
["Árvíz ki",null,null,null,0.03,null,1,150,500,6000,null,null,null,800001,1200,0.14000000000000001,null,400,{"$f":"IF(Tomb!R42=0,\"\",IF(Tomb!R42>0,VLOOKUP(Tomb!R42,Ker!A2:K150,2,0)))","v":0},"képviselő",null,null,null,null,null,null,1051,null,1051,null,3924,"Taktakenéz"]
["Z11-14 Ki",null,null,null,0.05,null,2,300,1000,7500,null,null,null,1200001,1000000,0.16,null,700,{"$f":"Ker!G152","v":"Kiss Zoltán"},{"$f":"IF(OR(Ker!I152>0,Ker!I152>\"\"),Ker!I152,\"\")","v":"Mid-Office vagyon kockázatvállaló"},null,null,null,null,null,null,1052,null,1052,null,3925,"Prügy                              "]
["Betlop Ki",null,null,null,0.05,null,3,450,1500,8500,null,null,221000,0,100,0.04,null,1,"Varga Ferenc","kockázatvállaló, termékfelelős",null,null,null,null,null,null,1053,null,1053,null,3926,"Taktabáj                           "]
[null,null,null,null,null,null,4,550,2000,10000,null,null,null,100001,200,0.06,null,2,"Flamich Gábor","gépjármű és lakossági vagyonbiztosítási főosztályvezető",null,null,null,null,null,null,1054,null,1054,null,3927,"Csobaj                             "]
[null,null,null,null,null,null,null,null,null,null,null,null,null,200001,300,0.08,null,3,"Lipovecz Zsuzsanna","együtt-viszontbiztosítási kockázatvállaló",null,null,null,null,null,null,1055,null,1055,null,3928,"Tiszatardos                        "]
[null,null,null,null,null,null,"Assistance",null,null,1780,null,null,null,300001,400,0.1,null,false,"Mikó János","kockázatvállaló, termékfelelős",null,null,null,null,null,null,1056,null,1056,null,3929,"Tiszaladány"]
[null,null,null,null,null,null,null,null,null,null,null,null,null,400001,600,0.12,null,null,null,null,null,null,null,null,null,null,1061,null,1061,null,3931,"Mezőzombor                         "]
[null,null,null,null,null,null,null,null,null,null,null,null,null,600001,800,0.14000000000000001,null,null,null,null,null,null,null,null,null,null,1062,null,1062,null,3933,"Olaszliszka                        "]
[null,null,null,null,null,null,null,null,null,null,null,null,null,800001,1200,0.16,null,62,"Képviselet",{"$f":"LOOKUP(VLOOKUP(R42,Ker!A2:K150,11,0),R43:R50)","v":{"$error":"#N/A"}},null,null,null,null,null,null,1063,null,1063,null,3941,"Vámosújfalu                        "]
[0,"Engedmények",null,null,null,null,null,null,null,null,null,null,null,1200001,1000000,0.18,null,1,{"$f":"Ker!$D152","v":"Budapest Alkusz IV"},null,null,null,null,null,null,null,1064,null,1064,null,3942,"Sárazsadány                        "]
[1,"Éves díj","(éves)","0",{"$f":"CONCATENATE(B44&\"  ( \"&D44&\" % )\")","v":"Éves díj  ( 0 % )"},null,0,{"$f":"Haz!X57","v":647480},null,null,null,null,251000,0,100,0.06,null,2,{"$f":"Ker!$D153","v":"Budapest Alkusz I"},null,null,null,null,null,null,null,1065,null,1065,null,3943,"Bodrogolaszi                       "]
[2,"Féléves díj","(féléves)","3",{"$f":"CONCATENATE(B45&\"  ( \"&D45&\" % )\")","v":"Féléves díj  ( 3 % )"},null,0.03,5000,15000,null,null,null,null,100001,200,0.08,null,3,{"$f":"Ker!$D154","v":"Élet-Alkusz Igazgatóság"},null,null,null,null,null,null,null,1066,null,1066,null,3954,"Györgytarló                        "]
[3,"Negyedéves díj","(negyedéves)","6",{"$f":"CONCATENATE(B46&\"  ( \"&D46&\" % )\")","v":"Negyedéves díj  ( 6 % )"},null,0.06,null,{"$f":"IF(H44=0,0,ROUNDDOWN(LEFT(H44/H45,3),0)-1)","v":128},null,null,null,null,200001,300,0.12,null,4,{"$f":"Ker!$D155","v":"Budapest Alkusz II"},null,null,null,null,null,null,null,1067,null,1067,null,3955,"Kenézlő                            "]
[4,"Havi díj","(havi)","9",{"$f":"CONCATENATE(B47&\"  ( \"&D47&\" % )\")","v":"Havi díj  ( 9 % )"},null,0.09,null,null,null,null,null,null,300001,400,0.14000000000000001,null,5,{"$f":"Ker!$D156","v":0},null,null,null,null,null,null,null,1068,null,1068,null,3956,"Viss                               "]
[null,null,null,null,null,null,null,null,null,null,null,null,null,400001,600,0.16,null,6,{"$f":"Ker!$D157","v":0},null,null,null,null,null,null,null,1071,null,1071,null,3961,"Vajdácska                          "]
[null,null,null,null,{"$f":"EVEN(I46)","v":128},{"$f":"VLOOKUP(I49,A44:G47,7,0)","v":0},{"$f":"INDEX(A44:G47,H49,7)","v":0},1,{"$f":"IF(Haz!Q7=1,1,IF(AND(E49<2,OR(H49=2,H49=3,H49=4)),1,IF(AND(E49=2,OR(H49=3,H49=4)),2,IF(AND(E49=4,OR(H49=3,H49=4)),3,IF(AND(E49>4,E49<12,OR(H49=3,H49=4)),3,IF(AND(E49>=12,OR(H49=4)),4,H49))))))","v":1},null,null,null,null,600001,800,0.22,null,7,{"$f":"Ker!$D158","v":0},null,null,null,null,null,null,null,1072,null,1072,null,3962,"Karos                              "]
[null,null,null,null,null,null,null,null,null,null,null,null,null,800001,1200,0.26,null,8,{"$f":"Ker!$D159","v":0},null,null,null,null,null,null,null,1073,null,1073,null,3963,"Karcsa                             "]
[null,null,null,null,null,null,null,null,null,null,null,null,null,1200001,1000000,0.3,null,null,null,null,null,null,null,null,null,null,1074,null,1074,null,3964,"Pácin                              "]
[null,null,null,null,null,null,null,null,null,null,null,null,null,null,null,null,null,null,null,null,null,null,null,null,null,null,1075,null,1075,null,3965,"Kisrozvágy                         "]
[null,null,null,null,null,null,null,null,null,null,null,null,null,null,null,null,null,null,null,null,null,null,null,null,null,null,1076,null,1076,null,3967,"Lácacséke                          "]
[null,null,null,null,null,null,null,null,null,null,null,null,"Falazata",null,1,null,null,null,null,null,null,null,null,null,null,null,1077,null,1077,null,3971,"Tiszakarád                         "]
["TULAJDON",null,1,null,"Rendeltetés",null,1,null,"Jellemzői",null,1,null,"Tégla",null,null,null,"Födém",null,2,null,"Tűzveszály",null,2,null,null,null,1078,null,1078,null,3972,"Tiszacsermely                      "]
["Társasházi tulajdon",null,null,null,"Lakóépület",null,null,null,"Befejezett épület",null,null,null,"Panel",null,null,null,"Acélgerendás",null,null,null,"Igen",null,null,null,null,null,1081,null,1081,null,3973,"Cigánd                             "]
["Szövetkezeti tulajdon",null,null,null,"Nyaralóépület",null,null,null,"Nem befejezett ép.",null,null,null,"Monolit vb.",null,null,null,"Beton födém",null,null,null,"Nem",null,null,null,null,null,1082,null,1082,null,3974,"Ricse                              "]
[null,null,null,null,"Üzletház",null,null,null,null,null,null,null,"Bauxit beton",null,null,null,"Közbenső fa",null,null,null,null,null,null,null,null,null,1083,null,1083,null,3976,"Révleányvár                        "]
["Áfa",null,2,null,"Irodaház",null,null,null,"Jellemzői",null,2,null,"Egyéb",null,null,null,"Záró fa, belső vízelv.",null,null,null,null,null,null,null,null,null,1084,null,1084,null,3977,"Zemplénagárd                       "]
["Igen",null,null,null,"Mellék épület",null,null,null,"Igen",null,null,null,null,null,null,null,"Bauxitbeton",null,null,null,null,null,null,null,null,null,1085,null,1085,null,3978,"Dámóc                              "]
["Nem",null,null,null,null,null,null,null,"Nem",null,null,null,null,null,null,null,null,null,null,null,null,null,null,null,null,null,1086,null,1086,null,3985,"Alsóberecki                        "]
[null,null,null,null,null,null,null,null,null,null,null,null,null,null,null,null,null,null,null,null,null,null,null,null,null,null,1087,null,1087,null,3987,"Bodroghalom                        "]
[null,null,null,null,null,null,1,null,null,null,null,null,null,null,null,null,null,null,null,null,null,null,null,null,null,null,1088,null,1088,null,4060,"Balmazújváros                      "]
[null,null,null,null,null,null,null,null,null,null,null,null,true,{"$f":"IF(OR(AND(K65,NOT(M64)),AND(NOT(K65),M64)),TRUE(),FALSE())","v":true},false,{"$f":"IF(AND(O64,NOT(Q65)),1,IF(AND(OR(O64,NOT(O64)),Q65),2,0))","v":0},null,null,null,null,null,null,null,null,null,null,1089,null,1089,null,4065,"Újszentmargita                     "]
["Típusa",null,1,null,"Kategóriája",null,2,null,"Állag",null,false,null,true,{"$f":"IF(OR(AND(K66,NOT(M65)),AND(NOT(K66),M65)),TRUE(),FALSE())","v":true},null,null,false,null,null,null,"Felvonó",null,1,null,null,null,1091,null,1091,null,4066,"Tiszacsege                         "]
["Hagyományos tech.",null,null,null,"Átlag alatti",null,null,null,null,null,false,null,true,{"$f":"IF(OR(AND(K67,NOT(M66)),AND(NOT(K67),M66)),TRUE(),FALSE())","v":true},false,false,null,null,null,null,"150/500 eFt/kár/év/felvonó",null,null,null,null,null,1092,null,1092,null,4069,"Egyek                              "]
["Modern technológiával",null,null,null,"Átlagos",null,null,null,null,null,false,null,true,{"$f":"IF(OR(AND(K68,NOT(M67)),AND(NOT(K68),M67)),TRUE(),FALSE())","v":true},null,null,false,null,null,null,"300/1.000 eFt/kár/év/felvonó",null,null,null,null,null,1093,null,1093,null,4075,"Görbeháza                          "]
[null,null,null,null,"Átlag feletti",null,null,null,null,null,false,null,null,null,null,null,null,null,null,null,"450/1.500 eFt/kár/év/felvonó",null,null,null,null,null,1094,null,1094,null,4090,"Folyás                             "]
[null,null,null,null,"Luxus",null,null,null,null,null,null,null,null,null,null,null,null,null,null,null,"550/2.000 eFt/kár/év/felvonó",null,null,null,null,null,1095,null,1095,null,4096,"Újtikos                            "]
[null,null,null,null,null,null,null,null,null,null,null,null,null,null,null,null,null,null,null,null,null,null,null,null,null,null,1096,null,1096,null,4097,"Tiszagyulaháza"]
[null,null,null,null,null,null,null,null,null,null,null,null,null,null,null,null,null,null,null,null,null,null,null,null,null,null,1097,null,1097,null,4100,"Berettyóújfalu                     "]
[null,null,null,null,null,null,null,null,null,null,null,null,null,null,false,null,null,null,null,null,null,null,null,null,null,null,1098,null,1098,null,4103,"Berettyóújfalu (Berettyószentmárton"]
["Felelősség",null,1,null,null,null,2,null,false,{"$f":"IF(AND(I73,NOT(K73)),TRUE(),FALSE())","v":false},false,{"$f":"IF(OR(AND(I73,NOT(K73)),AND(NOT(I73),K73),AND(NOT(I73),NOT(K73))),TRUE(),FALSE())","v":true},null,null,true,null,"Kockázati",1,null,"Inkasszó",1,null,"VIG",{"$f":"VIG!$GZ$59","v":11},null,null,1101,null,1101,null,4116,"Berekböszörmény                    "]
["I Fedezet.",{"$f":"IF($B$80,A74,\"\")","v":"I Fedezet."},null,null,"Felelősség",null,2,null,false,false,false,true,null,null,false,null,0,null,null,0,null,null,0,null,null,null,1102,null,1102,null,4117,"Told                               "]
["II Fedezet.",{"$f":"IF($B$80,A75,\"\")","v":"II Fedezet."},null,null,"Alap",{"$f":"IF($B$80,E75,\"\")","v":"Alap"},null,null,false,false,false,true,null,null,false,null,0.01,null,null,0.05,null,null,0.01,null,null,null,1103,null,1103,null,4118,"Mezőpeterd                         "]
["III Fedezet.",{"$f":"IF($B$80,A76,\"\")","v":"III Fedezet."},null,null,"Bővített",{"$f":"IF($B$80,E76,\"\")","v":"Bővített"},null,null,false,false,false,true,null,null,false,null,0.02,null,null,null,null,null,0.02,null,null,null,1104,null,1104,null,4121,"Szentpéterszeg                     "]
[null,null,null,null,null,null,null,null,false,false,false,true,null,null,null,null,0.03,null,null,"Képviselői",1,null,0.03,null,null,null,1105,null,1105,null,4122,"Gáborján                           "]
[null,true,null,false,null,true,null,null,false,false,false,true,null,null,null,null,0.04,null,null,0,null,null,0.04,null,null,null,1106,null,1106,null,4123,"Hencida                            "]
[null,true,null,true,null,null,null,null,false,false,false,true,null,null,null,null,0.05,null,null,0.05,null,null,0.05,null,null,null,1107,null,1107,null,4124,"Esztár                             "]
[null,true,null,null,null,null,null,null,false,false,false,true,null,null,null,null,0.06,null,null,0.1,null,null,0.06,null,null,null,1108,null,1108,null,4125,"Pocsaj                             "]
[null,true,null,true,null,null,null,null,{"$f":"COUNTIF(J73:J80,TRUE)","v":0},null,null,null,null,null,null,null,7.0000000000000007E-2,null,null,0.15,null,null,7.0000000000000007E-2,null,null,null,1111,null,1111,null,4130,"Derecske                           "]
[null,false,null,false,null,null,null,null,null,null,null,null,null,null,null,null,0.08,null,null,0.2,null,null,0.08,null,null,null,1112,null,1112,null,4132,"Tépe                               "]
[null,false,null,true,null,null,null,null,null,null,null,null,null,null,null,null,0.09,null,null,null,null,null,0.09,null,null,null,1113,null,1113,null,4133,"Konyár                             "]
[null,null,null,null,null,null,null,null,null,null,null,null,null,null,null,null,0.1,null,null,null,null,null,0.1,null,null,null,1114,null,1114,null,4134,"Mezősas                            "]
[null,null,null,null,null,null,null,null,null,null,null,null,null,null,null,null,0.11,null,null,null,null,null,0.11,null,null,null,1115,null,1115,null,4135,"Körösszegapáti                     "]
[null,null,null,null,null,null,null,null,null,null,null,null,null,null,null,null,0.12,null,null,null,null,null,0.12,null,null,null,1116,null,1116,null,4136,"Körösszakál                        "]
[{"$f":"IF(OR(Haz!C4=0,Haz!C4=\"?\",Haz!E4=0,Haz!E4=\"?\",Haz!J4=0,Haz!J4=\"?\",Haz!C6=0,Haz!C6=\"?\"),1,0)","v":0},null,null,null,null,null,null,null,null,null,null,null,null,null,null,null,null,null,null,null,null,null,0.13,null,null,null,1117,null,1117,null,4137,"Magyarhomorog                      "]
[1,"A kockázatviselési hely pontos megadása nélkül nem számol a program!",null,null,null,null,null,null,null,null,null,null,null,null,null,null,null,null,null,null,null,null,0.14000000000000001,null,null,null,1118,null,1118,null,4138,"Komádi                             "]
[null,null,null,null,null,null,null,null,null,null,null,null,null,null,null,null,null,null,null,null,null,null,0.15,null,null,null,1119,null,1119,null,4141,"Furta                              "]
[null,null,null,1,"külön tul. tűztávon belüli mellékép.",null,null,null,null,1,"Külön tul. tűztávon belüli mellékép.",null,null,null,null,null,null,{"$f":"Haz!O30","v":688800000},{"$f":"Haz!N47-Haz!N34","v":0.83000000000000007},{"$f":"R90*S90","v":571704000},null,null,0.16,null,null,null,1121,null,1121,null,4142,"Zsáka                              "]
[null,null,null,null,"külön tul. tűztávon kívüli mellékép.",null,null,null,null,2,"Külön tul. tűztávon kívüli mellékép.",null,null,null,null,null,null,null,{"$f":"IF(AND(B81,C73>=1,G74=1),I20,IF(AND(B81,C73>=1,G74=2),(I20+K20),0))","v":0.15000000000000002},{"$f":"R90*S91","v":103320000.00000001},null,null,0.17,null,null,null,1122,null,1122,null,4144,"Darvas                             "]
[null,{"$f":"IF(Tomb!G55<5,0,IF(AND(Tomb!G55=5,OR($B$17=0,$K$15=0,$K$15>$K$12,Tomb!$K$59=1,Tomb!$O$54=4,Tomb!$S$55=5)),0,IF(AND(Tomb!G55=5,B19>=K19),B19*H19,K19*H19)))","v":0},null,null,"külön tulajdonú (terem)garázsok",null,null,null,null,3,"Külön tulajdonú (terem)garázsok",null,null,null,null,null,null,{"$f":"SUM(Haz!U52:'Haz'!U53)","v":0},null,{"$f":"SUM(T90:T91)*R92*-1","v":0},null,null,0.18,null,null,null,1123,null,1123,null,4145,"Csökmő                             "]
[null,null,null,null,"külön tulajdonú tárolók",null,null,null,null,4,"Külön tulajdonú tárolók",null,null,null,null,null,null,{"$f":"VIG!M59","v":0.05},null,{"$f":"SUM(T90:T91)*R93*-1","v":-33751200},null,null,0.19,null,null,null,1124,null,1124,null,4150,"Püspökladány                       "]
[null,null,null,null,null,null,null,null,null,null,null,null,null,null,null,null,null,null,null,null,null,null,0.2,null,null,null,1125,null,1125,null,4161,"Báránd                             "]
[null,null,null,1,"közös tul. tűztávon belüli mellékép.",null,null,null,null,1,"Közös tul. tűztávon belüli mellékép.",null,null,null,null,null,null,{"$f":"IF(AND(R90>0,SUM(T90:T93)>0),SUM(T90:T93)/R90,0)","v":0.93100000000000005},null,{"$f":"IF(AND(R90>0,SUM(T90:T92)>0),SUM(T90:T92)/R90,0)","v":0.98},null,null,null,null,null,null,1126,null,1126,null,4162,"Szerep (Hosszúhát)                 "]
[null,null,null,null,"közös tul. tűztávon kívüli mellékép.",null,null,null,null,2,"Közös tul. tűztávon kívüli mellékép.",null,null,null,null,null,null,null,null,null,null,null,null,null,null,null,1131,null,1131,null,4163,"Szerep                             "]
[null,null,null,null,"közös tulajdonú (terem)garázsok",null,null,null,null,3,"Közös tulajdonú (terem)garázsok",null,null,null,null,null,null,null,null,null,null,null,null,null,null,null,1132,null,1132,null,4164,"Bakonszeg                          "]
[null,null,null,null,"közös tulajdonú tárolók",null,null,null,null,4,"Közös tulajdonú tárolók",null,null,null,null,null,null,null,null,null,null,null,null,null,null,null,1133,null,1133,null,4171,"Sárrétudvari                       "]
[null,null,null,null,null,null,null,null,null,null,null,null,null,null,null,null,null,null,null,null,null,null,null,null,null,null,1134,null,1134,null,4172,"Biharnagybajom                     "]
[null,null,null,null,{"$f":"IF(Haz!I20=100%,\"ALAPTERÜLETÉT\",IF(Haz!I20<100%,\"TULAJDONOK ALAPTERÜLETÉT\",\"\"))","v":"ALAPTERÜLETÉT"},null,null,null,null,{"$f":"IF(Haz!K18>=Haz!B18,Haz!K18,Haz!B18)","v":225000},{"$f":"IF(J100>0,\"Ft/m2\",\"\")","v":"Ft/m2"},"ÚJRAELŐÁLLÍTÁSI ÉRTÉKEN ALAPULVÉVE)",null,null,null,null,null,null,null,null,null,null,null,null,null,null,1135,null,1135,null,4173,"Nagyrábé                           "]
[null,{"$f":"CONCATENATE(E100&\" \"&FIXED(J100,0)&\" \"&K100&\" \"&L100)","v":"ALAPTERÜLETÉT 225 000 Ft/m2 ÚJRAELŐÁLLÍTÁSI ÉRTÉKEN ALAPULVÉVE)"},null,null,null,null,null,null,null,null,null,null,null,null,{"$f":"IF(AND(Tomb!D78,E102=\"\"),\"Gépjármű biztosítása\",IF(AND(Tomb!D78,E102>\"\"),\"kiegészítő gépjármű-biztosítás\",\"\"))","v":""},null,null,null,null,null,null,null,null,null,null,null,1136,null,1136,null,4174,"Bihartorda                         "]
[null,null,null,null,{"$f":"\"idegen tárgyak rádölése, üvegtörés átalánybiztosítása, \"&IF(AND(Haz!O30>0,OR(SUM(Haz!O21:R29)>0,Tomb!D79)),\"közös tulajdonú ingóságok kiegészítő biztosítása,\",\"\")","v":"idegen tárgyak rádölése, üvegtörés átalánybiztosítása, közös tulajdonú ingóságok kiegészítő biztosítása,"},null,null,null,null,{"$f":"IF(AND(Tomb!D79,Haz!U36>0),\"felvonók kiegészítő géptörés átalánybiztosítása, \",\"\")","v":"felvonók kiegészítő géptörés átalánybiztosítása, "},null,null,null,null,null,null,null,{"$f":"IF(OR(J102>\"\",O101>\"\"),\".\",\"\")","v":"."},null,null,null,null,null,null,null,null,1137,null,1137,null,4175,"Bihardancsháza                     "]
[null,{"$f":"CONCATENATE(J102&O101&R102)","v":"felvonók kiegészítő géptörés átalánybiztosítása, ."},null,null,null,null,null,null,null,null,null,null,null,null,null,null,null,null,null,null,null,null,null,null,null,null,1138,null,1138,null,4176,"Sáp                                "]
[null,null,null,null,{"$f":"IF(AND(Haz!X44>0,Haz!M61>0,OR(C73=1,C73=2,C73=3)),\"Ingatlanhasználói és -Üzemeltetői felelősségbiztosítás kártérítési limite alapfedezet esetén \",\"\")","v":"Ingatlanhasználói és -Üzemeltetői felelősségbiztosítás kártérítési limite alapfedezet esetén "},null,null,null,null,{"$f":"IF(AND(Tomb!$B$80,Tomb!B81,Haz!$M$64>0,Haz!M61>0,OR(Tomb!G74=1,Tomb!G74=2)),INDEX(Tomb!I25:J27,VLOOKUP(IF(Tomb!K55=1,Tomb!C73,1),Tomb!H25:J27,1,0),HLOOKUP(1,Tomb!I24:J27,1,0))&\" mFt/kár/év\",\"\")","v":"15 mFt/kár/év"},null,null,null,{"$f":"IF(AND(Haz!X44>0,Haz!M61>0,OR(C73=1,C73=2,C73=3),G74=2),\" ezen belül a bővített fedezetben meghatározott károk sublimite \",\"\")","v":" ezen belül a bővített fedezetben meghatározott károk sublimite "},null,null,null,{"$f":"IF(AND(Tomb!$B$80,Tomb!B81,Haz!$M$64>0,Haz!M61>0,Tomb!G74=2),INDEX(Tomb!I25:J27,VLOOKUP(IF(Tomb!K55=1,Tomb!C73,1),Tomb!H25:J27,1,0),HLOOKUP(Tomb!G74,Tomb!I24:J27,1,0))&\" mFt/kár\",\"\")","v":"7,5 mFt/kár"},null,{"$f":"IF(AND(E104>\"\",U104>\"\"),\",\",IF(AND(E104>\"\",U104>\"\"),\".\",\"\"))","v":""},{"$f":"IF(B83,\" a társasház-kezelői felelősségbiztosítás szublimite \",\"\")","v":""},null,null,null,{"$f":"IF(B83,\"5 mFt/kár/év\",\"\")","v":""},{"$f":"IF(OR(E104>\"\",J104>\"\",N104>\"\",R104>\"\",W103>\"\"),\".\",\"\")","v":"."},1139,null,1139,null,4177,"Földes                             "]
[null,{"$f":"CONCATENATE(E104&J104&N104&R104&T104&U104&Y104&Z104)","v":"Ingatlanhasználói és -Üzemeltetői felelősségbiztosítás kártérítési limite alapfedezet esetén 15 mFt/kár/év ezen belül a bővített fedezetben meghatározott károk sublimite 7,5 mFt/kár."},null,null,null,null,null,null,null,null,null,null,null,null,null,null,null,null,null,null,null,null,null,null,null,null,1141,null,1141,null,4181,"Nádudvar                           "]
[null,null,{"$f":"IF(AND(B80,B81,B82,NOT(B83)),1,IF(AND(B80,B81,NOT(B82),B83),2,IF(AND(B80,B81,B82,B83),3,0)))","v":0},null,{"$f":"IF(AND(Haz!X44>0,Haz!M62>0),\"Munkáltatói felelősségbiztosítás kártérítési sublimite 5 mFt/kár/év.\",\"\")","v":""},null,null,null,null,null,{"$f":"IF(AND(Haz!X44>0,Haz!M63>0),\"Társasház-kezelői felelősségbiztosítás kártérítési sublimite 5 mFt/kár/év.\",\"\")","v":""},null,null,null,{"$f":"IF(AND(Haz!X44>0,Haz!M63>0),\"Társasház-kezelői felelősségbiztosítás kártérítési sublimite 5 mFt/kár/év.\",\"\")","v":""},null,{"$f":"IF(AND(AND(Haz!X44>0,Haz!M62>0),AND(Haz!X44>0,Haz!M63>0)),\"Továbbá mind a Munkáltatói, mind a Társasház-kezelői felelősségbiztosítás kártérítési sublimite 5 mFt/kár/év.\",\"\")","v":""},null,null,null,null,null,null,null,null,null,1142,null,1142,null,4183,"Kaba                               "]
[null,{"$f":"IF(Haz!Q38,\"A SIGNAL Assistance vészelhárítási szolgáltatás limite 25.000.- Ft\",\"\")","v":"A SIGNAL Assistance vészelhárítási szolgáltatás limite 25.000.- Ft"},null,null,null,null,null,null,null,null,null,null,null,{"$f":"IF(Haz!X42>0,FIXED(Haz!O20*0.0002,0)&\" Ft/év\",\"\")","v":"133 740 Ft/év"},null,{"$f":"IF(AND(Haz!X42>0,Haz!X43>0),\", ezen felül többlet biztosításként a részletezőben meghatározott kiegészítő üvegbiztosítás alapján \",\"\")","v":""},null,null,null,null,null,null,null,null,null,null,1143,null,1143,null,4184,"Tetétlen                           "]
[null,null,null,null,{"$f":"IF(Haz!X42>0,\"Az üvegbiztosítás kártérítési határa, üveg átalánybiztosítás alapján\",\"\")","v":"Az üvegbiztosítás kártérítési határa, üveg átalánybiztosítás alapján"},null,null,null,null,null,null,null,null,{"$f":"CONCATENATE(E108&IF((Haz!O20*0.0002)>50000,CONCATENATE(\" \"&N107&O107),\" a feltételeinkben leírtak szerint\")&P107&T108&V108)","v":"Az üvegbiztosítás kártérítési határa, üveg átalánybiztosítás alapján 133 740 Ft/év."},null,null,null,null,null,{"$f":"IF(AND(Haz!X42>0,Haz!X43>0),FIXED(Haz!I57,0)&\" Ft/év\",\"\")","v":""},null,{"$f":"IF(OR(E108>\"\",N107>\"\",P107>\"\",T108>\"\"),\".\",\"\")","v":"."},null,null,null,null,1144,null,1144,null,4212,"Hajdúszovát                        "]
[null,{"$f":"CONCATENATE(E108&IF((Haz!O20*0.0002)=0,\"\",\" a feltételeinkben leírtak szerint\")&P107&T108&V108)","v":"Az üvegbiztosítás kártérítési határa, üveg átalánybiztosítás alapján a feltételeinkben leírtak szerint."},null,null,null,null,null,null,null,null,null,null,null,null,{"$f":"IF(AND(B80,B82,Haz!M62>0,Haz!M61=0),\"Munkáltatói felelősségbiztosítás\",IF(AND(B80,B82,Haz!M62>0,Haz!M61>0),\", kiegészítő munkáltatói felelősségbiztosítás\",\"\"))","v":""},null,null,null,null,null,null,{"$f":"IF(AND(B80,B83,Haz!M63>0,Haz!M61=0),\"Közösképviselői felelősségbiztosítás\",IF(AND(B80,B83,Haz!M63>0,Haz!M61>0),\", kiegészítő közösképviselői felelősségbiztosítás\",\"\"))","v":""},null,null,null,null,1145,null,1145,null,4440,"Tiszavasvári                       "]
[null,null,null,null,{"$f":"IF(AND(B80,B81,Haz!M61>0),\"Ingatlanhasználói és -üzemeltetői felelősségbiztosítás illetve a lakók egymásnak okozott káraira\",\"\")","v":"Ingatlanhasználói és -üzemeltetői felelősségbiztosítás illetve a lakók egymásnak okozott káraira"},null,null,null,null,null,null,null,null,null,null,null,null,{"$f":"IF(OR(E110>\"\",O109>\"\"),\".\",\"\")","v":"."},null,{"$f":"IF(AND(B80,B81,Haz!M61>0,G73=2),\" (Feltételeinktől eltérően önrész nélkül)\",\"\")","v":" (Feltételeinktől eltérően önrész nélkül)"},null,null,null,null,null,null,1146,null,1146,null,4450,"Tiszalök"]
[null,{"$f":"CONCATENATE(E110&O109&V109&R110&T110)","v":"Ingatlanhasználói és -üzemeltetői felelősségbiztosítás illetve a lakók egymásnak okozott káraira. (Feltételeinktől eltérően önrész nélkül)"},null,null,null,null,null,null,null,null,null,null,null,{"$f":"IF(Haz!O30>1000000000,\" a  viszontbiztosítás megszerzése,\",\" \")","v":" "},null,null,null,null,null,null,null,null,null,null,null,null,1147,null,1147,null,4455,"Tiszadada"]
[null,null,null,null,null,null,null,null,null,null,null,null,null,null,null,null,null,null,null,null,null,null,null,null,null,null,1148,null,1148,null,4456,"Tiszadob"]
[null,{"$f":"\"Jelen előzetes díjajánlatunk tájékoztató jellegű. A végleges díjajánlat elkészítéséhez\"&N111&\" helyszíni szemle, kockázat-elbírálás, valamint kárelőzmény megadása szükséges, amelyek módosíthatnak az előzetes díjajánlaton.\"","v":"Jelen előzetes díjajánlatunk tájékoztató jellegű. A végleges díjajánlat elkészítéséhez  helyszíni szemle, kockázat-elbírálás, valamint kárelőzmény megadása szükséges, amelyek módosíthatnak az előzetes díjajánlaton."},null,null,null,null,null,null,null,null,null,null,"(",{"$f":"Haz!C4&\" \"&Haz!E4&\" \"&Haz!J4&\" \"","v":"1075 Budapest Rumbach Sebestyén u. 12. "},null,null,null,null,null,null,null,null,null,null,null,null,1149,null,1149,null,4463,"Tiszanagyfalu"]
[null,null,null,null,{"$f":"IF(Haz!C6>\"\",Haz!C6,\"\")","v":"kk"},null,null,{"$f":"IF(AND(Haz!O7=1,OR(Haz!C7>\"\",Haz!E7>\"\",Haz!J7>\"\")),\" (\",\"\")","v":""},{"$f":"IF(AND(Haz!O7=1,Haz!C7>0),Haz!C7,\"\")","v":""},{"$f":"IF(AND(Haz!O7=1,Haz!E7>0),Haz!E7,\"\")","v":""},{"$f":"IF(AND(Haz!O7=1,Haz!J7>0),Haz!J7,\"\")","v":""},{"$f":"IF(AND(Haz!O7=1,OR(Haz!C7>\"\",Haz!E7>\"\",Haz!J7>\"\")),\")\",\"\")","v":""},null,null,null,null,")",null,null,null,null,null,null,null,null,null,1151,null,1151,null,4465,"Rakamaz                            "]
[null,{"$f":"IF(AND(Haz!C6>0,Haz!O7=0,OR(Haz!C4>0,Haz!E4>0,Haz!J4>0)),\"Közösképviselője: \"&CONCATENATE(E114,+\" \",M113,N113,Q114),IF(AND(Haz!C6>0,Haz!O7=1,OR(Haz!C7>0,Haz!E7>0,Haz!J7>0)),\"Közösképviselője: \"&CONCATENATE(E114,H114,I114,+\" \",J114,+\" \",K114,L114,),0))","v":"Közösképviselője: kk (1075 Budapest Rumbach Sebestyén u. 12. )"},null,null,null,null,null,null,null,null,null,null,{"$f":"IF(AND(Tomb!$B$80,Tomb!B82,Haz!$M$64>0,Haz!M62>0),\"+ Munkáltatói\",\"\")","v":""},null,{"$f":"IF(AND(Tomb!$B$80,Tomb!B82,Haz!$M$64>0,Haz!M62>0),\"5 mFt/kár/év\",\"\")","v":""},null,null,null,{"$f":"IF(AND($B$80,B83,Haz!$M$64>0,Haz!M63>0),\"+ Közösképviselői\",\"\")","v":""},null,null,null,null,null,null,null,1152,null,1152,null,4466,"Timár                              "]
[null,null,null,null,{"$f":"IF(AND(Tomb!$B$80,Tomb!B81,Haz!$M$64>0,Haz!M61>0,OR(Tomb!G74=1,Tomb!G74=2)),Tomb!F75,\"\")","v":"Alap"},null,{"$f":"IF(AND(Tomb!$B$80,Tomb!B81,Haz!$M$64>0,Haz!M61>0,OR(Tomb!G74=1,Tomb!G74=2)),INDEX(Tomb!I25:J27,VLOOKUP(IF(Tomb!K55=1,Tomb!C73,1),Tomb!H25:J27,1,0),HLOOKUP(1,Tomb!I24:J27,1,0))&\" mFt/kár/év\",\"\")","v":"15 mFt/kár/év"},null,{"$f":"IF(AND(Tomb!$B$80,Tomb!B81,Haz!$M$64>0,Haz!M61>0,Tomb!G74=2),\"+ \"&Tomb!F76,\"\")","v":"+ Bővített"},null,{"$f":"IF(AND(Tomb!$B$80,Tomb!B81,Haz!$M$64>0,Haz!M61>0,Tomb!G74=2),INDEX(Tomb!I25:J27,VLOOKUP(IF(Tomb!K55=1,Tomb!C73,1),Tomb!H25:J27,1,0),HLOOKUP(Tomb!G74,Tomb!I24:J27,1,0))&\" mFt/kár\",\"\")","v":"7,5 mFt/kár"},null,null,{"$f":"CONCATENATE(E116,+\" \",G116,+\" \",I116,+\" \",K116)","v":"Alap 15 mFt/kár/év + Bővített 7,5 mFt/kár"},null,null,null,{"$f":"IF(AND(Tomb!$B$80,Tomb!B82,Haz!$M$64>0,Haz!M62>0),Haz!J62&\" főre.\",\"\")","v":""},null,null,null,null,null,null,null,null,1153,null,1153,null,4467,"Szabolcs                           "]
[null,{"$f":"CONCATENATE(E116,+\" \",G116,+\" \",I116,+\" \",K116,+\" \",M115,+\" \",S115,+\" \",O115)","v":"Alap 15 mFt/kár/év + Bővített 7,5 mFt/kár   "},null,null,null,null,null,null,null,null,null,null,{"$f":"IF(K118>0,\"‰\",\"\")","v":"‰"},null,null,{"$f":"VIG!T65/Haz!O30*1000","v":0.8307084785133565},null,null,null,null,{"$f":"CONCATENATE(O115,+\"      \",R116)","v":"      "},null,null,null,null,null,1154,null,1154,null,4468,"Balsa                              "]
[null,null,null,null,{"$f":"VIG!T61/Haz!O30*1000","v":0.8307084785133565},null,{"$f":"IF(E118>0,\"‰\",\"\")","v":"‰"},null,{"$f":"IF(E118>0,\"/\",\"\")","v":"/"},null,{"$f":"Haz!U63","v":0.84279968760127721},null,null,null,null,null,null,{"$f":"IF(P117>0,\"‰\",\"\")","v":"‰"},null,{"$f":"IF(P117>0,\"/\",\"\")","v":"/"},null,{"$f":"R95","v":0.93100000000000005},null,{"$f":"IF(V118>0,\"‰\",\"\")","v":"‰"},null,null,1155,null,1155,null,4471,"Gávavencsellő (Gáva)               "]
[null,{"$f":"CONCATENATE(FIXED(K118,3),+\" \",G118,+\" \",I118,+\" \",FIXED(T95,3),+\" \",M117)","v":"0,843 ‰ / 0,980 ‰"},null,null,null,null,{"$f":"CONCATENATE(FIXED(K118,3),+\" \",M117)","v":"0,843 ‰"},null,null,null,null,null,null,{"$f":"IF(AND(Tomb!D79,Haz!U36>0,Haz!X36>0),FIXED(VLOOKUP(W65,G34:J37,2,0),0)&\" eFt/kár \"&FIXED(VLOOKUP(W65,Tomb!G34:J37,3,0),0)&\" eFt/év /felvonó\",\"\")","v":"150 eFt/kár 500 eFt/év /felvonó"},null,null,null,{"$f":"CONCATENATE(FIXED(P117,3),+\" \",R118,+\" \",T118,+\" \",FIXED(V118,3),+\" \",X118)","v":"0,831 ‰ / 0,931 ‰"},null,null,null,null,{"$f":"CONCATENATE(FIXED(V118,3),+\" \",X118)","v":"0,931 ‰"},null,null,null,1156,null,1156,null,4474,"Tiszabercel                        "]
[null,null,null,null,{"$f":"IF(AND(Tomb!D79,Haz!U36>0),\"Felvonók géptörés biztosításának kártérítési limite\",\"\")","v":"Felvonók géptörés biztosításának kártérítési limite"},null,null,null,null,null,null,null,null,null,null,null,null,{"$f":"IF(AND(Tomb!D79,Haz!U36>0),\".\",\"\")","v":"."},null,null,null,null,null,null,null,null,1157,null,1157,null,4475,"Paszab                             "]
[null,{"$f":"CONCATENATE(E120,\" \",N119,R120)","v":"Felvonók géptörés biztosításának kártérítési limite 150 eFt/kár 500 eFt/év /felvonó."},null,null,null,null,null,null,null,null,null,null,null,{"$f":"IF(AND(Tomb!D78,Haz!U33>0,Haz!X33>0),FIXED(I31,0)&\" Ft/jármű/év\",\"\")","v":""},null,null,null,null,null,null,null,null,null,null,null,null,1158,null,1158,null,4482,"Kótaj                              "]
[null,null,null,null,{"$f":"IF(AND(Tomb!D78,Haz!U33>0),\"Gépjárművek biztosításának kártérítési limite\",\"\")","v":""},null,null,null,null,null,null,null,null,null,null,null,null,{"$f":"IF(AND(Tomb!D78,Haz!U33>0),\".\",\"\")","v":""},null,null,null,null,null,null,null,null,1161,null,1161,null,4483,"Buj                                "]
[null,{"$f":"CONCATENATE(E122,\" \",N121,R122)","v":" "},null,null,null,null,null,null,null,null,null,null,null,null,null,null,null,null,null,null,null,null,null,null,null,null,1162,null,1162,null,4484,"Ibrány                             "]
[null,null,null,null,null,null,null,null,null,null,null,null,null,null,null,null,null,null,null,null,null,null,null,null,null,null,1163,null,1163,null,4487,"Tiszatelek                         "]
[null,null,null,null,null,null,null,null,null,null,null,null,null,null,null,null,null,null,null,null,null,null,null,null,null,null,1164,null,1164,null,4488,"Beszterec                          "]
[null,null,null,null,null,null,null,null,null,null,null,null,null,null,null,null,null,null,null,null,null,null,null,null,null,null,1165,null,1165,null,4491,"Újdombrád                          "]
[null,null,null,null,null,null,null,null,null,null,null,null,null,null,null,null,null,null,null,null,null,null,null,null,null,null,1171,null,1171,null,4492,"Dombrád"]
[null,null,null,null,null,null,null,null,null,null,null,null,null,null,null,null,null,null,null,null,null,null,null,null,null,null,1172,null,1172,null,4493,"Tiszakanyár                        "]
[null,null,null,null,null,null,null,null,null,null,null,null,null,null,null,null,null,null,null,null,null,null,null,null,null,null,1173,null,1173,null,4494,"Kékcse                             "]
[null,null,null,null,null,null,null,null,null,null,null,null,null,null,null,null,null,null,null,null,null,null,null,null,null,null,1174,null,1174,null,4495,"Döge                               "]
[null,null,null,null,null,null,null,null,null,null,null,null,null,null,null,null,null,null,null,null,null,null,null,null,null,null,1181,null,1181,null,4496,"Szabolcsveresmart                  "]
[null,null,null,null,null,null,null,null,null,null,null,null,null,null,null,null,null,null,null,null,null,null,null,null,null,null,1182,null,1182,null,4501,"Kemecse                            "]
[null,null,null,null,null,null,null,null,null,null,null,null,null,null,null,null,null,null,null,null,null,null,null,null,null,null,1183,null,1183,null,4502,"Vasmegyer                          "]
[null,null,null,null,null,null,null,null,null,null,null,null,null,null,null,null,null,null,null,null,null,null,null,null,null,null,1184,null,1184,null,4503,"Tiszarád                           "]
[null,null,null,null,null,null,null,null,null,null,null,null,null,null,null,null,null,null,null,null,null,null,null,null,null,null,1185,null,1185,null,4511,"Nyírbogdány                        "]
[null,null,null,null,null,null,null,null,null,null,null,null,null,null,null,null,null,null,null,null,null,null,null,null,null,null,1186,null,1186,null,4515,"Kék                                "]
[null,null,null,null,null,null,null,null,null,null,null,null,null,null,null,null,null,null,null,null,null,null,null,null,null,null,1188,null,1188,null,4516,"Demecser                           "]
[null,null,null,null,null,null,null,null,null,null,null,null,null,null,null,null,null,null,null,null,null,null,null,null,null,null,1191,null,1191,null,4517,"Gégény                             "]
[null,null,null,null,null,null,null,null,null,null,null,null,null,null,null,null,null,null,null,null,null,null,null,null,null,null,1192,null,1192,null,4521,"Berkesz                            "]
[null,null,null,null,null,null,null,null,null,null,null,null,null,null,null,null,null,null,null,null,null,null,null,null,null,null,1192,null,1192,null,4522,"Nyírtass                           "]
[null,null,null,null,null,null,null,null,null,null,null,null,null,null,null,null,null,null,null,null,null,null,null,null,null,null,1193,null,1193,null,4523,"Pátroha                            "]
[null,null,null,null,null,null,null,null,null,null,null,null,null,null,null,null,null,null,null,null,null,null,null,null,null,null,1194,null,1194,null,4524,"Ajak                               "]
[null,null,null,null,null,null,null,null,null,null,null,null,null,null,null,null,null,null,null,null,null,null,null,null,null,null,1195,null,1195,null,4525,"Rétközberencs                      "]
[null,null,null,null,null,null,null,null,null,null,null,null,null,null,null,null,null,null,null,null,null,null,null,null,null,null,1196,null,1196,null,4544,"Nyírkarász                         "]
[null,null,null,null,null,null,null,null,null,null,null,null,null,null,null,null,null,null,null,null,null,null,null,null,null,null,1201,null,1201,null,4545,"Gyulaháza                          "]
[null,null,null,null,null,null,null,null,null,null,null,null,null,null,null,null,null,null,null,null,null,null,null,null,null,null,1202,null,1202,null,4546,"Anarcs                             "]
[null,null,null,null,null,null,null,null,null,null,null,null,null,null,null,null,null,null,null,null,null,null,null,null,null,null,1203,null,1203,null,4547,"Szabolcsbáka                       "]
[null,null,null,null,null,null,null,null,null,null,null,null,null,null,null,null,null,null,null,null,null,null,null,null,null,null,1204,null,1204,null,4562,"Vaja                               "]
[null,null,null,null,null,null,null,null,null,null,null,null,null,null,null,null,null,null,null,null,null,null,null,null,null,null,1205,null,1205,null,4564,"Nyírmada                           "]
[null,null,null,null,null,null,null,null,null,null,null,null,null,null,null,null,null,null,null,null,null,null,null,null,null,null,1211,null,1211,null,4600,"Kisvárda                           "]
[null,null,null,null,null,null,null,null,null,null,null,null,null,null,null,null,null,null,null,null,null,null,null,null,null,null,1212,null,1212,null,4621,"Fényeslitke                        "]
[null,null,null,null,null,null,null,null,null,null,null,null,null,null,null,null,null,null,null,null,null,null,null,null,null,null,1213,null,1213,null,4622,"Komoró                             "]
[null,null,null,null,null,null,null,null,null,null,null,null,null,null,null,null,null,null,null,null,null,null,null,null,null,null,1214,null,1214,null,4623,"Tuzsér"]
[null,null,null,null,null,null,null,null,null,null,null,null,null,null,null,null,null,null,null,null,null,null,null,null,null,null,1215,null,1215,null,4624,"Tiszabezdéd                        "]
[null,null,null,null,null,null,null,null,null,null,null,null,null,null,null,null,null,null,null,null,null,null,null,null,null,null,1221,null,1221,null,4625,"Záhony                             "]
[null,null,null,null,null,null,null,null,null,null,null,null,null,null,null,null,null,null,null,null,null,null,null,null,null,null,1222,null,1222,null,4627,"Zsurk                              "]
[null,null,null,null,null,null,null,null,null,null,null,null,null,null,null,null,null,null,null,null,null,null,null,null,null,null,1223,null,1223,null,4628,"Tiszaszentmárton                   "]
[null,null,null,null,null,null,null,null,null,null,null,null,null,null,null,null,null,null,null,null,null,null,null,null,null,null,1224,null,1224,null,4634,"Aranyosapáti                       "]
[null,null,null,null,null,null,null,null,null,null,null,null,null,null,null,null,null,null,null,null,null,null,null,null,null,null,1225,null,1225,null,4635,"Újkenéz                            "]
[null,null,null,null,null,null,null,null,null,null,null,null,null,null,null,null,null,null,null,null,null,null,null,null,null,null,1237,null,1237,null,4641,"Mezőladány                         "]
[null,null,null,null,null,null,null,null,null,null,null,null,null,null,null,null,null,null,null,null,null,null,null,null,null,null,1238,null,1238,null,4643,"Benk                               "]
[null,null,null,null,null,null,null,null,null,null,null,null,null,null,null,null,null,null,null,null,null,null,null,null,null,null,1239,null,1239,null,4645,"Tiszamogyorós                      "]
[null,null,null,null,null,null,null,null,null,null,null,null,null,null,null,null,null,null,null,null,null,null,null,null,null,null,1529,null,1529,null,4646,"Eperjeske                          "]
[null,null,null,null,null,null,null,null,null,null,null,null,null,null,null,null,null,null,null,null,null,null,null,null,null,null,2000,"Szentendre",2000,"Szentendre",4721,"Szamoskér                          "]
[null,null,null,null,null,null,null,null,null,null,null,null,null,null,null,null,null,null,null,null,null,null,null,null,null,null,2011,"Budakalász",2011,"Budakalász",4731,"Tunyogmatolcs                      "]
[null,null,null,null,null,null,null,null,null,null,null,null,null,null,null,null,null,null,null,null,null,null,null,null,null,null,2013,"Pomáz",2013,"Pomáz",4732,"Cégénydányád                       "]
[null,null,null,null,null,null,null,null,null,null,null,null,null,null,null,null,null,null,null,null,null,null,null,null,null,null,2016,"Leányfalu",2016,"Leányfalu",4733,"Gyügye                             "]
[null,null,null,null,null,null,null,null,null,null,null,null,null,null,null,null,null,null,null,null,null,null,null,null,null,null,2030,"Érd",2030,"Érd",4734,"Szamosújlak                        "]
[null,null,null,null,null,null,null,null,null,null,null,null,null,null,null,null,null,null,null,null,null,null,null,null,null,null,2035,null,2035,null,4737,"Darnó                              "]
[null,null,null,null,null,null,null,null,null,null,null,null,null,null,null,null,null,null,null,null,null,null,null,null,null,null,2036,null,2036,null,4741,"Jánkmajtis                         "]
[null,null,null,null,null,null,null,null,null,null,null,null,null,null,null,null,null,null,null,null,null,null,null,null,null,null,2040,"Budaörs",2040,"Budaörs",4751,"Kocsord                            "]
[null,null,null,null,null,null,null,null,null,null,null,null,null,null,null,null,null,null,null,null,null,null,null,null,null,null,2083,"Solymár",2083,"Solymár",4752,"Győrtelek                          "]
[null,null,null,null,null,null,null,null,null,null,null,null,null,null,null,null,null,null,null,null,null,null,null,null,null,null,2085,"Pilisvörösvár",2085,"Pilisvörösvár",4754,"Fülpösdaróc                        "]
[null,null,null,null,null,null,null,null,null,null,null,null,null,null,null,null,null,null,null,null,null,null,null,null,null,null,2094,"Nagykovácsi",2094,"Nagykovácsi",4803,"Vásárosnamény (Gergelyiugornya)    "]
[null,null,null,null,null,null,null,null,null,null,null,null,null,null,null,null,null,null,null,null,null,null,null,null,null,null,2220,"Vecsés",2220,"Vecsés",4804,"Vásárosnamény (Vitka)              "]
[null,null,null,null,null,null,null,null,null,null,null,null,null,null,null,null,null,null,null,null,null,null,null,null,null,null,2225,"Üllő",2225,"Üllő",4811,"Kisvarsány                         "]
[null,null,null,null,null,null,null,null,null,null,null,null,null,null,null,null,null,null,null,null,null,null,null,null,null,null,2360,"Gyál",2360,"Gyál",4812,"Nagyvarsány                        "]
[null,null,null,null,null,null,null,null,null,null,null,null,null,null,null,null,null,null,null,null,null,null,null,null,null,null,3500,"Miskolc",3500,"Miskolc",4813,"Gyüre                              "]
[null,null,null,null,null,null,null,null,null,null,null,null,null,null,null,null,null,null,null,null,null,null,null,null,null,null,3501,null,3501,null,4824,"Szamosszeg                         "]
[null,null,null,null,null,null,null,null,null,null,null,null,null,null,null,null,null,null,null,null,null,null,null,null,null,null,3508,null,3508,null,4826,"Olcsva                             "]
[null,null,null,null,null,null,null,null,null,null,null,null,null,null,null,null,null,null,null,null,null,null,null,null,null,null,3510,null,3510,null,4831,"Tiszaszalka                        "]
[null,null,null,null,null,null,null,null,null,null,null,null,null,null,null,null,null,null,null,null,null,null,null,null,null,null,3515,null,3515,null,4832,"Tiszavid                           "]
[null,null,null,null,null,null,null,null,null,null,null,null,null,null,null,null,null,null,null,null,null,null,null,null,null,null,3516,null,3516,null,4833,"Tiszaadony                         "]
[null,null,null,null,null,null,null,null,null,null,null,null,null,null,null,null,null,null,null,null,null,null,null,null,null,null,3517,null,3517,null,4834,"Tiszakerecseny                     "]
[null,null,null,null,null,null,null,null,null,null,null,null,null,null,null,null,null,null,null,null,null,null,null,null,null,null,3518,null,3518,null,4835,"Mátyus                             "]
[null,null,null,null,null,null,null,null,null,null,null,null,null,null,null,null,null,null,null,null,null,null,null,null,null,null,3519,null,3519,null,4836,"Lónya                              "]
[null,null,null,null,null,null,null,null,null,null,null,null,null,null,null,null,null,null,null,null,null,null,null,null,null,null,3521,null,3521,null,4841,"Jánd                               "]
[null,null,null,null,null,null,null,null,null,null,null,null,null,null,null,null,null,null,null,null,null,null,null,null,null,null,3524,null,3524,null,4842,"Gulács                             "]
[null,null,null,null,null,null,null,null,null,null,null,null,null,null,null,null,null,null,null,null,null,null,null,null,null,null,3525,null,3525,null,4843,"Hetefejércse                       "]
[null,null,null,null,null,null,null,null,null,null,null,null,null,null,null,null,null,null,null,null,null,null,null,null,null,null,3526,null,3526,null,4844,"Csaroda                            "]
[null,null,null,null,null,null,null,null,null,null,null,null,null,null,null,null,null,null,null,null,null,null,null,null,null,null,3527,null,3527,null,4845,"Tákos                              "]
[null,null,null,null,null,null,null,null,null,null,null,null,null,null,null,null,null,null,null,null,null,null,null,null,null,null,3528,null,3528,null,4900,"Fehérgyarmat                       "]
[null,null,null,null,null,null,null,null,null,null,null,null,null,null,null,null,null,null,null,null,null,null,null,null,null,null,3529,null,3529,null,4911,"Nábrád                             "]
[null,null,null,null,null,null,null,null,null,null,null,null,null,null,null,null,null,null,null,null,null,null,null,null,null,null,3530,null,3530,null,4912,"Kérsemjén                          "]
[null,null,null,null,null,null,null,null,null,null,null,null,null,null,null,null,null,null,null,null,null,null,null,null,null,null,3531,null,3531,null,4913,"Panyola                            "]
[null,null,null,null,null,null,null,null,null,null,null,null,null,null,null,null,null,null,null,null,null,null,null,null,null,null,3532,null,3532,null,4914,"Olcsvaapáti                        "]
[null,null,null,null,null,null,null,null,null,null,null,null,null,null,null,null,null,null,null,null,null,null,null,null,null,null,3533,null,3533,null,4921,"Kisar                              "]
[null,null,null,null,null,null,null,null,null,null,null,null,null,null,null,null,null,null,null,null,null,null,null,null,null,null,3534,null,3534,null,4922,"Nagyar                             "]
[null,null,null,null,null,null,null,null,null,null,null,null,null,null,null,null,null,null,null,null,null,null,null,null,null,null,3535,null,3535,null,4931,"Tarpa                              "]
[null,null,null,null,null,null,null,null,null,null,null,null,null,null,null,null,null,null,null,null,null,null,null,null,null,null,4000,"Debrecen",4000,"Debrecen",4932,"Márokpapi                          "]
[null,null,null,null,null,null,null,null,null,null,null,null,null,null,null,null,null,null,null,null,null,null,null,null,null,null,4002,null,4002,null,4933,"Beregsurány                        "]
[null,null,null,null,null,null,null,null,null,null,null,null,null,null,null,null,null,null,null,null,null,null,null,null,null,null,4024,null,4024,null,4934,"Beregdaróc                         "]
[null,null,null,null,null,null,null,null,null,null,null,null,null,null,null,null,null,null,null,null,null,null,null,null,null,null,4025,null,4025,null,4935,"Gelénes                            "]
[null,null,null,null,null,null,null,null,null,null,null,null,null,null,null,null,null,null,null,null,null,null,null,null,null,null,4026,null,4026,null,4936,"Vámosatya                          "]
[null,null,null,null,null,null,null,null,null,null,null,null,null,null,null,null,null,null,null,null,null,null,null,null,null,null,4027,null,4027,null,4937,"Barabás                            "]
[null,null,null,null,null,null,null,null,null,null,null,null,null,null,null,null,null,null,null,null,null,null,null,null,null,null,4028,null,4028,null,4941,"Penyige                            "]
[null,null,null,null,null,null,null,null,null,null,null,null,null,null,null,null,null,null,null,null,null,null,null,null,null,null,4029,null,4029,null,4942,"Mánd                               "]
[null,null,null,null,null,null,null,null,null,null,null,null,null,null,null,null,null,null,null,null,null,null,null,null,null,null,4030,null,4030,null,4943,"Kömörő                             "]
[null,null,null,null,null,null,null,null,null,null,null,null,null,null,null,null,null,null,null,null,null,null,null,null,null,null,4031,null,4031,null,4944,"Túristvándi                        "]
[null,null,null,null,null,null,null,null,null,null,null,null,null,null,null,null,null,null,null,null,null,null,null,null,null,null,4032,null,4032,null,4945,"Szatmárcseke                       "]
[null,null,null,null,null,null,null,null,null,null,null,null,null,null,null,null,null,null,null,null,null,null,null,null,null,null,4033,null,4033,null,4946,"Tiszakóród                         "]
[null,null,null,null,null,null,null,null,null,null,null,null,null,null,null,null,null,null,null,null,null,null,null,null,null,null,4034,null,4034,null,4947,"Tiszacsécse                        "]
[null,null,null,null,null,null,null,null,null,null,null,null,null,null,null,null,null,null,null,null,null,null,null,null,null,null,4063,null,4063,null,4948,"Milota                             "]
[null,null,null,null,null,null,null,null,null,null,null,null,null,null,null,null,null,null,null,null,null,null,null,null,null,null,4078,null,4078,null,4951,"Tiszabecs                          "]
[null,null,null,null,null,null,null,null,null,null,null,null,null,null,null,null,null,null,null,null,null,null,null,null,null,null,4079,null,4079,null,4952,"Uszka                              "]
[null,null,null,null,null,null,null,null,null,null,null,null,null,null,null,null,null,null,null,null,null,null,null,null,null,null,4225,null,4225,null,4953,"Magosliget                         "]
[null,null,null,null,null,null,null,null,null,null,null,null,null,null,null,null,null,null,null,null,null,null,null,null,null,null,6700,"Szeged","Keres",{"$f":"IF(VLOOKUP(Haz!C4,AC2:AD216,1,0),1,0)","v":1},4954,"Sonkád                             "]
[null,null,null,null,null,null,null,null,null,null,null,null,null,null,null,null,null,null,null,null,null,null,null,null,null,null,6710,null,null,null,4955,"Botpalád                           "]
[null,null,null,null,null,null,null,null,null,null,null,null,null,null,null,null,null,null,null,null,null,null,null,null,null,null,6720,null,null,null,4956,"Kispalád                           "]
[null,null,null,null,null,null,null,null,null,null,null,null,null,null,null,null,null,null,null,null,null,null,null,null,null,null,6721,null,null,null,4961,"Zsarolyán                          "]
[null,null,null,null,null,null,null,null,null,null,null,null,null,null,null,null,null,null,null,null,null,null,null,null,null,null,6722,null,null,null,4962,"Nagyszekeres                       "]
[null,null,null,null,null,null,null,null,null,null,null,null,null,null,null,null,null,null,null,null,null,null,null,null,null,null,6723,null,null,null,4963,"Kisszekeres                        "]
[null,null,null,null,null,null,null,null,null,null,null,null,null,null,null,null,null,null,null,null,null,null,null,null,null,null,6724,null,null,null,4964,"Fülesd                             "]
[null,null,null,null,null,null,null,null,null,null,null,null,null,null,null,null,null,null,null,null,null,null,null,null,null,null,6725,null,null,null,4965,"Kölcse                             "]
[null,null,null,null,null,null,null,null,null,null,null,null,null,null,null,null,null,null,null,null,null,null,null,null,null,null,6726,null,null,null,4966,"Vámosoroszi                        "]
[null,null,null,null,null,null,null,null,null,null,null,null,null,null,null,null,null,null,null,null,null,null,null,null,null,null,6727,null,null,null,4967,"Csaholc                            "]
[null,null,null,null,null,null,null,null,null,null,null,null,null,null,null,null,null,null,null,null,null,null,null,null,null,null,6728,null,null,null,4968,"Túrricse                           "]
[null,null,null,null,null,null,null,null,null,null,null,null,null,null,null,null,null,null,null,null,null,null,null,null,null,null,6729,null,null,null,4972,"Gacsály                            "]
[null,null,null,null,null,null,null,null,null,null,null,null,null,null,null,null,null,null,null,null,null,null,null,null,null,null,6753,null,null,null,4975,"Méhtelek                           "]
[null,null,null,null,null,null,null,null,null,null,null,null,null,null,null,null,null,null,null,null,null,null,null,null,null,null,6757,null,null,null,4976,"Garbolc                            "]
[null,null,null,null,null,null,null,null,null,null,null,null,null,null,null,null,null,null,null,null,null,null,null,null,null,null,6771,null,null,null,4977,"Kishódos                           "]
[null,null,null,null,null,null,null,null,null,null,null,null,null,null,null,null,null,null,null,null,null,null,null,null,null,null,6791,null,null,null,5051,"Zagyvarékas                        "]
[null,null,null,null,null,null,null,null,null,null,null,null,null,null,null,null,null,null,null,null,null,null,null,null,null,null,7600,"Pécs",null,null,5053,"Szászberek                         "]
[null,null,null,null,null,null,null,null,null,null,null,null,null,null,null,null,null,null,null,null,null,null,null,null,null,null,7621,null,null,null,5061,"Tiszasüly                          "]
[null,null,null,null,null,null,null,null,null,null,null,null,null,null,null,null,null,null,null,null,null,null,null,null,null,null,7622,null,null,null,5062,"Kőtelek                            "]
[null,null,null,null,null,null,null,null,null,null,null,null,null,null,null,null,null,null,null,null,null,null,null,null,null,null,7623,null,null,null,5063,"Hunyadfalva                        "]
[null,null,null,null,null,null,null,null,null,null,null,null,null,null,null,null,null,null,null,null,null,null,null,null,null,null,7624,null,null,null,5064,"Csataszög                          "]
[null,null,null,null,null,null,null,null,null,null,null,null,null,null,null,null,null,null,null,null,null,null,null,null,null,null,7625,null,null,null,5065,"Nagykörű                           "]
[null,null,null,null,null,null,null,null,null,null,null,null,null,null,null,null,null,null,null,null,null,null,null,null,null,null,7626,null,null,null,5071,"Besenyszög                         "]
[null,null,null,null,null,null,null,null,null,null,null,null,null,null,null,null,null,null,null,null,null,null,null,null,null,null,7627,null,null,null,5081,"Szajol                             "]
[null,null,null,null,null,null,null,null,null,null,null,null,null,null,null,null,null,null,null,null,null,null,null,null,null,null,7628,null,null,null,5135,"Jászivány                          "]
[null,null,null,null,null,null,null,null,null,null,null,null,null,null,null,null,null,null,null,null,null,null,null,null,null,null,7629,null,null,null,5137,"Jászkisér                          "]
[null,null,null,null,null,null,null,null,null,null,null,null,null,null,null,null,null,null,null,null,null,null,null,null,null,null,7630,null,null,null,5211,"Tiszapüspöki                       "]
[null,null,null,null,null,null,null,null,null,null,null,null,null,null,null,null,null,null,null,null,null,null,null,null,null,null,7631,null,null,null,5212,"Törökszentmiklós (Surjány)         "]
[null,null,null,null,null,null,null,null,null,null,null,null,null,null,null,null,null,null,null,null,null,null,null,null,null,null,7632,null,null,null,5213,"Fegyvernek (Szapárfalu)            "]
[null,null,null,null,null,null,null,null,null,null,null,null,null,null,null,null,null,null,null,null,null,null,null,null,null,null,7633,null,null,null,5222,"Örményes                           "]
[null,null,null,null,null,null,null,null,null,null,null,null,null,null,null,null,null,null,null,null,null,null,null,null,null,null,7634,null,null,null,5231,"Fegyvernek                         "]
[null,null,null,null,null,null,null,null,null,null,null,null,null,null,null,null,null,null,null,null,null,null,null,null,null,null,7635,null,null,null,5232,"Tiszabő                            "]
[null,null,null,null,null,null,null,null,null,null,null,null,null,null,null,null,null,null,null,null,null,null,null,null,null,null,7636,null,null,null,5233,"Tiszagyenda                        "]
[null,null,null,null,null,null,null,null,null,null,null,null,null,null,null,null,null,null,null,null,null,null,null,null,null,null,7691,null,null,null,5234,"Tiszaroff                          "]
[null,null,null,null,null,null,null,null,null,null,null,null,null,null,null,null,null,null,null,null,null,null,null,null,null,null,7693,null,null,null,5235,"Tiszabura                          "]
[null,null,null,null,null,null,null,null,null,null,null,null,null,null,null,null,null,null,null,null,null,null,null,null,null,null,8000,"Székesfehérvár",null,null,5241,"Abádszalók                         "]
[null,null,null,null,null,null,null,null,null,null,null,null,null,null,null,null,null,null,null,null,null,null,null,null,null,null,8019,null,null,null,5243,"Tiszaderzs                         "]
[null,null,null,null,null,null,null,null,null,null,null,null,null,null,null,null,null,null,null,null,null,null,null,null,null,null,9000,"Győr",null,null,5244,"Tiszafüred (Tiszaszőlős)           "]
[null,null,null,null,null,null,null,null,null,null,null,null,null,null,null,null,null,null,null,null,null,null,null,null,null,null,9011,null,null,null,5300,"Karcag                             "]
[null,null,null,null,null,null,null,null,null,null,null,null,null,null,null,null,null,null,null,null,null,null,null,null,null,null,9012,null,null,null,5309,"Berekfürdő                         "]
[null,null,null,null,null,null,null,null,null,null,null,null,null,null,null,null,null,null,null,null,null,null,null,null,null,null,9019,null,null,null,5310,"Kisújszállás                       "]
[null,null,null,null,null,null,null,null,null,null,null,null,null,null,null,null,null,null,null,null,null,null,null,null,null,null,9021,null,null,null,5321,"Kunmadaras                         "]
[null,null,null,null,null,null,null,null,null,null,null,null,null,null,null,null,null,null,null,null,null,null,null,null,null,null,9022,null,null,null,5322,"Tiszaszentimre                     "]
[null,null,null,null,null,null,null,null,null,null,null,null,null,null,null,null,null,null,null,null,null,null,null,null,null,null,9023,null,null,null,5323,"Tiszaszentimre (Újszentgyörgy)     "]
[null,null,null,null,null,null,null,null,null,null,null,null,null,null,null,null,null,null,null,null,null,null,null,null,null,null,9024,null,null,null,5324,"Tomajmonostora                     "]
[null,null,null,null,null,null,null,null,null,null,null,null,null,null,null,null,null,null,null,null,null,null,null,null,null,null,9025,null,null,null,5340,"Kunhegyes                          "]
[null,null,null,null,null,null,null,null,null,null,null,null,null,null,null,null,null,null,null,null,null,null,null,null,null,null,9026,null,null,null,5349,"Kenderes (Bánhalma)                "]
[null,null,null,null,null,null,null,null,null,null,null,null,null,null,null,null,null,null,null,null,null,null,null,null,null,null,9027,null,null,null,5350,"Tiszafüred                         "]
[null,null,null,null,null,null,null,null,null,null,null,null,null,null,null,null,null,null,null,null,null,null,null,null,null,null,9028,null,null,null,5351,"Tiszafüred                         "]
[null,null,null,null,null,null,null,null,null,null,null,null,null,null,null,null,null,null,null,null,null,null,null,null,null,null,9029,null,null,null,5358,"Tiszafüred (Tiszaörvény)           "]
[null,null,null,null,null,null,null,null,null,null,null,null,null,null,null,null,null,null,null,null,null,null,null,null,null,null,9030,null,null,null,5362,"Tiszaörs                           "]
[null,null,null,null,null,null,null,null,null,null,null,null,null,null,null,null,null,null,null,null,null,null,null,null,null,null,"Keres",{"$f":"IF(VLOOKUP(Haz!C4,AA2:AB267,1,0),1,0)","v":1},null,null,5363,"Nagyiván                           "]
[null,null,null,null,null,null,null,null,null,null,null,null,null,null,null,null,null,null,null,null,null,null,null,null,null,null,null,null,null,null,5400,"Mezőtúr                            "]
[null,null,null,null,null,null,null,null,null,null,null,null,null,null,null,null,null,null,null,null,null,null,null,null,null,null,null,null,null,null,5411,"Kétpó                              "]
[null,null,null,null,null,null,null,null,null,null,null,null,null,null,null,null,null,null,null,null,null,null,null,null,null,null,null,null,null,null,5420,"Túrkeve                            "]
[null,null,null,null,null,null,null,null,null,null,null,null,null,null,null,null,null,null,null,null,null,null,null,null,null,null,null,null,null,null,5452,"Mesterszállás                      "]
[null,null,null,null,null,null,null,null,null,null,null,null,null,null,null,null,null,null,null,null,null,null,null,null,null,null,null,null,null,null,5500,"Gyomaendrőd (Gyoma)                "]
[null,null,null,null,null,null,null,null,null,null,null,null,null,null,null,null,null,null,null,null,null,null,null,null,null,null,null,null,null,null,5502,"Gyomaendrőd (Endrőd)               "]
[null,null,null,null,null,null,null,null,null,null,null,null,null,null,null,null,null,null,null,null,null,null,null,null,null,null,null,null,null,null,5510,"Dévaványa                          "]
[null,null,null,null,null,null,null,null,null,null,null,null,null,null,null,null,null,null,null,null,null,null,null,null,null,null,null,null,null,null,5515,"Ecsegfalva                         "]
[null,null,null,null,null,null,null,null,null,null,null,null,null,null,null,null,null,null,null,null,null,null,null,null,null,null,null,null,null,null,5516,"Körösladány                        "]
[null,null,null,null,null,null,null,null,null,null,null,null,null,null,null,null,null,null,null,null,null,null,null,null,null,null,null,null,null,null,5520,"Szeghalom                          "]
[null,null,null,null,null,null,null,null,null,null,null,null,null,null,null,null,null,null,null,null,null,null,null,null,null,null,null,null,null,null,5525,"Füzesgyarmat                       "]
[null,null,null,null,null,null,null,null,null,null,null,null,null,null,null,null,null,null,null,null,null,null,null,null,null,null,null,null,null,null,5526,"Kertészsziget                      "]
[null,null,null,null,null,null,null,null,null,null,null,null,null,null,null,null,null,null,null,null,null,null,null,null,null,null,null,null,null,null,5527,"Bucsa                              "]
[null,null,null,null,null,null,null,null,null,null,null,null,null,null,null,null,null,null,null,null,null,null,null,null,null,null,null,null,null,null,5530,"Vésztő                             "]
[null,null,null,null,null,null,null,null,null,null,null,null,null,null,null,null,null,null,null,null,null,null,null,null,null,null,null,null,null,null,5534,"Okány                              "]
[null,null,null,null,null,null,null,null,null,null,null,null,null,null,null,null,null,null,null,null,null,null,null,null,null,null,null,null,null,null,5536,"Körösújfalu                        "]
[null,null,null,null,null,null,null,null,null,null,null,null,null,null,null,null,null,null,null,null,null,null,null,null,null,null,null,null,null,null,5537,"Zsadány                            "]
[null,null,null,null,null,null,null,null,null,null,null,null,null,null,null,null,null,null,null,null,null,null,null,null,null,null,null,null,null,null,5538,"Biharugra                          "]
[null,null,null,null,null,null,null,null,null,null,null,null,null,null,null,null,null,null,null,null,null,null,null,null,null,null,null,null,null,null,5539,"Körösnagyharsány                   "]
[null,null,null,null,null,null,null,null,null,null,null,null,null,null,null,null,null,null,null,null,null,null,null,null,null,null,null,null,null,null,5540,"Szarvas                            "]
[null,null,null,null,null,null,null,null,null,null,null,null,null,null,null,null,null,null,null,null,null,null,null,null,null,null,null,null,null,null,5561,"Békésszentandrás                   "]
[null,null,null,null,null,null,null,null,null,null,null,null,null,null,null,null,null,null,null,null,null,null,null,null,null,null,null,null,null,null,5621,"Csárdaszállás                      "]
[null,null,null,null,null,null,null,null,null,null,null,null,null,null,null,null,null,null,null,null,null,null,null,null,null,null,null,null,null,null,5622,"Köröstarcsa                        "]
[null,null,null,null,null,null,null,null,null,null,null,null,null,null,null,null,null,null,null,null,null,null,null,null,null,null,null,null,null,null,5623,"Békéscsaba (Gerla)                 "]
[null,null,null,null,null,null,null,null,null,null,null,null,null,null,null,null,null,null,null,null,null,null,null,null,null,null,null,null,null,null,5624,"Doboz                              "]
[null,null,null,null,null,null,null,null,null,null,null,null,null,null,null,null,null,null,null,null,null,null,null,null,null,null,null,null,null,null,5630,"Békés                              "]
[null,null,null,null,null,null,null,null,null,null,null,null,null,null,null,null,null,null,null,null,null,null,null,null,null,null,null,null,null,null,5641,"Tarhos                             "]
[null,null,null,null,null,null,null,null,null,null,null,null,null,null,null,null,null,null,null,null,null,null,null,null,null,null,null,null,null,null,5643,"Bélmegyer                          "]
[null,null,null,null,null,null,null,null,null,null,null,null,null,null,null,null,null,null,null,null,null,null,null,null,null,null,null,null,null,null,5650,"Mezőberény                         "]
[null,null,null,null,null,null,null,null,null,null,null,null,null,null,null,null,null,null,null,null,null,null,null,null,null,null,null,null,null,null,5671,"Békéscsaba (Mezőmegyer)            "]
[null,null,null,null,null,null,null,null,null,null,null,null,null,null,null,null,null,null,null,null,null,null,null,null,null,null,null,null,null,null,5672,"Murony                             "]
[null,null,null,null,null,null,null,null,null,null,null,null,null,null,null,null,null,null,null,null,null,null,null,null,null,null,null,null,null,null,5703,"Gyula (József Attila Szanatórium)  "]
[null,null,null,null,null,null,null,null,null,null,null,null,null,null,null,null,null,null,null,null,null,null,null,null,null,null,null,null,null,null,5711,"Gyula (Gyulavári)                  "]
[null,null,null,null,null,null,null,null,null,null,null,null,null,null,null,null,null,null,null,null,null,null,null,null,null,null,null,null,null,null,5712,"Szabadkígyós                       "]
[null,null,null,null,null,null,null,null,null,null,null,null,null,null,null,null,null,null,null,null,null,null,null,null,null,null,null,null,null,null,5720,"Sarkad                             "]
[null,null,null,null,null,null,null,null,null,null,null,null,null,null,null,null,null,null,null,null,null,null,null,null,null,null,null,null,null,null,5725,"Kötegyán                           "]
[null,null,null,null,null,null,null,null,null,null,null,null,null,null,null,null,null,null,null,null,null,null,null,null,null,null,null,null,null,null,5726,"Méhkerék                           "]
[null,null,null,null,null,null,null,null,null,null,null,null,null,null,null,null,null,null,null,null,null,null,null,null,null,null,null,null,null,null,5727,"Újszalonta                         "]
[null,null,null,null,null,null,null,null,null,null,null,null,null,null,null,null,null,null,null,null,null,null,null,null,null,null,null,null,null,null,5731,"Sarkadkeresztúr                    "]
[null,null,null,null,null,null,null,null,null,null,null,null,null,null,null,null,null,null,null,null,null,null,null,null,null,null,null,null,null,null,6624,"Eperjes                            "]
[null,null,null,null,null,null,null,null,null,null,null,null,null,null,null,null,null,null,null,null,null,null,null,null,null,null,null,null,null,null,"Keres",{"$f":"IF(VLOOKUP(Haz!C4,AE2:AF308,1,0),1,0)","v":{"$error":"#N/A"}}]

{"sheet":"Haz","index":2,"n_rows":71,"n_cols":28,"rows_kept":71,"cut":false,"hidden":false,"merged":[[3,1,6,1],[5,20,5,21],[17,7,17,8],[17,10,17,11],[17,12,17,13],[53,23,53,25],[55,23,55,25],[29,10,29,12],[35,17,35,18],[35,23,35,25],[47,23,47,25],[32,17,32,18],[28,5,28,7],[26,5,26,7],[26,10,26,12],[26,14,26,17],[28,14,28,17],[27,10,27,12],[37,1,44,1],[48,23,48,25],[42,23,42,25],[41,23,41,25],[49,23,49,25],[3,2,3,3],[3,4,3,8],[3,9,3,14],[4,2,4,14],[5,11,5,13],[5,17,5,19],[5,2,5,6],[5,7,5,10],[17,14,17,17],[4,18,4,24],[5,22,5,24],[6,2,6,3],[6,4,6,8],[6,9,6,13],[6,20,6,21],[11,15,11,18],[14,15,14,18],[13,23,13,24],[6,22,6,24],[27,5,27,7],[25,5,25,7],[25,10,25,12],[56,8,56,9],[29,14,29,17],[47,5,47,7],[52,12,52,14],[53,12,53,14],[14,23,14,24],[20,10,20,11],[20,12,20,13],[24,10,24,12],[21,5,21,7],[22,5,22,7],[22,10,22,12],[24,5,24,7],[22,14,22,17],[23,5,23,7],[23,10,23,12],[23,14,23,17],[46,23,46,25],[43,23,43,25],[51,23,51,25],[19,14,19,17],[70,1,70,7],[53,9,53,10],[55,9,55,10],[58,23,58,25],[59,23,59,25],[63,12,63,14],[61,6,61,7],[56,12,56,14],[60,5,60,7],[61,12,61,14],[54,9,54,10],[63,16,65,25],[62,12,62,14],[57,23,57,25],[56,23,56,25],[47,12,47,14],[51,9,51,10],[52,9,52,10],[51,12,51,14],[61,19,61,20],[11,10,11,11],[14,10,14,11],[18,14,18,17],[19,8,19,9],[19,10,19,13],[18,10,18,11],[18,12,18,13],[20,14,20,17],[28,10,28,12],[21,10,21,12],[21,14,21,17],[27,14,27,17],[60,12,60,14],[25,14,25,17],[24,14,24,17],[55,12,55,14],[37,23,37,25],[44,16,45,21],[44,22,45,22],[44,23,45,25],[49,16,55,16],[52,23,52,25],[1,20,1,24],[1,16,1,17],[32,23,32,25]]}
[]
[{"$f":"Tomb!$Q$1","v":0}," Mi-Házunk 2013",null,null,null,null,"Tömbházbiztosítás",null,null,null,null,null,null,null,"Kötvényszáma;",502,null,null,null,null,{"$f":"NOW()","v":"2014-09-28T14:55:02.800"},null,null,null,null,"G 5.2",true]
[]
[null,"Szerz. / Bizt.",1075,null,"Budapest",null,null,null,null,"Rumbach Sebestyén u. 12."]
[null,null,{"$f":"IF(AND(C4>0,E4>\"\",J4>\"\"),C4&\"  \"&E4&\"  \"&J4&IF(Tomb!C55=1,\"   (Társasház)\",IF(Tomb!C55=2,\"   (Lakásszövetkezet)\",\"\")),\"\")","v":"1075  Budapest  Rumbach Sebestyén u. 12.   (Társasház)"},null,null,null,null,null,null,null,null,null,null,null,null,null,"Közvetítő;",null,{"$f":"IF(Tomb!R42=0,\"\",IF(Tomb!R42>0,VLOOKUP(Tomb!R42,Ker!A2:K150,5,0)))","v":0}]
[null,null,"kk",null,null,null,null,null,null,null,null,null,null,null,0,null,0,"50200390-8",null,null,"Kezdete;",null,"2014-12-01"]
[null,null,null,null,null,null,null,null,null,null,null,null,null,null,null,null,0,null,null,null,"Lejárata;"]
[]
[" ÁLTALÁNOS ADATOK : ",null,null,null,null,null,null,null,"ÉPÜLET ADATAI : ",null,null,null,null,null,"SZERKEZET ADATAI : "]
[]
["TULAJDONFORMA:",null,null,null,null,null,null,null,"AZ ÉPÜLET KORA: ",null,null,71,"év",null,"Falazata:",null,null,null,{"$f":"IF(Tomb!O54=5,1,0)","v":0},null,"Ép. típusa:"]
["RENDELTETÉS:",null,null,null,null,null,null,null,null,"Összes területe:",2972,null,"m2",null,{"$f":"IF(S11=1,\"éspedig:\",\"\")","v":""},"Vertfal",null,null,null,null,null,"Besorolása:",null,{"$f":"VLOOKUP(Tomb!A2,Tomb!A3:H7,4,0)&\" / \"&HLOOKUP(Tomb!D1,Tomb!E1:H7,2,0)","v":"A / II"}]
["AZ ÉPÜLET JELLEMZŐI: ",null,null,null,null,null,null,null,"Szintek száma:",null,null,8,"szint",null,"Födém:",null,null,null,null,null,"Ép. kategóriája:"]
["Műemlék (jellegű) épület:",null,null,null,null,null,null,null,"Albetétek száma:",null,null,37,"db",null,"Tűzveszélyes tev.:",null,null,null,{"$f":"IF(Tomb!W55=1,1,0)","v":0},null,"Minimális m2 ára:",null,null,{"$f":"INDEX(Tomb!E3:H7,Tomb!A2,Tomb!D1,1)","v":190000},null,{"$f":"IF(X14>0,\"Ft/m2\",0)","v":"Ft/m2"}]
["ÁFA-körbe tartozik:",null,null,null,null,null,null,null,null,"Albetétek területe:",2972,null,"m2",null,{"$f":"IF(S14=1,\"éspedig:\",\"\")","v":""},"Vegytisztítás",null,null,null,null,"Albetétek átlag ter.:",null,null,{"$f":"IF(ISERROR(K15/L14),\"Hiányzó érték\",K15/L14)","v":80.324324324324323},null,{"$f":"IF(ISERROR(K15/L14),\"\",IF(X15>0,\"m2\",\"\"))","v":"m2"}]
[]
[null,{"$f":"N(Tomb!B78)","v":1},"Épületbiztosítás biztosítási összeg számítása",null,null,null,null,null,null,null,null,null,{"$f":"IF(AND(B17=1,K15>0),\"Igen kéri!\",\"\")","v":"Igen kéri!"},null,null,null,null,{"$f":"IF(K12<K15,\"Rossz terület számok megadása!\",IF(OR(AND(Tomb!G55<5,(K15<>(H18+I19))),AND(Tomb!G55=5,K12<(I19+I21))),\"Albetétek területe nem egyezik!\",IF(AND(Tomb!G55=5,K12<(H18+I19+I21)),\"Hibásan megadott összes terület!\",\"\")))","v":""},null," AZ ÉPÜLET ÁLLAGA:",null,null,null,null,"Igen","Nem"]
[{"$f":"IF(OR(Tomb!G55=5,Tomb!D90=2,Tomb!D95=2),5,0)","v":0},{"$f":"IF(AND($B$17=1,Tomb!AB1=1),INDEX(Tomb!D2:H7,MATCH(VLOOKUP(Tomb!A2,Tomb!A3:H7,4,0),Tomb!D2:D7,0),MATCH(HLOOKUP(Tomb!D1,Tomb!E1:H7,2,0),Tomb!D2:H2,0)),IF(AND($B$17=1,Tomb!AB1=0),INDEX(Tomb!D2:H7,MATCH(VLOOKUP(Tomb!A2,Tomb!A3:H7,4,0),Tomb!D2:D7,0),MATCH(HLOOKUP(Tomb!D1,Tomb!E1:H7,2,0),Tomb!D2:H2,0))*0.9,0))","v":190000},"Lakás/iroda/üzlet össz.",null,null,null,{"$f":"IF(AND(Tomb!G55<5,B17=1),X12,\"\")","v":"A / II"},{"$f":"IF(Tomb!G55=5,0,IF(AND(Tomb!G55<5,B17=1,K15>0),K15-I19,\"\"))","v":2972},null,{"$f":"IF(H18=\"\",\"\",IF(H18>0,\"m2\",\"\"))","v":"m2"},225000,null,{"$f":"IF(AND($B$17=1,$K$15>0,K18>0),\"Ft/m2\",\"\")","v":"Ft/m2"},null,{"$f":"IF(A18=5,0,IF(AND(Tomb!G55<5,OR($B$17=0,$K$15=0,$K$15>$K$12,Tomb!$K$59=1,Tomb!$O$54=4,Tomb!$S$55=5)),0,IF(AND(Tomb!G55<5,B18>=K18),B18*H18,K18*H18)))","v":668700000},null,null,null,{"$f":"IF(Tomb!K65=Tomb!M64,\"?\",\"\")","v":""},"Beázások, csőtörések nyomai:"]
[null,{"$f":"IF(AND($B$17=1,Tomb!AB1=1,F19>\"\",H19>\"\"),INDEX(Tomb!D2:H7,MATCH(F19,Tomb!D2:D7,0),MATCH(H19,Tomb!D2:H2,0)),IF(AND($B$17=1,Tomb!AB1=0,F19>\"\",H19>\"\"),INDEX(Tomb!D2:H7,MATCH(F19,Tomb!D2:D7,0),MATCH(H19,Tomb!D2:H2,0))*0.9,0))","v":100000},null,null,null,"F",{"$f":"IF(AND(Tomb!G55=5,B17=1),X12,\"/\")","v":"/"},"I",null,{"$f":"IF(H19=\"\",\"\",IF(H19>0,\"m2\",\"\"))","v":"m2"},null,null,{"$f":"IF(AND($B$17=1,$K$15>0,K19>0),\"Ft/m2\",\"\")","v":""},null,{"$f":"IF(OR(A21=2,AND(Tomb!G55=5,K12<(I19+I21))),0,IF(OR($B$17=0,$K$15=0,$K$15>$K$12,F19=\"\",H19=\"\",Tomb!$K$59=1,Tomb!$O$54=4,Tomb!$S$55=5),0,IF(B19>=K19,B19*I19,K19*I19)))","v":0},null,null,null,{"$f":"IF(Tomb!K66=Tomb!M65,\"?\",\"\")","v":""},"Cserepezés, bádogozás hiányos:"]
[null,null,null,"   Épületnek a közös tulajdoni része:",null,null,null,null,1,null,{"$f":"SUM(O18:R19)","v":668700000},null,null,null,{"$f":"IF(AND($B$17=1,I20<=1),K20*I20,0)","v":668700000},null,null,null,{"$f":"IF(Tomb!K67=Tomb!M66,\"?\",\"\")","v":""},"45°-os ferde repedések láthatók:"]
[{"$f":"Tomb!D95","v":1},{"$f":"IF(AND($B$17=1,Tomb!AB1=1,F21>\"\",H21>\"\"),INDEX(Tomb!D2:H7,MATCH(F21,Tomb!D2:D7,0),MATCH(H21,Tomb!D2:H2,0)),IF(AND($B$17=1,Tomb!AB1=0,F21>\"\",H21>\"\"),INDEX(Tomb!D2:H7,MATCH(F21,Tomb!D2:D7,0),MATCH(H21,Tomb!D2:H2,0))*0.9,0))*0.6","v":78600},null,null,null,"F","/","II",null,{"$f":"IF(AND($B$17=0,OR(F21=\"\",H21=\"\")),\"\",IF(I21>0,\"m2\",\"\"))","v":""},null,null,{"$f":"IF(AND($B$17=1,$K$15>0,K21>0),\"Ft/m2\",\"\")","v":""},null,{"$f":"IF(OR($B$17=0,$K$15=0,$K$15>$K$12,F21=\"\",H21=\"\",Tomb!$K$59=1,Tomb!$O$54=4,Tomb!$S$55=5,K12<(H18+I19+I21)),0,IF(B21>=K21,B21*I21,K21*I21))","v":0},null,null,null,{"$f":"IF(Tomb!K68=Tomb!M67,\"?\",\"\")","v":""},"Dúcolás alátámasztás található:"]
[null,null,"Központi berendezés:",null,null,"Kaputelefonrendszer",null,null,1,{"$f":"IF(AND($B$17=0,OR(F22=\"\",H22=\"\")),\"\",IF(I22>0,\"db\",\"\"))","v":"db"},100000,null,null,{"$f":"IF(AND($B$17=1,$K$15>0,F22>\"\",I22>0,K22>0),\"Ft/db\",\"\")","v":"Ft/db"},{"$f":"IF(AND($B$17=1,$K$15>0,$K$15<=$K$12,F22>\"\",I22>0,K22>0),I22*K22,0)","v":100000},null,null,null,null,null,null,"5 éven belül","felújítva",null,null,"Felújításra szorul"]
[null,null,"Központi berendezés:",null,null,"Lift",null,null,2,{"$f":"IF(AND($B$17=0,OR(F23=\"\",H23=\"\")),\"\",IF(I23>0,\"db\",\"\"))","v":"db"},10000000,null,null,{"$f":"IF(AND($B$17=1,$K$15>0,F23>\"\",I23>0,K23>0),\"Ft/db\",\"\")","v":"Ft/db"},{"$f":"IF(AND($B$17=1,$K$15>0,$K$15<=$K$12,F23>\"\",I23>0,K23>0),I23*K23,0)","v":20000000},null,null,null,{"$f":"IF(AND(Tomb!I73,Tomb!K73),\"?\",\"\")","v":""},"Vízcső hálózat:"]
[null,null,"Kerítés fajtája:",null,null,null,null,null,null,{"$f":"IF(AND($B$17=0,OR(F24=\"\",H24=\"\")),\"\",IF(I24>0,\"fm\",\"\"))","v":""},null,null,null,{"$f":"IF(AND($B$17=1,$K$15>0,F24>\"\",I24>0,K24>0),\"Ft/fm\",\"\")","v":""},0,null,null,null,{"$f":"IF(AND(Tomb!I74,Tomb!K74),\"?\",\"\")","v":""},"Fűtéscső hálózat:"]
[null,null,"Kerítés fajtája:",null,null,null,null,null,null,{"$f":"IF(AND($B$17=0,OR(F25=\"\",H25=\"\")),\"\",IF(I25>0,\"fm\",\"\"))","v":""},null,null,null,{"$f":"IF(AND($B$17=1,$K$15>0,F25>\"\",I25>0,K25>0),\"Ft/fm\",\"\")","v":""},0,null,null,null,{"$f":"IF(AND(Tomb!I75,Tomb!K75),\"?\",\"\")","v":""},"Csatorna:"]
[null,null,"Egyéb:",null,null,null,null,null,null,{"$f":"IF(AND($B$17=0,OR(F26=\"\",H26=\"\")),\"\",IF(I26>0,\"db\",\"\"))","v":""},null,null,null,{"$f":"IF(AND($B$17=1,$K$15>0,F26>\"\",I26>0,K26>0),\"Ft/db\",\"\")","v":""},0,null,null,null,{"$f":"IF(AND(Tomb!I76,Tomb!K76),\"?\",\"\")","v":""},"Gázcső hálózat:"]
[null,null,"Egyéb:",null,null,null,null,null,null,{"$f":"IF(AND($B$17=0,OR(F27=\"\",H27=\"\")),\"\",IF(I27>0,\"db\",\"\"))","v":""},null,null,null,{"$f":"IF(AND($B$17=1,$K$15>0,F27>\"\",I27>0,K27>0),\"Ft/db\",\"\")","v":""},0,null,null,null,{"$f":"IF(AND(Tomb!I77,Tomb!K77),\"?\",\"\")","v":""},"Homlokzatok:"]
[null,null,"Közös tul. ingóságok:",null,null,null,null,null,null,{"$f":"IF(AND($B$17=0,OR(F28=\"\",H28=\"\")),\"\",IF(I28>0,\"db\",\"\"))","v":""},null,null,null,{"$f":"IF(AND($B$17=1,$K$15>0,F28>\"\",I28>0,K28>0),\"Ft/db\",\"\")","v":""},0,null,null,null,{"$f":"IF(AND(Tomb!I78,Tomb!K78),\"?\",\"\")","v":""},"Tető szerkezet:"]
[null,null,"Közös tul. ingóságok:",null,null,null,null,null,null,{"$f":"IF(AND($B$17=0,OR(F29=\"\",H29=\"\")),\"\",IF(I29>0,\"db\",\"\"))","v":""},null,null,null,{"$f":"IF(AND($B$17=1,$K$15>0,F29>\"\",I29>0,K29>0),\"Ft/db\",\"\")","v":""},0,null,null,null,{"$f":"IF(AND(Tomb!I79,Tomb!K79),\"?\",\"\")","v":""},"Tetőszigetelés:"]
[null,"   ÖSSZESEN:",null,null,null,null,null,null,null,null,{"$f":"O30*Tomb!$P$10/1000*VLOOKUP(Tomb!P64,Tomb!J10:L12,2,0)","v":688800},null,null,null,{"$f":"IF(AND(B17=1,C4>0,E4>0,J4>0,OR(O20>0,O21>0)),SUM(O20:R29),0)","v":688800000},null,null,null,{"$f":"IF(AND(Tomb!I80,Tomb!K80),\"?\",\"\")","v":""},"Tetőhéjazat:"]
[]
[null,{"$f":"N(Tomb!B79)","v":1},"ÉPÜLETBIZTOSÍTÁS DÍJTÉTELE",null,null,null,null,null,null,null,null,null,null,null,"Díjtétel ‰",null,{"$f":"N(Tomb!D78)","v":0},"GÉPJÁRMŰVEK BIZTOSÍTÁSA"]
[null,"   Alapfedezet:",null,null,null,null,null,null,null,null,null,null,"+",{"$f":"IF(AND(O30>0,B32=1),VLOOKUP(L11,Tomb!J2:L7,3),0)","v":0.9},{"$f":"IF(N33=\"\",\"\",\"‰\")","v":"‰"},null,null,{"$f":"IF(AND($O$30>0,$Q$32=1),Tomb!J31,\"\")","v":""},null,"*",null,{"$f":"IF(U33=\"\",\"\",\"db\")","v":""},"=",{"$f":"IF(AND($O$30>0,$Q$32=1,U33>0),ROUND(R33*U33,0),0)","v":0}]
[null,"Többszörözhető limit",null,null,null,null,"kétszerez",null,null,"háromszoroz",null,null,"+",{"$f":"IF(AND(O30>0,NOT(Tomb!O75)),VLOOKUP(Tomb!P64,Tomb!J10:L12,3,0),0)","v":0},{"$f":"IF(N34=\"\",\"\",\"‰\")","v":"‰"}]
[null," Be nem fejezett épület ",null,null,null,null,null,null,null,null,null,null,"+",{"$f":"IF(AND(O30>0,Tomb!N14=2),Tomb!P14,0)","v":0},{"$f":"IF(N35=\"\",\"\",\"‰\")","v":"‰"},null,{"$f":"N(Tomb!D79)","v":1},"FELVONÓK GÉPTÖRÉS BIZTOSÍTÁSA"]
[null," „C”, vagy annál magasabb tűzveszélyességű tevékenység",null,null,null,null,null,null,null,null,null,null,"+",{"$f":"IF(AND(O30>0,Tomb!N17=1),Tomb!P17,0)","v":0},{"$f":"IF(N36=\"\",\"\",\"‰\")","v":"‰"},null,null,{"$f":"IF(AND($O$30>0,$B$59=1,$Q$32=1),Tomb!J34,\"\")","v":""},null,"*",2,{"$f":"IF(U36=\"\",\"\",\"db\")","v":"db"},"=",{"$f":"IF(AND($O$30>0,$Q$35=1,U36>0),ROUND((VLOOKUP(Tomb!W65,Tomb!G34:J37,4,0)*U36),0),0)","v":12000}]
[]
[null,"engedmények","Felújítás 5 éven belül",null,null,null,null,null,null,null,null,null,"-",{"$f":"IF(AND(L11>=5,$O$30>0,Tomb!I81>0),VLOOKUP(Tomb!A21,Tomb!C20:E22,3),0)","v":0},{"$f":"IF(N38=\"\",\"\",\"‰\")","v":"‰"},null,{"$f":"N(Tomb!D83)","v":1},"TÖMBHÁZ ASSISTANCE Biztosítás",null,null,null,null,null,{"$f":"IF(AND(O30>0,M48>0,L14>0,Q38),ROUND(L14*Tomb!J39,0),0)","v":65860}]
[null,null,"Lakóépület, üzletház, iroda épület",null,null,null,null,null,null,null,null,null,"-",{"$f":"IF($O$30>0,VLOOKUP(Tomb!A24,Tomb!C23:E27,3,0),0)","v":0.05},"‰",null,null,null,{"$f":"IF(OR(B56<4,C56=0),\"\",FIXED(K56*1000,0)&\" ‰\")","v":""}]
[null,null,"Van állandó/bentlakó személyzet",null,null,null,null,null,null,{"$f":"N(Tomb!O72)","v":0},null,{"$f":"IF(J40=0,\"nincs\",IF(J40=1,\"igen van\",\"\"))","v":"nincs"},"-",{"$f":"IF(AND($O$30>0,J40=1),Tomb!E28,0)","v":0},"‰",null,"Díjfizetés;"]
[null,null,"Nem paneles technológiával készült épület",null,null,null,null,null,null,{"$f":"N(Tomb!O73)","v":1},null,{"$f":"IF(Tomb!O54=2,\"nem lehet\",IF(AND(Tomb!O54<>2,J41=0),\"nem kéri\",IF(AND(J41=1,Tomb!O54<>2),\"igaz\",\"\")))","v":"igaz"},"-",{"$f":"IF(AND($O$30>0,J41=1,Tomb!O54<>2),Tomb!E29,0)","v":0.02},"‰",null,{"$f":"IF(Tomb!A87=0,\"\",IF(Tomb!A87>0,VLOOKUP(Tomb!A88,Tomb!A88:B94,2,0),\"\"))","v":""}]
[null,null,"Önrész:",{"$f":"N(Tomb!O66)","v":0},"25 eFt",{"$f":"N(Tomb!P66)","v":0},"50 eFt",{"$f":"N(Tomb!Q67)","v":0},"100 eFt",null,{"$f":"IF(OR((D42+F42+H42)<=1),\"\",\"No melyik legyen?\")","v":""},null,"-",{"$f":"IF(OR($O$30=0,Tomb!A31=0),0,IF($O$30>0,VLOOKUP(Tomb!A31,Tomb!D30:E33,2,0),0))","v":0},"‰",null,"Lakó / üdülö épületbiztosítás",null,null,null,null,null,"+",{"$f":"M48","v":571704}]
[null,null,"Árvíz kizárása (SIGinfóban meghatározottak szerint)",null,null,null,null,null,null,{"$f":"N(Tomb!O74)","v":0},null,{"$f":"IF(Tomb!AF1=0,\"nem lehet\",IF(AND(Tomb!AF1=1,J43=0),\"nem kéri\",IF(AND(Tomb!AF1=1,J43=1),\"igen\",\"\")))","v":"nem lehet"},"-",{"$f":"IF(AND($O$30>0,J43=1,Tomb!AF1=1),Tomb!E34,0)","v":0},"‰",null,"Kiegészítő üvegbiztosítás",null,null,null,null,null,"+",{"$f":"M57","v":0}]
[null,null,"Beázás valamint rongálás károk kizárása.",null,null,null,null,null,null,{"$f":"N(Tomb!O75)","v":0},null,{"$f":"IF(J44=0,\"nem\",IF(J44=1,\"igen kéri\",\"\"))","v":"nem"},"-",{"$f":"IF(AND($O$30>0,J44=1),Tomb!E35,0)","v":0},"‰",null,"Felelősségbiztosítás",null,null,null,null,null,"+",{"$f":"M64","v":103320}]
[null,null,"Betöréses lopás, rongálás, rablás károk kizárása.",null,null,null,null,null,null,{"$f":"N(Tomb!O76)","v":0},null,{"$f":"IF(J45=0,\"nem\",IF(J45=1,\"igen kéri\",\"\"))","v":"nem"},"-",{"$f":"IF(AND($O$30>0,J45=1),Tomb!E36,0)","v":0},"‰",null,"Tömbház Assistance",null,null,null,null,null,"+",{"$f":"X38","v":65860}]
[]
[null,"   Épületbiztosítás díjtétele:",null,null,null,null,null,null,null,null,null,null,"=",{"$f":"IF(AND($B$32=1,(N33+(N34+N35+N36)-(N38+N39+N40+N41+N42+N43+N44))>0),(N33+(N34+N35+N36)-(N38+N39+N40+N41+N42+N43+N44+N45)),0)","v":0.83000000000000007},{"$f":"IF(N47=\"\",\"\",\"‰\")","v":"‰"},null,"Gépjárművek biztosítása",null,null,null,null,null,"+",{"$f":"X33","v":0}]
[null,"Éves épületbizt. díj:",null,null,null,{"$f":"IF(AND($O$30>0,$B$32=1),ROUND(O30/1000,0),\"\")","v":688800},null,null,"*",{"$f":"IF(AND($O$30>0,$N$47>0),N47,\"\")","v":0.83000000000000007},{"$f":"IF(J48=\"\",\"\",\"‰\")","v":"‰"},"=",{"$f":"IF(AND($O$30>0,$N$47>0),ROUND(F48*J48,0),0)","v":571704},null,null,null,"Felvonók géptörés biztosítása",null,null,null,null,null,"+",{"$f":"X36","v":12000}]
[null,null,null,null,null,null,null,null,null,null,null,null,null,null,null,null,null,"DÍJ ÖSSZESEN;",null,null,null,null,"=",{"$f":"IF(Tomb!$A$87=0,SUM(X42:Z48),0)","v":752884}]
[null,{"$f":"N(Tomb!F78)","v":1},"Üvegbiztosítás",null,null,null,null,null,null,null,null,null,null,2000,null,null,"Engedmények","Mennyiségi",null,null,{"$f":"IF(K18<180000,0,IF(AND($X$49>0,$V$50=1),INDEX(Tomb!M20:P51,MATCH(Tomb!P19,Tomb!M20:M51,1)+MATCH(Tomb!O19,Tomb!N20:N27,1)-1,4),\"\"))","v":0.14000000000000001},{"$f":"N(Tomb!D81)","v":1},"-",{"$f":"IF(K18<180000,0,IF(AND($X$49>0,$V$50=1),ROUND(INDEX(Tomb!M20:P51,MATCH(Tomb!P19,Tomb!M20:M51,1)+MATCH(Tomb!O19,Tomb!N20:N27,1)-1,4)*X49,0),0))","v":105404}]
[null,{"$f":"Tomb!G63","v":1},null,"Üvegtípus",null,null,null,"Bizt felület",null,"Bö.;  Ft",null,"Díjtétel %",null,"Díj   Ft"]
[null,1,{"$f":"IF(AND($O$30>0,$B$50=1,$B$51=2),INDEX(Tomb!R20:U29,B52,1),0)","v":0},{"$f":"IF(AND($O$30>0,$B$50=1,$B$51=2,B52>0,B52<11,M52>0),1,0)","v":0},null,null,{"$f":"VLOOKUP(B52,Tomb!$T$20:$U$29,2,0)","v":0},null,{"$f":"IF(H52>0,\"m2\",\"\")","v":""},null,null,{"$f":"IF(OR($O$30=0,$B$50=0,$B$51=1,$B$51=3),\"\",G52)","v":""},{"$f":"IF(OR($O$30=0,$B$50=0,$B$51=1,$B$51=3),0,ROUND(G52*J52,0))","v":0},null,null,null,null,"Kockázati",null,null,{"$f":"IF($X$49>0,INDEX(Tomb!Q74:Q86,Tomb!R73,1),0)","v":0},null,"-",{"$f":"IF(AND($X$49>0,U52>0),ROUND($X$49*U52,0),0)","v":0},null,null,null,{"$f":"U52","v":0}]
[null,1,{"$f":"IF(AND($O$30>0,$B$50=1,$B$51=2),INDEX(Tomb!R20:U29,B53,1),0)","v":0},{"$f":"IF(AND($O$30>0,$B$50=1,$B$51=2,B53>0,B53<11,M53>0),1,0)","v":0},null,null,{"$f":"VLOOKUP(B53,Tomb!$T$20:$U$29,2,0)","v":0},null,{"$f":"IF(H53>0,\"m2\",\"\")","v":""},null,null,{"$f":"IF(OR($O$30=0,$B$50=0,$B$51=1,$B$51=3),\"\",G53)","v":""},{"$f":"IF(OR($O$30=0,$B$50=0,$B$51=1,$B$51=3),0,ROUND(G53*J53,0))","v":0},null,null,null,null,"Inkasszó",null,null,{"$f":"IF(AND(Tomb!D82,$X$49>0,Da!$Z$180=1),Tomb!T75,\"\")","v":""},null,"-",{"$f":"IF(U53=\"\",0,IF(AND($X$49>0,U53>0),ROUND($X$49*U53,0),0))","v":0}]
[null,1,{"$f":"IF(AND($O$30>0,$B$50=1,$B$51=2),INDEX(Tomb!R20:U29,B54,1),0)","v":0},{"$f":"IF(AND($O$30>0,$B$50=1,$B$51=2,B54>0,B54<11,M54>0),1,0)","v":0},null,null,{"$f":"VLOOKUP(B54,Tomb!$T$20:$U$29,2,0)","v":0},null,{"$f":"IF(H54>0,\"m2\",\"\")","v":""},null,null,{"$f":"IF(OR($O$30=0,$B$50=0,$B$51=1,$B$51=3),\"\",G54)","v":""},{"$f":"IF(OR($O$30=0,$B$50=0,$B$51=1,$B$51=3),0,ROUND(G54*J54,0))","v":0},null,null,null,null,"Képviselői",null,null,{"$f":"IF($X$49>0,INDEX(Tomb!T78:T82,Tomb!U77,1),0)","v":0},null,"-",{"$f":"IF(AND($X$49>0,U54>0),ROUND($X$49*U54,0),0)","v":0}]
[]
[null,1,{"$f":"IF(AND($O$30>0,$B$50=1,$B$51=3),INDEX(Tomb!R30:U30,B56,1),0)","v":0},{"$f":"IF(B51=3,1,0)","v":0},null,{"$f":"O20*0.05%","v":334350},{"$f":"VLOOKUP(B56,Tomb!$T$30:$U$30,2,0)","v":0.15},null,{"$f":"IF(J56<=F56,J56,F56)","v":0},null,null,{"$f":"IF(OR($O$30=0,$B$50=0,$B$51=1,$B$51=2),\"\",G56)","v":""},{"$f":"IF(OR($O$30=0,$B$50=0,$B$51=1,$B$51=2),0,IF(AND($O$30>0,$B$50=1,$B$51=3,J56<=F56),ROUND(G56*J56,0),IF(AND($O$30>0,$B$50=1,$B$51=3,J56>F56),ROUND(G56*F56,0),0)))","v":0},null,null,null,null,"VIG",null,null,{"$f":"IF(AND($X$49>0,VIG!$GY$59,VIG!$M$59>0),VIG!$M$59,0)","v":0},null,"-",{"$f":"IF(AND($X$49>0,U56>0),ROUND($X$49*U56,0),0)","v":0}]
[null,null,null,null,null,null,null,"Biztosítási összeg Ft:",{"$f":"IF(OR(O30=0,B50=0,B51=1),0,IF(AND(O30>0,B50=1,B51=3),I56,SUMIF(D52:D54,\"=1\",J52:K54)))","v":0},null,null,"Éves díj:",{"$f":"IF(OR(O30=0,B50=0,B51=1),0,SUMIF(D52:D56,\"=1\",M52:O56))","v":0},null,null,null,null,"ÉVES DÍJ;",null,null,null,null,"=",{"$f":"IF(X49=0,0,IF(X49-(X50+X52+X54+X56)>=Tomb!I45,X49-(X50+X53+X52+X54+X56),Tomb!I45))","v":647480}]
[null,null,null,null,null,null,null,null,null,null,null,null,null,null,null,null,"Részletfizetési pótdíj",null,null,null,{"$f":"IF(X57>0,VLOOKUP(Tomb!I49,Tomb!A44:G47,7,0),0)","v":0},null,"+",{"$f":"X57*U58","v":0}]
[null,{"$f":"N(Tomb!B80)","v":1},"FELELŐSSÉGBIZTOSÍTÁS DÍJTÉTELE",null,null,null,null,null,null,null,null,null,null,null,null,null,"Fizetendő éves díj;",null,null,null,null,null,"=",{"$f":"X57+X58","v":647480}]
[null,{"$f":"N(Tomb!B81)","v":1}," Ingatlantulajdonosi:",null,null,null,null,null,null,null,null,null,"+",{"$f":"IF(AND($O$30>0,$B$59=1,$B$60=1),IF(Tomb!K55=2,Tomb!I23+(IF(Tomb!G74=1,Tomb!I20,IF(Tomb!G74=2,Tomb!J20,0))),INDEX(Tomb!I20:J22,VLOOKUP(Tomb!C73,Tomb!H20:J22,1,0),HLOOKUP(Tomb!G74,Tomb!I19:J22,1,0))),0)","v":0.15000000000000002},{"$f":"IF(N60=\"\",\"\",\"‰\")","v":"‰"},null,"1/",{"$f":"IF(Tomb!I49=1,1,IF(Tomb!I49=2,2,IF(Tomb!I49=3,4,IF(Tomb!I49=4,12))))","v":1},"-éves díjrészlet",null,null,{"$f":"IF(Tomb!I49=Tomb!H49,\"\",\"!!!\")","v":""},"=",{"$f":"ROUNDUP(X59/R60,0)","v":647480}]
[null,"Éves díj:",null,null,null,{"$f":"IF(AND($O$30>0,$B$59=1),ROUND(O30/1000,0),\"\")","v":688800},null,null,"*",{"$f":"IF(AND($O$30>0,$B$59=1,$N$60>0),N60,\"\")","v":0.15000000000000002},{"$f":"IF(J61=\"\",\"\",\"‰\")","v":"‰"},"=",{"$f":"IF(AND($O$30>0,$N$60>0),ROUND(F61*J61,0),0)","v":103320}]
[null,{"$f":"N(Tomb!B82)","v":0}," Munkáltatói:",null,null,null,{"$f":"IF(AND($O$30>0,$B$59=1,$B$62=1),Tomb!J28/1000,\"\")","v":""},null,"*",null,{"$f":"IF(J62=\"\",\"\",\"Fő\")","v":""},"=",{"$f":"IF(AND($O$30>0,$B$59=1,$B$60=1,$B$62=1,J62>0),ROUND(G62*1000*J62,0),0)","v":0},null,null,null,null,"Egyéb adatok:",null,{"$f":"IF(K15=0,\"\",X59/K15/12)","v":18.155002243158368},null,{"$f":"IF(T62>0,\"Ft/m2/hó\",\"\")","v":"Ft/m2/hó"},null,"Fizetendő"]
[null,{"$f":"N(Tomb!B83)","v":0},"Közös képviselői felelősségbiztosítás:",null,null,null,null,null,null,null,null,null,{"$f":"IF(AND($O$30>0,$B$59=1,$B$60=1,$B$63=1),ROUND(Tomb!$J$29*Tomb!$I$29,0),0)","v":0},null,null,null,0,"Megjegyzés:",null,{"$f":"LEN(Q64)","v":0},{"$f":"IF(AND(O30>0,X59>0),X59/O30*1000*((X42+X44)/X49),\"\")","v":0.84279968760127721},{"$f":"Tomb!R95","v":0.93100000000000005},{"$f":"IF(U63>0,\"‰\",\"\")","v":"‰"},"Összevont szorzó"]
[null,"Felelősségbiztosítás éves díja:",null,null,null,null,null,null,null,null,null,null,{"$f":"IF(AND($O$30>0,$B$59>0),SUM(M61:O63),0)","v":103320}]
[]
[]
[]
[]
[null,{"$f":"IF($A$2=0,\"Kár lenne ezt kinyomtatnod, mert csak sok festék fogyna teljesen feleslegesen, ez csupán a számolótábla!\nPróbálkozz a részletezővel!\",IF($A$2=1,\"A számoló program érvényessége lejárt, ha tetszett, ideje elgondolkodni a jogdíjon, ha nem tetszett, akkor egyszerűen csak töröld le!\",\"\"))","v":"Kár lenne ezt kinyomtatnod, mert csak sok festék fogyna teljesen feleslegesen, ez csupán a számolótábla!\nPróbálkozz a részletezővel!"}]
[]
[null,{"$f":"NOW()","v":"2014-09-28T14:55:02.800"},null,null,null,null,null,null,null,null,null,null,null,null,null,null,"Készítette; Tóth Géza"]

{"sheet":"VIG","index":3,"n_rows":69,"n_cols":208,"rows_kept":69,"cut":false,"hidden":false,"merged":[[58,12,58,13],[66,19,66,20],[58,22,58,24],[58,19,58,21],[60,19,60,20],[66,21,66,24],[64,21,64,24],[64,15,64,18],[58,14,58,15],[60,21,60,24],[64,19,64,20],[60,15,60,18],[62,21,62,24],[62,14,62,15],[62,19,62,20],[16,22,16,25],[17,22,17,25],[39,4,39,10],[43,21,43,24],[43,17,43,20],[19,19,21,21],[19,22,21,24],[40,11,40,15],[39,21,39,24],[40,21,40,24],[50,21,50,24],[41,11,41,15],[41,21,41,24],[39,11,39,15],[45,11,45,15],[45,21,45,24],[45,17,45,20],[47,17,47,20],[47,21,47,24],[48,17,48,20],[48,21,48,24],[49,21,49,24],[52,21,52,24],[54,21,54,24],[55,21,55,24],[57,21,57,24],[54,14,54,15],[55,14,55,15],[57,14,57,15],[56,21,56,24],[56,14,56,15]]}
[]
["Szerződésre vonatkozó adatok;"]
[]
[null,"Szerződő/Biztisított:",null,null,null,null,{"$f":"Haz!C5","v":"1075  Budapest  Rumbach Sebestyén u. 12.   (Társasház)"}]
[null,"Eljáró személy:",null,null,null,null,{"$f":"IF(Haz!O7=0,Haz!C6&\" (azonos címen)\",IF(Haz!O7=1,CONCATENATE(Haz!C6&\" \"&Haz!E7&\" \"&Haz!J7),\"\"))&IF(OR(Haz!L6=\"\",Haz!L6=0),\"\",\" e-mail: \"&Haz!L6)","v":"kk (azonos címen)"}]
[null,"Biztosításközvetítő:",null,null,null,null,{"$f":"IF(Tomb!R42=0,\"\",IF(Tomb!R42>0,VLOOKUP(Tomb!R42,Ker!A2:K150,5,0)))&\"   (\"&IF(Tomb!R42=0,\"\",IF(Tomb!R42>0,VLOOKUP(Tomb!T42,Tomb!R43:S50,2,0)))&\")\"","v":{"$error":"#N/A"}}]
[]
[]
["Épületre vonatkozó adatok;"]
[]
[null,"Tulajdonforma:",null,null,null,null,{"$f":"INDEX(Tomb!A56:A57,Tomb!C55)","v":"Társasházi tulajdon"},null,null,null,null,null,null,null,null,null,null,"Az épület kora:",null,null,null,null,{"$f":"IF(OR(Haz!L11=\"\",Haz!L11=0),\"Nincs válasz!\",Haz!L11&\" éve épült.\")","v":"71 éve épült."}]
[null,"Rendeltetés:",null,null,null,null,{"$f":"INDEX(Tomb!E56:E60,Tomb!G55)","v":"Lakóépület"},null,null,null,null,null,null,null,null,null,null,"Összes területe:",null,null,null,null,{"$f":"IF(OR(Haz!K12=\"\",Haz!K12=0),\"Nincs válasz!\",FIXED(Haz!K12,0)&\" m2\")","v":"2 972 m2"}]
[null,"Az épület jellemzői:",null,null,null,null,{"$f":"IF(Tomb!K55=1,\"Befejezett,\",IF(Tomb!K55=2,\"Nem befejezett,\",0))&\" \"&IF(Tomb!K59=1,\"műemlék(jellegű) épület.\",IF(Tomb!K59=2,\"nem műemlék(jellegű) épület.\",0))","v":"Befejezett, nem műemlék(jellegű) épület."},null,null,null,null,null,null,null,null,null,null,"Szintek száma:",null,null,null,null,{"$f":"IF(OR(Haz!L13=\"\",Haz!L13=0),\"Nincs válasz!\",Haz!L13&\" szintes.\")","v":"8 szintes."}]
[null,null,null,{"$f":"\"Tűzveszélyes tevékenységet \"&IF(Tomb!W55=1,\"folytatnak. (\"&Haz!$P$15&\")\",IF(Tomb!W55=2,\"nem folytatnak.\",\"\"))","v":"Tűzveszélyes tevékenységet nem folytatnak."},null,null,null,null,null,null,null,null,null,null,null,null,null,"Albetétek száma:",null,null,null,null,{"$f":"IF(OR(Haz!L14=\"\",Haz!L14=0),\"Nincs válasz!\",Haz!L14&\" db.\")","v":"37 db."}]
[null,"Az épület típusa:",null,null,null,null,{"$f":"INDEX(Tomb!A66:A67,Tomb!C65)","v":"Hagyományos tech."},null,null,null,null,null,null,null,null,null,null,"Albetétek területe:",null,null,null,null,{"$f":"IF(OR(Haz!K15=\"\",Haz!K15=0),\"Nincs válasz!\",FIXED(Haz!K15,0)&\" m2\")","v":"2 972 m2"}]
[null,"Az épület falazata:",null,null,null,null,{"$f":"INDEX(Tomb!M55:M59,Tomb!O54)&\" \"&IF(AND(Tomb!O54>=1,Tomb!O54<5),\"\",IF(Tomb!O54=5,\"\"&\"(\"&Haz!P12&\")\"))","v":"Tégla "},null,null,null,null,null,null,null,null,null,null,"Az épület besorolása:",null,null,null,null,null,{"$f":"Haz!X12","v":"A / II"}]
[null,"Az épület födéme:",null,null,null,null,{"$f":"INDEX(Tomb!Q56:Q60,Tomb!S55)","v":"Beton födém"},null,null,null,null,null,null,null,null,null,null,"Minimális m2 ára:",null,null,null,null,{"$f":"FIXED(Haz!X14,0)&\" \"&Haz!Z14","v":"190 000 Ft/m2"}]
[null,"Az épület kategóriája:",null,null,null,null,{"$f":"INDEX(Tomb!E66:E69,Tomb!G65)","v":"Átlagos"},null,null,null,null,null,null,null,null,null,null,"Alkalmazott m2 ára:",null,null,null,null,{"$f":"FIXED(Haz!K18,0)&\" \"&Haz!M18","v":"225 000 Ft/m2"}]
[]
["Épület állaga:",null,null,null,null,null,null,null,null,null,null,null,null,null,null,null,null,null,null,"5 éven belül felújítva",null,null,"Felújításra szorul"]
[]
[null,"Beázások csőtörések nyomai láthatók:",null,null,null,null,null,null,null,null,{"$f":"IF(NOT(Tomb!N64),\"Nincs válasz!\",IF(Tomb!K65,\"Igaz!\",IF(Tomb!M64,\"Nem igaz!\",\"\")))","v":"Nem igaz!"},null,null,null,null,null,null,null,null,null,null,null,"Felújításra szorul"]
[null,"Cserepezés, bádogozás hiányos:",null,null,null,null,null,null,null,null,{"$f":"IF(NOT(Tomb!N65),\"Nincs válasz!\",IF(Tomb!K66,\"Igaz!\",IF(Tomb!M65,\"Nem igaz!\",\"\")))","v":"Nem igaz!"},null,null,null,null,"Vízcső hálózat:",null,null,null,null,{"$f":"IF(AND(Tomb!I73,Tomb!L73),\"X\",0)","v":0},null,null,{"$f":"IF(AND(Tomb!K73,Tomb!L73),\"X\",0)","v":0}]
[null,"45°-os ferde repedések láthatók:",null,null,null,null,null,null,null,null,{"$f":"IF(NOT(Tomb!N66),\"Nincs válasz!\",IF(Tomb!K67,\"Igaz!\",IF(Tomb!M66,\"Nem igaz!\",\"\")))","v":"Nem igaz!"},null,null,null,null,"Fűtéscső hálózat:",null,null,null,null,{"$f":"IF(AND(Tomb!I74,Tomb!L74),\"X\",0)","v":0},null,null,{"$f":"IF(AND(Tomb!K74,Tomb!L74),\"X\",0)","v":0}]
[null,"Dúcolás alátámasztás található:",null,null,null,null,null,null,null,null,{"$f":"IF(NOT(Tomb!N67),\"Nincs válasz!\",IF(Tomb!K68,\"Igaz!\",IF(Tomb!M67,\"Nem igaz!\",\"\")))","v":"Nem igaz!"},null,null,null,null,"Csatorna:",null,null,null,null,{"$f":"IF(AND(Tomb!I75,Tomb!L75),\"X\",0)","v":0},null,null,{"$f":"IF(AND(Tomb!K75,Tomb!L75),\"X\",0)","v":0}]
[null,null,null,null,null,null,null,null,null,null,null,null,null,null,null,"Gázcső hálózat:",null,null,null,null,{"$f":"IF(AND(Tomb!I76,Tomb!L76),\"X\",0)","v":0},null,null,{"$f":"IF(AND(Tomb!K76,Tomb!L76),\"X\",0)","v":0}]
["Egyéb kockázatvállalást befolyásoló tényezők:",null,null,null,null,null,null,null,null,null,null,null,null,null,null,"Homlokzatok:",null,null,null,null,{"$f":"IF(AND(Tomb!I77,Tomb!L77),\"X\",0)","v":0},null,null,{"$f":"IF(AND(Tomb!K77,Tomb!L77),\"X\",0)","v":0}]
[null,"Állandó személyzet:",null,null,null,null,{"$f":"IF(Haz!J40=0,\"Nincs.\",IF(Haz!J40=1,\"Igen van.\",\"\"))","v":"Nincs."},null,null,null,null,null,null,null,null,"Tető szerkezet:",null,null,null,null,{"$f":"IF(AND(Tomb!I78,Tomb!L78),\"X\",0)","v":0},null,null,{"$f":"IF(AND(Tomb!K78,Tomb!L78),\"X\",0)","v":0}]
[null,"Választott önrész:",null,null,null,null,{"$f":"IF(Tomb!A31=1,\"Nincs.\",INDEX(Tomb!C30:C33,Tomb!A31)&\" eFt/kár levonásos.\")","v":"Nincs."},null,null,null,null,null,null,null,null,"Tetőszigetelés:",null,null,null,null,{"$f":"IF(AND(Tomb!I79,Tomb!L79),\"X\",0)","v":0},null,null,{"$f":"IF(AND(Tomb!K79,Tomb!L79),\"X\",0)","v":0}]
[null,"Árvíz kizárása (SIGinfó szerint):",null,null,null,null,null,null,null,{"$f":"IF(AND(Haz!J43=1,Tomb!AF1=1),\"Igen, kizárásra került.\",\"Nem került kizárásra.\")","v":"Nem került kizárásra."},null,null,null,null,null,"Tetőhéjazat:",null,null,null,null,{"$f":"IF(AND(Tomb!I80,Tomb!L80),\"X\",0)","v":0},null,null,{"$f":"IF(AND(Tomb!K80,Tomb!L80),\"X\",0)","v":0}]
[null,"Többszörözhető limittel rend.",null,null,null,null,null,null,null,{"$f":"IF(Haz!J44=1,\"Igen, kizárásra került.\",\"Nem került kizárásra.\")","v":"Nem került kizárásra."}]
[null,"Többszörözhető limittel rendelkezők.",null,null,null,null,null,null,null,null,{"$f":"IF(AND(Haz!J44=0,Tomb!P64=0),\"Nincs többszörözés!\",IF(AND(Haz!J44=0,Tomb!P64=1),\"Kártárítési limit 2 szerezése!\",IF(AND(Haz!J44=0,Tomb!P64=2),\"Kártárítési limit 3 szorozása!\",\"\")))","v":"Nincs többszörözés!"},null,null,null,null,null,null,{"$f":"IF(Haz!J44=0,FIXED(Haz!K30,0)&\" Ft éves kártérítési limittel.\",\"\")","v":"688 800 Ft éves kártérítési limittel."}]
[]
[]
[]
["Biztosítási összegek meghatározása:"]
[]
[null,"Biztosított vagyontárgyak:",null,null,null,null,null,null,null,null,null,"Kártérítési határok:",null,null,null,null,null,null,"Díjtétel",null,null,null,"Éves díjak:"]
[]
[null,"   Épület:",null,null,{"$f":"Haz!I20*100&\" % közöstul. arány.\"","v":"100 % közöstul. arány."},null,null,null,null,null,null,{"$f":"IF(Haz!O30>0,Haz!O20,0)","v":668700000}]
[null,"   Egyéb ingóságok:",null,null,null,null,null,null,null,null,null,{"$f":"IF(Haz!O30>0,SUM(Haz!O21:R29),0)","v":20100000}]
[null,"   Üveg átalány:",null,null,null,null,null,null,null,null,null,{"$f":"IF(Haz!O30>0,FIXED(Haz!O20*0.0002,0)&\" Ft\",0)","v":"133 740 Ft"}]
[]
[null,null,null,null,"Díj:",null,null,null,null,null,null,null,null,null,null,null,null,{"$f":"IF(OR(SUM(L40:P41)=0,V44=0),0,V44/(L40+L41)*1000)","v":0.83},null,null,null,{"$f":"IF(Haz!X42>0,Haz!X42,0)","v":571704}]
[]
[null,"   Kiegészítő üveg:",null,null,null,null,null,null,null,null,null,{"$f":"IF(Haz!I57>0,Haz!I57,0)","v":0},null,null,null,null,null,{"$f":"IF(OR(L46=0,V46=0),0,V46/(L46)*1000)","v":0},null,null,null,{"$f":"IF(Haz!X43>0,Haz!X43,0)","v":0}]
[null,"   Felelősség:"]
[null,null,"Ingatlantulajdonosi:",null,null,null,null,{"$f":"IF(V48>0,Tomb!N116,0)","v":"Alap 15 mFt/kár/év + Bővített 7,5 mFt/kár"},null,null,null,null,null,null,null,null,null,{"$f":"IF(V48=0,0,Haz!J61)","v":0.15000000000000002},null,null,null,{"$f":"IF(Haz!X44>0,Haz!M61,0)","v":103320}]
[null,null,"Munkáltatói:",null,null,null,null,{"$f":"IF(V48>0,Tomb!U117,0)","v":"      "},null,null,null,null,null,null,null,null,null,{"$f":"IF(OR(L49=0,V49=0),0,V49/(L49)*1000)","v":0},null,null,null,{"$f":"IF(Haz!X44>0,Haz!M62,0)","v":0}]
[null,"   Gépjárművek biztosítása:",null,null,null,null,null,null,{"$f":"IF(V50>0,FIXED(Tomb!I31,0)&\" Ft/jármű/év\"&\"     \"&Haz!U33&\" db gépjárműre.\",\"\")","v":""},null,null,null,null,null,null,null,null,null,null,null,null,{"$f":"IF(Haz!X47>0,Haz!X47,0)","v":0}]
[null,"   Felvonók géptörés biztosítása:",null,null,null,null,null,null,null,{"$f":"IF(AND(Tomb!D79,V51>0),FIXED(VLOOKUP(Tomb!W65,Tomb!G34:J37,2,0),0)&\" eFt/kár \"&FIXED(VLOOKUP(Tomb!W65,Tomb!G34:J37,3,0),0)&\" eFt/év/felv.\"&\"    \"&Haz!U36&\" db felvonóra.\",0)","v":"150 eFt/kár 500 eFt/év/felv.    2 db felvonóra."},null,null,null,null,null,null,null,null,null,null,null,{"$f":"IF(Haz!X48>0,Haz!X48,0)","v":12000}]
[]
[null,null,null,null,"DÍJ ÖSSZESEN;",null,null,null,null,null,null,null,null,null,null,null,null,null,null,null,null,{"$f":"IF(Haz!X49>0,Haz!X49,0)","v":752884}]
[]
[null,null,null,null,null,null,null,"Mennyiségi engedmény:",null,null,null,null,null,null,{"$f":"IF(Haz!U50>0,Haz!U50,0)","v":0.14000000000000001},null,null,null,null,null,null,{"$f":"IF(Haz!X50>0,Haz!X50*-1,0)","v":-105404}]
[null,null,null,null,null,null,null,"Kockázati engedmény:",null,null,null,null,null,null,{"$f":"IF(Haz!U52>0,Haz!U52,0)","v":0},null,null,null,null,null,null,{"$f":"IF(Haz!X52>0,Haz!X52*-1,0)","v":0}]
[null,null,null,null,null,null,null,"Inkasszó engedmény:",null,null,null,null,null,null,{"$f":"IF(Haz!U53>0,Haz!U53,0)","v":""},null,null,null,null,null,null,{"$f":"IF(Haz!X53>0,Haz!X53*-1,0)","v":0}]
[null,null,null,null,null,null,null,"Képviselői engedmény:",null,null,null,null,null,null,{"$f":"IF(Haz!U54>0,Haz!U54,0)","v":0},null,null,null,null,null,null,{"$f":"IF(Haz!X54>0,Haz!X54*-1,0)","v":0}]
[null,null,null,null,null,null,null,"VIG engedmény:",null,null,null,null,0.05,null,{"$f":"IF(AND(GY59,M59>0),\"\",IF(AND(NOT(GY59),M59=0),INDEX(Tomb!W74:W94,Tomb!X73,1),0))","v":0},null,{"$f":"IF(AND(GY59,M59>0),\"-al köthető\",IF(AND(NOT(GY59),O59>0),\" kérése\",\"\"))","v":""},null,null,{"$f":"IF(NOT(GY59),ROUND((INDEX(Tomb!W74:W94,Tomb!X73,1)*Haz!X49*-1),0),0)","v":-75288},null,null,{"$f":"IF(Haz!X56>0,Haz!X56*-1,0)","v":0},null,null,null,null,null,null,null,null,null,null,null,null,null,null,null,null,null,null,null,null,null,null,null,null,null,null,null,null,null,null,null,null,null,null,null,null,null,null,null,null,null,null,null,null,null,null,null,null,null,null,null,null,null,null,null,null,null,null,null,null,null,null,null,null,null,null,null,null,null,null,null,null,null,null,null,null,null,null,null,null,null,null,null,null,null,null,null,null,null,null,null,null,null,null,null,null,null,null,null,null,null,null,null,null,null,null,null,null,null,null,null,null,null,null,null,null,null,null,null,null,null,null,null,null,null,null,null,null,null,null,null,null,null,null,null,null,null,null,null,null,null,null,null,null,null,null,null,null,null,null,null,null,null,null,null,null,null,null,null,null,null,null,null,null,null,null,null,null,null,null,null,null,null,null,null,null,null,null,null,null,null,null,null,false,11]
[]
[null,null,null,null,"ÉVES DÍJ;",null,null,null,null,null,null,null,null,null,"Összevont szorzó:",{"$f":"IF(NOT($GY$59),Tomb!B119,Tomb!G119)","v":"0,843 ‰ / 0,980 ‰"},null,null,null,{"$f":"IF(NOT($GY$59),ROUND((V53+V55+V56+V57+V58+T59),0),0)","v":572192},null,{"$f":"IF(Haz!X57>0,Haz!X57,0)","v":647480}]
[]
[null,null,null,null,null,null,null,"Részletfizetési pótdíj",null,null,null,null,null,null,{"$f":"IF(V61>0,VLOOKUP(Tomb!I49,Tomb!A44:G47,7,0),0)","v":0},null,null,null,null,{"$f":"IF(NOT($GY$59),ROUND((T61*O63),0),0)","v":0},null,{"$f":"IF(Haz!X58>0,Haz!X58,0)","v":0}]
[]
[null,null,null,null,"FIZETENDŐ ÉVES DÍJ:",null,null,null,null,null,null,null,null,null,"Összevont szorzó:",{"$f":"IF(NOT($GY$59),Tomb!R119,Tomb!W119)","v":"0,831 ‰ / 0,931 ‰"},null,null,null,{"$f":"IF(NOT($GY$59),ROUND((T61+T63),0),0)","v":572192},null,{"$f":"IF(Haz!X59>0,Haz!X59,0)","v":647480}]
[]
[null,null,null,null,null,"1/",{"$f":"IF(Tomb!I49=1,1,IF(Tomb!I49=2,2,IF(Tomb!I49=3,4,IF(Tomb!I49=4,12))))","v":1},"-éves díjrészlet",null,null,null,null,null,null,null,null,null,null,null,{"$f":"IF(NOT($GY$59),ROUNDUP((T65/G67),0),0)","v":572192},null,{"$f":"IF(Haz!X60>0,Haz!X60,0)","v":647480}]
[]
[null,{"$f":"\"Az éves díj albetétek területére számolva: \"&FIXED(Haz!T62,2)&\" \"&Haz!V62","v":"Az éves díj albetétek területére számolva: 18,16 Ft/m2/hó"}]

{"sheet":"Resz","index":4,"n_rows":142,"n_cols":26,"rows_kept":142,"cut":false,"hidden":false,"merged":[[17,23,17,24],[27,12,27,19],[74,8,74,10],[74,5,74,7],[73,23,73,25],[71,7,71,8],[71,11,71,13],[48,24,48,25],[48,19,48,20],[48,21,48,22],[31,23,31,25],[31,21,31,22],[31,18,31,20],[31,16,31,17],[34,19,34,21],[35,19,35,21],[35,16,35,18],[40,16,40,17],[40,18,40,21],[40,22,40,24],[39,22,39,24],[39,16,39,18],[39,19,39,21],[38,22,38,24],[63,8,63,9],[0,0,0,2],[0,3,0,12],[68,0,68,5],[69,0,69,5],[69,6,69,7],[69,10,69,11],[69,12,69,13],[34,9,34,11],[35,9,35,11],[63,4,63,6],[40,13,40,15],[31,0,31,5],[31,13,31,15],[31,6,31,12],[36,9,36,11],[36,12,36,15],[34,12,34,15],[35,12,35,15],[39,9,39,11],[39,13,39,15],[38,8,38,10],[30,2,30,11],[36,7,36,8],[68,8,68,9],[70,23,70,25],[68,10,68,11],[68,12,68,13],[69,8,69,9],[67,6,67,7],[67,8,67,9],[70,6,70,7],[67,10,67,11],[70,19,70,20],[70,10,70,11],[18,23,18,25],[20,18,20,22],[21,16,22,17],[21,14,22,15],[21,21,22,22],[21,23,22,24],[36,22,36,24],[28,12,28,25],[34,22,34,25],[35,22,35,24],[34,16,34,18],[29,19,29,25],[29,14,29,17],[36,16,36,18],[36,19,36,21],[30,14,30,25],[53,15,53,21],[63,19,63,20],[68,19,68,20],[67,19,67,20],[67,12,67,13],[77,5,77,7],[77,0,77,1],[49,21,49,22],[49,23,49,25],[50,24,50,25],[49,15,49,16],[49,18,49,20],[74,0,74,4],[70,0,70,5],[67,0,67,5],[67,23,67,25],[63,23,63,25],[65,23,65,25],[65,19,65,20],[66,8,66,9],[66,12,66,13],[71,23,71,25],[68,6,68,7],[69,23,69,25],[41,17,41,18],[41,19,41,21],[43,13,43,15],[50,20,50,22],[50,18,50,19],[43,16,43,17],[43,18,43,21],[43,22,43,24],[41,8,41,9],[41,10,41,11],[41,22,41,24],[42,16,42,17],[42,18,42,21],[42,22,42,24],[11,23,11,25],[0,22,0,25],[11,14,11,19],[6,22,7,25],[6,16,7,21],[5,7,6,14],[2,22,2,25],[3,16,4,25],[7,7,7,14],[3,0,3,5],[4,6,4,10],[3,6,3,10],[11,20,11,22],[11,2,11,6],[7,0,7,1],[7,2,7,6],[10,0,10,1],[11,0,11,1],[11,7,11,12],[4,11,4,14],[5,0,6,1],[5,2,6,6],[4,0,4,5],[43,4,43,6],[39,6,39,8],[21,0,22,11],[40,4,40,6],[40,7,40,8],[40,9,40,12],[43,7,43,8],[43,9,43,12],[42,2,42,5],[42,6,42,7],[27,0,28,4],[27,5,28,11],[29,7,29,11],[41,12,41,14],[42,12,42,15],[42,8,42,11],[41,15,41,16],[29,2,29,5],[95,0,95,25],[51,24,51,25],[59,23,59,25],[58,23,58,25],[77,11,77,13],[76,10,76,13],[63,15,68,15],[66,19,66,20],[66,23,66,25],[77,16,77,20],[74,11,74,13],[70,12,70,13],[53,0,60,0],[77,2,77,4],[53,23,53,25],[55,23,55,25],[56,23,56,25],[57,23,57,25],[63,11,63,13],[68,23,68,25],[60,23,60,25],[62,23,62,25],[70,8,70,9],[62,12,62,13],[82,3,82,4],[82,5,82,8],[84,0,84,25],[86,13,87,25],[88,0,88,12],[89,0,89,12],[92,0,92,12],[93,0,93,12],[90,0,91,12],[88,13,89,25],[90,13,90,25],[93,13,93,25],[91,13,92,25],[86,0,87,12],[97,0,97,25],[98,1,98,25],[99,1,99,25],[100,1,100,25],[101,1,101,25],[102,1,102,25],[104,0,104,25],[105,1,105,12],[105,14,107,25],[106,1,106,12],[107,1,107,12],[126,0,131,25],[134,2,134,10],[140,3,140,11],[137,4,137,10],[117,3,125,25],[108,1,109,12],[110,1,111,12],[112,1,112,12],[113,1,113,12],[114,1,114,12],[115,1,115,12],[108,14,108,25],[109,14,111,26],[112,14,113,25],[114,14,115,25]]}
["SZERZŐDŐ",null,null,{"$f":"IF(Haz!C5>\"\",Haz!C5,0)","v":"1075  Budapest  Rumbach Sebestyén u. 12.   (Társasház)"},null,null,null,null,null,null,null,null,null,{"$f":"Tomb!Q1","v":0},"Ajánlat száma:",null,null,null,null,null,null,{"$f":"IF(AND(Haz!Q6=0),\"Új szerződés:\",IF(AND(Haz!Q6=1,Haz!R6>\"\"),\"Átdolgozás:\",0))","v":"Új szerződés:"},{"$f":"IF(AND(Haz!Q6=0,Haz!Q2>\"\"),502&Haz!Q2,IF(AND(Haz!Q6=1,Haz!R6>\"\"),Haz!R6,0))","v":0}]
[]
["SZERZŐDŐ KÉPVISELÉTÉBEN ELJÁRÓ SZEMÉLY",null,null,null,null,null,null,null,null,null,null,null,null,null,null,null,"Képviselőj:",null,null,null,null,"Kódja:",{"$f":"IF(Tomb!R42>0,VLOOKUP(Tomb!R42,Ker!A2:K150,10,0))","v":0}]
["Név:",null,null,null,null,null,"Vállalkozás:",null,null,null,null,"E-mail címe:",null,null,null,null,{"$f":"IF(Haz!S5>\"\",Haz!S5,0)","v":0}]
[{"$f":"IF(Haz!C6>\"\",Haz!C6,0)","v":"kk"},null,null,null,null,null,{"$f":"IF(Haz!H6>\"\",Haz!H6,0)","v":0},null,null,null,null,{"$f":"IF(Haz!L6>\"\",Haz!L6,0)","v":0}]
["Irányítószám:",null,"Helység:",null,null,null,null,"Út, utca, tér:"]
[null,null,null,null,null,null,null,null,null,null,null,null,null,null,null,null,"Biztosítás igényelt kezdete:",null,null,null,null,null,{"$f":"IF(Haz!W6>0,Haz!W6,0)","v":"2014-12-01"}]
[{"$f":"IF(AND(Haz!$O$7=1,OR(Haz!C6>\"\",Haz!H6>\"\"),Haz!C7>0),Haz!C7,IF(AND(Haz!$O$7=0,OR(Haz!C6>\"\",Haz!H6>\"\"),Haz!C7>=0),Haz!C4,0))","v":1075},null,{"$f":"IF(AND(Haz!$O$7=1,OR(Haz!C6>\"\",Haz!H6>\"\"),Haz!E7>0),Haz!E7,IF(AND(Haz!$O$7=0,OR(Haz!C6>\"\",Haz!H6>\"\"),Haz!E7>=0),Haz!E4,0))","v":"Budapest"},null,null,null,null,{"$f":"IF(AND(Haz!$O$7=1,OR(Haz!C6>\"\",Haz!H6>\"\"),Haz!J7>0),Haz!J7,IF(AND(Haz!$O$7=0,OR(Haz!C6>\"\",Haz!H6>\"\"),Haz!J7>=0),Haz!J4,0))","v":"Rumbach Sebestyén u. 12."}]
[]
["KOCKÁZATVISELÉS HELYE",null,null,null,null,null,null,null,null,null,null,null,null,null,"HITELFEDEZETI KEDVEZMÉNYEZETT"]
["Irányítószám:",null,"Helység:",null,null,null,null,"Út, utca, tér:",null,null,null,null,null,null,"Kedvezményezett hitelnyújtó neve, címe :",null,null,null,null,null,"Hitelszerződés összege:",null,null,"Hitelszerződés száma:"]
[{"$f":"IF(Haz!C4>0,Haz!C4,0)","v":1075},null,{"$f":"IF(Haz!E4>0,Haz!E4,0)","v":"Budapest"},null,null,null,null,{"$f":"IF(Haz!J4>0,Haz!J4,0)","v":"Rumbach Sebestyén u. 12."}]
[]
[" ÁLTALÁNOS ADATOK : "]
["TULAJDONFORMA:",null,null,null,null,null,{"$f":"IF(Tomb!C55=1,\"X\",0)","v":"X"},"Társasházi tulajdon ",null,null,null,{"$f":"IF(Tomb!C55=2,\"X\",0)","v":0},"Szövetkezeti tulajdon       ",null,null,null,"ÁFA-körbe tartozik:",null,null,null,{"$f":"IF(Tomb!C59=1,\"X\",0)","v":0},"igen",null,{"$f":"IF(Tomb!C59=2,\"X\",0)","v":"X"},"nem"]
["RENDELTETÉS:",null,null,null,null,null,{"$f":"IF(Tomb!G55=1,\"X\",0)","v":"X"},"Lakóépület         ",null,null,null,{"$f":"IF(Tomb!G55=2,\"X\",0)","v":0},"Nyaralóépület         ",null,null,null,{"$f":"IF(Tomb!G55=3,\"X\",0)","v":0},"Üzletház              ",null,null,null,{"$f":"IF(Tomb!G55=4,\"X\",0)","v":0},"Irodaház                "]
["AZ ÉPÜLET JELLEMZŐI: ",null,null,null,null,null,null,null,"Befejezett épület:",null,null,null,{"$f":"IF(Tomb!K55=1,\"X\",0)","v":"X"},"igen",{"$f":"IF(Tomb!K55=2,\"X\",0)","v":0},"nem",null,"  Műemlék(jellegű) épület:",null,null,null,null,{"$f":"IF(Tomb!K59=1,\"X\",0)","v":0},"igen",{"$f":"IF(Tomb!K59=2,\"X\",0)","v":"X"},"nem"]
["Épület kora:",null,null,{"$f":"IF(Haz!L11>0,Haz!L11,0)","v":71},{"$f":"IF(D18>0,\"év\",0)","v":"év"},null,null,null,"Szintek száma:",null,null,{"$f":"IF(Haz!L13>0,Haz!L13,0)","v":8},{"$f":"IF(L18>0,\"szintes\",0)","v":"szintes"},null,null,null,null,"Albetétek / külön tulajdonok száma:",null,null,null,null,null,{"$f":"IF(Haz!L14>0,Haz!L14,0)","v":37},null,{"$f":"IF(X18>0,\"db\",0)","v":"db"}]
["FALAZAT:",null,null,null,null,{"$f":"IF(Tomb!O54=1,\"X\",0)","v":"X"},"tégla",null,{"$f":"IF(Tomb!O54=2,\"X\",0)","v":0},"panel",null,null,{"$f":"IF(Tomb!O54=3,\"X\",0)","v":0},"monolit vb.",null,null,null,{"$f":"IF(Tomb!O54=4,\"X\",0)","v":0},"bauxitbeton",null,null,{"$f":"IF(Tomb!O54=5,\"X\",0)","v":0},"egyéb:",{"$f":"IF(Haz!S11=1,Haz!P12,0)","v":0}]
["FÖDÉM:",null,null,null,null,{"$f":"IF(Tomb!S55=3,\"X\",0)","v":0},"közbenső fafödém",null,null,null,{"$f":"IF(Tomb!S55=4,\"X\",0)","v":0},"záró fafödém belső nyitott csapadék-elvezetéssel ",null,null,null,null,null,null,null,null,null,{"$f":"IF(Tomb!S55=5,\"X\",0)","v":0},"bauxitbeton födém"]
["A biztosított épületben „C”, vagy annál magasabb tűzveszélyességű tevékenységet folytatnak:",null,null,null,null,null,null,null,null,null,null,null,null,null,null,null,{"$f":"IF(Tomb!W55=1,\"X\",0)","v":0},"igen",{"$f":"IF(Haz!S14=1,Haz!P15,0)","v":0},null,null,null,null,{"$f":"IF(Tomb!W55=2,\"X\",0)","v":"X"},"nem"]
["AZ ÉPÜLET ÁLLAGA:",null,null,null,null,null,null,null,null,null,null,null,null,null,"5 éven belül  felújítva",null,"Karbantar- tásra szorul",null,null,null,null,"5 éven belül  felújítva",null,"Karbantar- tásra szorul"]
[null,null,null,null,null,null,null,null,null,null,null,null,null,null,"felújítva",null,null,null,null,null,null,"felújítva"]
["Az épületen beázások, csőtörések nyomai láthatóak:",null,null,null,null,null,null,null,{"$f":"IF(Tomb!K65,\"X\",0)","v":0},"igen",{"$f":"IF(Tomb!M64,\"X\",0)","v":"X"},"nem","Víz csőhálózat: ",null,null,{"$f":"IF(AND(Tomb!I73,Tomb!L73),\"X\",0)","v":0},null,{"$f":"IF(AND(Tomb!K73,Tomb!L73),\"X\",0)","v":0},null,"Homlokzatok",null,null,{"$f":"IF(AND(Tomb!I77,Tomb!L77),\"X\",0)","v":0},null,{"$f":"IF(AND(Tomb!K77,Tomb!L77),\"X\",0)","v":0}]
["Az épület teteje hullámos, cserepezés, bádogozás hiányos:",null,null,null,null,null,null,null,{"$f":"IF(Tomb!K66,\"X\",0)","v":0},"igen",{"$f":"IF(Tomb!M65,\"X\",0)","v":"X"},"nem","Fűtés csőhálózat",null,null,{"$f":"IF(AND(Tomb!I74,Tomb!L74),\"X\",0)","v":0},null,{"$f":"IF(AND(Tomb!K74,Tomb!L74),\"X\",0)","v":0},null,"Tető szerkezet",null,null,{"$f":"IF(AND(Tomb!I78,Tomb!L78),\"X\",0)","v":0},null,{"$f":"IF(AND(Tomb!K78,Tomb!L78),\"X\",0)","v":0}]
["Épületen ferde (kb. 45o-os) repedés(ek) van(nak):",null,null,null,null,null,null,null,{"$f":"IF(Tomb!K67,\"X\",0)","v":0},"igen",{"$f":"IF(Tomb!M66,\"X\",0)","v":"X"},"nem","Csatorna",null,null,{"$f":"IF(AND(Tomb!I75,Tomb!L75),\"X\",0)","v":0},null,{"$f":"IF(AND(Tomb!K75,Tomb!L75),\"X\",0)","v":0},null,"Tetőszigetelés",null,null,{"$f":"IF(AND(Tomb!I79,Tomb!L79),\"X\",0)","v":0},null,{"$f":"IF(AND(Tomb!K79,Tomb!L79),\"X\",0)","v":0}]
["Épületen dúcolás utólagos alátámasztás található:",null,null,null,null,null,null,null,{"$f":"IF(Tomb!K68,\"X\",0)","v":0},"igen",{"$f":"IF(Tomb!M67,\"X\",0)","v":"X"},"nem","Gázcső hálózat",null,null,{"$f":"IF(AND(Tomb!I76,Tomb!L76),\"X\",0)","v":0},null,{"$f":"IF(AND(Tomb!K76,Tomb!L76),\"X\",0)","v":0},null,"Tetőhéjazat",null,null,{"$f":"IF(AND(Tomb!I80,Tomb!L80),\"X\",0)","v":0},null,{"$f":"IF(AND(Tomb!K80,Tomb!L80),\"X\",0)","v":0}]
["KÁRELŐZMÉNYEK:",null,null,null,null,{"$f":"IF(U28=X28,\"Döntsd el, hogy volt vagy nem volt? >\",0)","v":0},null,null,null,null,null,null,"Korábbi kár(ok) az ajánlatot megelőző öt évben:",null,null,null,null,null,null,null,null,"volt",{"$f":"IF(AND(U28=\"X\",X28=\"X\"),\"?\",0)","v":0},"X","nem volt"]
[null,null,null,null,null,null,null,null,null,null,null,null," (függetlenül attól, hogy a káridőpontjában volt-e élő biztosítás)"]
["kár időpontja:",null,null,null,null,null,"jellege:",null,null,null,null,null,"kár időpontja:",null,null,null,null,null,"jellege:","Csőtörés"]
[null,"összege:",null,null,null,null,null,null,null,null,null,null,null,"összege:"]
["BIZTOSÍTÁSI ELŐZMÉNYEK:",null,null,null,null,null,"Ha volt biztosítás, akkor az előző biztosító neve:",null,null,null,null,null,null,null,null,null,"kötvényszáma:",null,null,null,null,"megszűnés oka:"]
[]
["LAKÓ / ÜDÜLŐ ÉPÜLETBIZTOSÍTÁS  BIZTOSÍTÁSI ÖSSZEG SZÁMÍTÁSA"]
["Megnevezés",null,null,null,null,null,null,null,null,"Kategória",null,null,"Külön tul. összesített m2-re",null,null,null,"Ft / m2",null,null,"Okiratbani jele",null,null,"Biztosítási összeg  [Ft]"]
["Lakó / üdülőépület",null,null,null,null,null,null,null,null,{"$f":"IF(Haz!A18=5,0,IF(AND(Tomb!$G$55<5,Haz!$B$17=1,Haz!G18>\"\"),Haz!G18,0))","v":"A / II"},null,null,{"$f":"IF(Haz!A18=5,0,IF(AND(Tomb!$G$55<5,Haz!$B$17=1,Haz!H18>0),FIXED(Haz!H18,0)&\" m2\",0))","v":"2 972 m2"},null,null,null,{"$f":"IF(AND(Tomb!$G$55<5,Haz!$B$17=1,Haz!H18>0,Haz!O18>0),(Haz!O18/Haz!H18),0)","v":225000},null,null,null,null,null,{"$f":"IF(Haz!A18=5,0,IF(AND(Tomb!$G$55<5,Haz!$B$17=1,Haz!O18>0),(Haz!O18/1000),0))","v":668700},null,null,"                                   .000.-"]
[{"$f":"IF(AND(Haz!$B$17=1,Haz!O19>0),VLOOKUP(Tomb!D90,Tomb!J90:K93,2,0),0)","v":0},null,null,null,null,null,null,"Garázs",null,{"$f":"IF(Haz!A21=2,0,IF(AND(Haz!$B$17=1,Haz!F19>\"\",Haz!H19>\"\",Haz!I19>0),Haz!F19&\" / \"&Haz!H19,0))","v":0},null,null,{"$f":"IF(Haz!A21=2,0,IF(AND(Haz!$B$17=1,Haz!I19>0),FIXED(Haz!I19,0)&\" m2\",0))","v":0},null,null,null,{"$f":"IF(AND(Haz!$B$17=1,Haz!I19>0,Haz!O19>0),(Haz!O19/Haz!I19),0)","v":0},null,null,null,null,null,{"$f":"IF(AND(Haz!$B$17=1,Haz!O19>0),(Haz!O19/1000),0)","v":0},null,null,"                                   .000.-"]
[]
[" Épületnek a közös tulajdoni része..........………..",null,null,null,null,null,null,null,{"$f":"IF(AND(Haz!$B$17=1,Haz!K20>0),Haz!I20,0)","v":1},null,null,null,null,null,null,null,null,null,null,null,null,null,{"$f":"IF(AND(Haz!$B$17=1,Haz!K20>0),(Haz!O20/1000),0)","v":668700},null,null,"                                  .000.-"]
[{"$f":"IF(AND(Haz!$B$17=1,Haz!O21>0),VLOOKUP(Tomb!D95,Tomb!J95:K98,2,0),0)","v":0},null,null,null,null,null,null,null,null,{"$f":"IF(AND(Haz!$B$17=1,Haz!F21>\"\",Haz!H21>\"\",Haz!I21>0),Haz!F21&\" / \"&Haz!H21,0)","v":0},null,null,"Σ m2",{"$f":"IF(AND(Haz!$B$17=1,Haz!F21>\"\",Haz!H21>\"\",Haz!I21>0),FIXED(Haz!I21,0)&\" m2\",0)","v":0},null,null,{"$f":"IF(AND(Haz!$B$17=1,Haz!F21>\"\",Haz!H21>\"\",Haz!I21>0),(Haz!O21/Haz!I21),0)","v":0},null,null,null,null,null,{"$f":"IF(AND(Haz!$B$17=1,Haz!O21>0),(Haz!O21/1000),0)","v":0},null,null,"                                   .000.-"]
["Központi berendezés :",null,null,null,{"$f":"IF(AND(Haz!$B$17=1,Haz!O22>0,Haz!F22>\"\"),Haz!F22,0)","v":"Kaputelefonrendszer"},null,null,{"$f":"IF(AND(Haz!$B$17=1,Haz!O22>0,Haz!I22>0),Haz!I22&\" db\",0)","v":"1 db"},null,{"$f":"IF(AND(Haz!$B$17=1,Haz!O22>0,Haz!K22>0),FIXED(Haz!K22,0)&\" Ft/db\",0)","v":"100 000 Ft/db"},null,null,null,{"$f":"IF(AND(Haz!$B$17=1,Haz!O23>0,Haz!F23>\"\"),Haz!F23,0)","v":"Lift"},null,null,{"$f":"IF(AND(Haz!$B$17=1,Haz!O23>0,Haz!I23>0),Haz!I23&\" db\",0)","v":"2 db"},null,{"$f":"IF(AND(Haz!$B$17=1,Haz!O23>0,Haz!K23>0),FIXED(Haz!K23,0)&\" Ft/db\",0)","v":"10 000 000 Ft/db"},null,null,null,{"$f":"IF(AND(Haz!$B$17=1,OR(Haz!O22>0,Haz!O23>0)),((Haz!O22+Haz!O23)/1000),0)","v":20100},null,null,"                                   .000.-"]
["Kerítés fajtája (egy kerítést csak egy lapon lehet felvenni):",null,null,null,null,null,null,null,{"$f":"IF(AND(Haz!$B$17=1,Haz!O24>0,Haz!F24>\"\"),Haz!F24,0)","v":0},null,{"$f":"IF(AND(Haz!$B$17=1,Haz!O24>0,Haz!I24>0),Haz!I24&\" fm\",0)","v":0},null,{"$f":"IF(AND(Haz!$B$17=1,Haz!O24>0,Haz!K24>0),FIXED(Haz!K24,0)&\" Ft/fm\",0)","v":0},null,null,{"$f":"IF(AND(Haz!$B$17=1,Haz!O25>0,Haz!F25>\"\"),Haz!F25,0)","v":0},null,{"$f":"IF(AND(Haz!$B$17=1,Haz!O25>0,Haz!I25>0),Haz!I25&\" fm\",0)","v":0},null,{"$f":"IF(AND(Haz!$B$17=1,Haz!O25>0,Haz!K25>0),FIXED(Haz!K25,0)&\" Ft/fm\",0)","v":0},null,null,{"$f":"IF(AND(Haz!$B$17=1,OR(Haz!O24>0,Haz!O25>0)),((Haz!O24+Haz!O25)/1000),0)","v":0},null,null,"                                  .000.-"]
["Egyéb :",null,{"$f":"IF(AND(Haz!$B$17=1,Haz!O26>0,Haz!F26>\"\"),Haz!F26,0)","v":0},null,null,null,{"$f":"IF(AND(Haz!$B$17=1,Haz!O26>0,Haz!I26>0),Haz!I26&\" db\",0)","v":0},null,{"$f":"IF(AND(Haz!$B$17=1,Haz!O26>0,Haz!K26>0),FIXED(Haz!K26,0)&\" Ft/db\",0)","v":0},null,null,null,{"$f":"IF(AND(Haz!$B$17=1,Haz!O27>0,Haz!F27>\"\"),Haz!F27,0)","v":0},null,null,null,{"$f":"IF(AND(Haz!$B$17=1,Haz!O27>0,Haz!I27>0),Haz!I27&\" db\",0)","v":0},null,{"$f":"IF(AND(Haz!$B$17=1,Haz!O27>0,Haz!K27>0),FIXED(Haz!K27,0)&\" Ft/db\",0)","v":0},null,null,null,{"$f":"IF(AND(Haz!$B$17=1,OR(Haz!O26>0,Haz!O27>0)),((Haz!O26+Haz!O27)/1000),0)","v":0},null,null,"                                   .000.-"]
["Közös tulajdonú ingóságok:",null,null,null,{"$f":"IF(AND(Haz!$B$17=1,Haz!O28>0,Haz!F28>\"\"),Haz!F28,0)","v":0},null,null,{"$f":"IF(AND(Haz!$B$17=1,Haz!O28>0,Haz!I28>0),Haz!I28&\" db\",0)","v":0},null,{"$f":"IF(AND(Haz!$B$17=1,Haz!O28>0,Haz!K28>0),FIXED(Haz!K28,0)&\" Ft/db\",0)","v":0},null,null,null,{"$f":"IF(AND(Haz!$B$17=1,Haz!O29>0,Haz!F29>\"\"),Haz!F29,0)","v":0},null,null,{"$f":"IF(AND(Haz!$B$17=1,Haz!O29>0,Haz!I29>0),Haz!I29&\" db\",0)","v":0},null,{"$f":"IF(AND(Haz!$B$17=1,Haz!O29>0,Haz!K29>0),FIXED(Haz!K29,0)&\" Ft/db\",0)","v":0},null,null,null,{"$f":"IF(AND(Haz!$B$17=1,OR(Haz!O28>0,Haz!O29>0)),((Haz!O28+Haz!O29)/1000),0)","v":0},null,null,"                                   .000.-"]
[]
[" ÖSSZESEN",null,null,null,null,null,null,null,null,null,null,null,null,null,null,null,null,null,null,null,null,null,null,null,null,{"$f":"IF(Haz!O30>0,FIXED(Haz!O30/1000,0)&\" 000.-\",\"\")","v":"688 800 000.-"}]
[]
["ÉPÜLETBIZTOSÍTÁS DÍJTÉTELE",null,null,null,null,null,null,null,null,null,null,null,null,"Díjtétel ‰",null,{"$f":"IF(AND(Tomb!B80,Haz!M64>0),\"X\",0)","v":"X"},"FELELŐSSÉGBIZTOSÍTÁS"]
["   Alapfedezet:",null,null,null,null,null,null,null,null,{"$f":"IF(Haz!N33>0,\"X\",0)","v":"X"},{"$f":"IF(Haz!N33>0,VLOOKUP(Haz!L11,Tomb!J2:M7,4),0)","v":"51-100 év"},null,"+",{"$f":"IF(Haz!N33>0,Haz!N33,\"\")","v":0.9},null," Ingatlantulajdonosi:",null,null,null,{"$f":"IF(AND(Tomb!$B$80,Tomb!B81,Haz!$M$64>0,Haz!M61>0,Haz!F61>0),FIXED(Haz!F61,0),0)","v":"688 800"},null,{"$f":"IF(AND(Tomb!$B$80,Tomb!B81,Haz!$M$64>0,Haz!J61>0,Haz!M61>0),\"* \"&Haz!J61&\"‰ =\",0)","v":"* 0,15‰ ="},null,"+",{"$f":"IF(AND(Tomb!$B$80,Tomb!B81,Haz!$M$64>0,Haz!M61>0),Haz!M61,0)","v":103320}]
["Többszörözhető limitel rend.",null,null,null,null,{"$f":"IF(AND(Haz!N34>0,Tomb!P64=1),\"X\",0)","v":0},"kétszerez",null,{"$f":"IF(AND(Haz!N34>0,Tomb!P64=2),\"X\",0)","v":0},null,null,null,"+",{"$f":"IF(Haz!N34>0,Haz!N34,\"\")","v":""},null,{"$f":"IF(OR(Tomb!K55=2,AND(Tomb!$B$80,Tomb!B81,Haz!$M$64>0,Haz!M61>0,Tomb!C73=1)),Tomb!B74,IF(AND(Tomb!$B$80,Tomb!B81,Haz!$M$64>0,Haz!M61>0,Tomb!C73=2),Tomb!B75,IF(AND(Tomb!$B$80,Tomb!B81,Haz!$M$64>0,Haz!M61>0,Tomb!C73=3),Tomb!B76,0)))","v":"I Fedezet."},null,{"$f":"IF(AND(Tomb!$B$80,Tomb!B81,Haz!$M$64>0,Haz!M61>0,OR(Tomb!G74=1,Tomb!G74=2)),Tomb!F75,0)","v":"Alap"},{"$f":"IF(AND(Tomb!$B$80,Tomb!B81,Haz!$M$64>0,Haz!M61>0,OR(Tomb!G74=1,Tomb!G74=2)),INDEX(Tomb!I25:J27,VLOOKUP(IF(Tomb!K55=1,Tomb!C73,1),Tomb!H25:J27,1,0),HLOOKUP(1,Tomb!I24:J27,1,0))&\" mFt/kár/év\",0)","v":"15 mFt/kár/év"},null,null,{"$f":"IF(AND(Tomb!$B$80,Tomb!B81,Haz!$M$64>0,Haz!M61>0,Tomb!G74=2),\"+ \"&Tomb!F76,0)","v":"+ Bővített"},null,{"$f":"IF(AND(Tomb!$B$80,Tomb!B81,Haz!$M$64>0,Haz!M61>0,Tomb!G74=2),INDEX(Tomb!I25:J27,VLOOKUP(IF(Tomb!K55=1,Tomb!C73,1),Tomb!H25:J27,1,0),HLOOKUP(Tomb!G74,Tomb!I24:J27,1,0))&\" mFt/kár\",0)","v":"7,5 mFt/kár"}]
[" Be nem fejezett épület ",null,null,null,null,null,null,null,null,null,null,{"$f":"IF(AND(Haz!N35>0,Tomb!K55=2),\"X\",0)","v":0},"+",{"$f":"IF(Haz!N35>0,Haz!N35,\"\")","v":""},null," Munkáltatói:",null,null,{"$f":"IF(AND(Tomb!$B$80,Tomb!B82,Haz!$M$64>0,Haz!M62>0,Haz!J62>0),Haz!J62&\" fő\",0)","v":0},null,{"$f":"IF(AND(Tomb!$B$80,Tomb!B82,Haz!$M$64>0,Haz!M62>0,Haz!G62>0),\" * \"&FIXED(Tomb!J28,0)&\" Ft =\",0)","v":0},null,null,"+",{"$f":"IF(AND(Tomb!$B$80,Tomb!B82,Haz!$M$64>0,Haz!M62>0),Haz!M62,0)","v":0}]
[" „C”, vagy annál magasabb tűzveszélyességű tevékenység",null,null,null,null,null,null,null,null,null,null,{"$f":"IF(AND(Haz!N36>0,Tomb!W55=1),\"X\",0)","v":0},"+",{"$f":"IF(Haz!N36>0,Haz!N36,\"\")","v":""},null," Közös képviselői felelősségbiztosítás:",null,null,null,null,null,null,null,"+",{"$f":"IF(AND(Tomb!$B$80,Tomb!B83,Haz!$M$64>0,Haz!M63>0),Haz!M63,0)","v":0}]
[null,null,null,null,null,null,null,null,null,null,null,null,null,null,null,null,{"$f":"\"A díjfizetés módja; \"&IF(Haz!$Z$40=1,\" Inkasszó.\",IF(Haz!$Z$40=2,\" Csekk.\",IF(Haz!$Z$40=3,\" Átutalás.\",\"\")))","v":"A díjfizetés módja; "}]
["engedmények","Felújítás 5 éven belül",null,null,null,null,null,null,null,{"$f":"IF(AND(Haz!N38>0,Tomb!I81>=1),\"X\",0)","v":0},{"$f":"IF(AND(Haz!N38>0,Tomb!I81>=2),\"X\",0)","v":0},{"$f":"IF(AND(Haz!N38>0,Tomb!I81>=3),\"X\",0)","v":0},"-",{"$f":"IF(Haz!N38>0,Haz!N38,\"\")","v":""},null,"Éves felelősségbiztosítási díj összesen",null,null,null,null,null,null,"=",{"$f":"IF(AND(Tomb!$B$80,Haz!$M$64>0),Haz!M64,0)","v":103320}]
[null,"Lakóépület, üzletház, iroda épület",null,null,null,null,null,null,null,null,null,{"$f":"IF(AND(Haz!N39>0,OR(Tomb!G55=1,Tomb!G55=3,Tomb!G55=4)),\"X\",0)","v":"X"},"-",{"$f":"IF(Haz!N39>0,Haz!N39,\"\")","v":0.05}]
[null,"Van állandó/bentlakó személyzet",null,null,null,null,null,null,null,null,null,{"$f":"IF(AND(Haz!N40>0,Tomb!O72),\"X\",0)","v":0},"-",{"$f":"IF(Haz!N40>0,Haz!N40,\"\")","v":""},null,"Lakó / üdülö épületbiztosítás",null,null,null,null,null,null,"+",{"$f":"IF(Haz!X42>0,Haz!X42,0)","v":571704}]
[null,"Nem paneles technológiával készült épület",null,null,null,null,null,null,null,null,null,{"$f":"IF(AND(Haz!N41>0,Tomb!O73),\"X\",0)","v":"X"},"-",{"$f":"IF(Haz!N41>0,Haz!N41,\"\")","v":0.02},null,"Kiegészítő üvegbiztosítás",null,null,null,null,null,null,"+",{"$f":"IF(Haz!X43>0,Haz!X43,0)","v":0}]
[null,"Önrész:",null,{"$f":"IF(AND(Haz!N42>0,Tomb!O66),\"X\",0)","v":0},"25 eFt",null,{"$f":"IF(AND(Haz!N42>0,Tomb!P66),\"X\",0)","v":0},"50 eFt",null,{"$f":"IF(AND(Haz!N42>0,Tomb!Q67),\"X\",0)","v":0},"100 eFt",null,"-",{"$f":"IF(Haz!N42>0,Haz!N42,\"\")","v":""},null,"Felelősségbiztosítás",null,null,null,null,null,null,"+",{"$f":"IF(Haz!X44>0,Haz!X44,0)","v":103320}]
[null,"Árvíz kizárása (SIGinfóban meghatározottak szerint)",null,null,null,null,null,null,null,null,null,{"$f":"IF(AND(Haz!N43>0,Tomb!O74,Tomb!AF1=1),\"X\",0)","v":0},"-",{"$f":"IF(Haz!N43>0,Haz!N43,\"\")","v":""},null,"Assistance biztosítás",null,null,null,null,null,null,"+",{"$f":"IF(Haz!X45>0,Haz!X45,0)","v":65860}]
[null,"Beázás (STÉBI 2011,1.6;1.7),(STÉBI 2011, 1.21-23, 1.26), károk kizárása",null,null,null,null,null,null,null,null,null,{"$f":"IF(AND(Haz!N44>0,Tomb!O75),\"X\",0)","v":0},"-",{"$f":"IF(Haz!N44>0,Haz!N44,\"\")","v":""},null,"Gépjárművek biztosítása",null,null,null,null,null,null,"+",{"$f":"IF(Haz!X47>0,Haz!X47,0)","v":0}]
[null,"Betöréses lopás károk kizárása (STÉBI 2011, 1.24-25)",null,null,null,null,null,null,null,null,null,{"$f":"IF(AND(Haz!N45>0,Tomb!O76),\"X\",0)","v":0},"-",{"$f":"IF(Haz!N45>0,Haz!N45,\"\")","v":""},null,"Felvonók géptörés biztosítása",null,null,null,null,null,null,"+",{"$f":"IF(Haz!X48>0,Haz!X48,0)","v":12000}]
[]
["   Épületbiztosítás díjtétele:",null,null,null,null,null,null,null,null,null,null,"=",{"$f":"IF(Haz!N47>0,Haz!N47&\"  ‰\",\"\")","v":"0,83  ‰"},null,null,null,"DÍJ ÖSSZESEN;",null,null,null,null,null,"=",{"$f":"IF(Haz!X49>0,Haz!X49,0)","v":752884}]
["Éves épületbizt. díj:",null,null,null,{"$f":"IF(Haz!F48>0,Haz!F48,\"\")","v":688800},null,null,"*",{"$f":"IF(Haz!J48>0,Resz!M63,\"\")","v":"0,83  ‰"},null,"=",{"$f":"IF(Haz!M48>0,Haz!M48,\"\")","v":571704},null,null,null,"Engedmények","Mennyiségi",null,null,{"$f":"IF(AND(Haz!X50>0,Haz!U50>0),Haz!U50,0)","v":0.14000000000000001},null,{"$f":"N(Tomb!D94)","v":0},"-",{"$f":"IF(Haz!X50>0,Haz!X50,0)","v":105404}]
[]
[{"$f":"IF(AND(Tomb!$F$78,Haz!$M$57>0),\"X\",0)","v":0},"KIEGÉSZÍTŐ ÜVEGBIZTOSÍTÁS",null,null,null,null,null,null,null,null,null,null,null,null,null,null,"Kockázati",null,null,{"$f":"IF(AND(Haz!X52>0,Haz!U52>0),Haz!U52,0)","v":0},null,{"$f":"N(Tomb!D95)","v":1},"-",{"$f":"IF(Haz!X52>0,Haz!X52,0)","v":0}]
["Egyéb biztosított üvegek megnev.",null,null,null,null,null,"Bizt felület",null,"Bö.;  Ft",null,"Díjtétel %",null,"Díj   Ft",null,null,null,"Inkasszó",null,null,{"$f":"IF(AND(Haz!X53>0,Haz!U53>0),Haz!U53,0)","v":0},null,{"$f":"N(Tomb!D96)","v":0},"-",{"$f":"IF(Haz!X53>0,Haz!X53,0)","v":0}]
[{"$f":"IF(AND(Tomb!$F$78,Haz!$M$57>0,Haz!M52>0),Haz!C52,0)","v":0},null,null,null,null,null,{"$f":"IF(AND(Tomb!$F$78,Haz!$M$57>0,Haz!M52>0,Haz!H52>0),Haz!H52&\" m2\",0)","v":0},null,{"$f":"IF(AND(Tomb!$F$78,Haz!$M$57>0,Haz!M52>0,Haz!J52>0),Haz!J52,0)","v":0},null,{"$f":"IF(AND(Tomb!$F$78,Haz!$M$57>0,Haz!M52>0,Haz!L52>0),Haz!L52,0)","v":0},null,{"$f":"IF(AND(Tomb!$F$78,Haz!$M$57>0,Haz!M52>0),Haz!M52,0)","v":0},null,null,null,"Képviselői",null,null,{"$f":"IF(AND(Haz!X54>0,Haz!U54>0),Haz!U54,0)","v":0},null,{"$f":"N(Tomb!D96)","v":0},"-",{"$f":"IF(Haz!X54>0,Haz!X54,0)","v":0}]
[{"$f":"IF(AND(Tomb!$F$78,Haz!$M$57>0,Haz!M53>0),Haz!C53,0)","v":0},null,null,null,null,null,{"$f":"IF(AND(Tomb!$F$78,Haz!$M$57>0,Haz!M53>0,Haz!H53>0),Haz!H53&\" m2\",0)","v":0},null,{"$f":"IF(AND(Tomb!$F$78,Haz!$M$57>0,Haz!M53>0,Haz!J53>0),Haz!J53,0)","v":0},null,{"$f":"IF(AND(Tomb!$F$78,Haz!$M$57>0,Haz!M53>0,Haz!L53>0),Haz!L53,0)","v":0},null,{"$f":"IF(AND(Tomb!$F$78,Haz!$M$57>0,Haz!M53>0),Haz!M53,0)","v":0},null,null,null,{"$f":"IF(T69>0,\"VIG\",\"\")","v":""},null,null,{"$f":"IF(AND(Haz!X56>0,Haz!U56>0),Haz!U56,0)","v":0},null,{"$f":"N(Tomb!D70)","v":0},{"$f":"IF(T69>0,\"-\",\"\")","v":""},{"$f":"IF(Haz!X56>0,Haz!X56,0)","v":0}]
[{"$f":"IF(AND(Tomb!$F$78,Haz!$M$57>0,Haz!M54>0),Haz!C54,0)","v":0},null,null,null,null,null,{"$f":"IF(AND(Tomb!$F$78,Haz!$M$57>0,Haz!M54>0,Haz!H54>0),Haz!H54&\" m2\",0)","v":0},null,{"$f":"IF(AND(Tomb!$F$78,Haz!$M$57>0,Haz!M54>0,Haz!J54>0),Haz!J54,0)","v":0},null,{"$f":"IF(AND(Tomb!$F$78,Haz!$M$57>0,Haz!M54>0,Haz!L54>0),Haz!L54,0)","v":0},null,{"$f":"IF(AND(Tomb!$F$78,Haz!$M$57>0,Haz!M54>0),Haz!M54,0)","v":0},null,null,null,"ÉVES DÍJ;",null,null,null,null,null,"=",{"$f":"IF(Haz!X57>0,Haz!X57,0)","v":647480}]
[{"$f":"IF(AND(Tomb!$F$78,Haz!$M$57>0,Haz!M56>0),Haz!C56,0)","v":0},null,null,null,null,null,null,null,{"$f":"IF(AND(Tomb!$F$78,Haz!$M$57>0,Haz!M56>0,Haz!I56>0),Haz!I56,0)","v":0},null,{"$f":"IF(AND(Tomb!$F$78,Haz!$M$57>0,Haz!M56>0,Haz!L56>0),Haz!L56,0)","v":0},null,{"$f":"IF(AND(Tomb!$F$78,Haz!$M$57>0,Haz!M56>0),Haz!M56,0)","v":0},null,null,"Részletfizetési pótdíj",null,null,null,{"$f":"IF(AND(Haz!X58>0,Haz!U58>0),Haz!U58,0)","v":0},null,null,"+",{"$f":"IF(Haz!X58>0,Haz!X58,0)","v":0}]
[null,null,null,null,null,null,"Biztosítási összeg Ft:",{"$f":"IF(AND(Tomb!$F$78,Haz!$M$57>0,Haz!I57>0),Haz!I57,0)","v":0},null,null,"Éves díj:",{"$f":"IF(AND(Tomb!$F$78,Haz!$M$57>0),Haz!M57,0)","v":0},null,null,null,"Fizetendő éves díj;",null,null,null,null,null,null,"=",{"$f":"IF(Haz!X59>0,Haz!X59,0)","v":647480}]
[]
[{"$f":"IF(AND(Tomb!D79,Haz!X36>0),\"X\",0)","v":"X"},"FELVONÓK GÉPTÖRÉS BIZTOSÍTÁSA",null,null,null,null,null,null,null,null,null,null,null,null,null,"1 /",{"$f":"IF(Haz!X60>0,Haz!R60,0)","v":1},"-éves díjrészlet",null,null,null,{"$f":"IF(Tomb!R64=Tomb!Q64,\"\",\"!!!\")","v":""},"=",{"$f":"IF(Haz!X60>0,Haz!X60,0)","v":647480}]
[{"$f":"IF(AND(Tomb!D79,Haz!X36>0,Haz!U36>0),FIXED(VLOOKUP(Tomb!W65,Tomb!G34:J37,2,0),0)&\" eFt/kár \"&FIXED(VLOOKUP(Tomb!W65,Tomb!G34:J37,3,0),0)&\" eFt/év/felv.\",0)","v":"150 eFt/kár 500 eFt/év/felv."},null,null,null,null,{"$f":"IF(AND(Tomb!D79,Haz!X36>0,Haz!U36>0),FIXED(VLOOKUP(Tomb!W65,Tomb!G34:J37,4,0),0)&\" eFt\",0)","v":"6 000 eFt"},null,null,{"$f":"IF(AND(Tomb!D79,Haz!X36>0,Haz!U36>0),\"* \"&Haz!U36&\" db felvonó =\",0)","v":"* 2 db felvonó ="},null,null,{"$f":"IF(AND(Tomb!D79,Haz!X36>0),Haz!X36,0)","v":12000},null,null,null,null,{"$f":"\"A díjfizetés módja; \"&IF(Da!$Z$180=1,\" Inkasszó.\",IF(Da!$Z$180=2,\" Csekk.\",IF(Da!$Z$180=3,\" Átutalás.\",\"\")))","v":"A díjfizetés módja;  Átutalás."}]
[]
[{"$f":"IF(AND(Tomb!D78,Haz!$X$33>0),\"X\",0)","v":0},"GÉPJÁRMŰVEK BIZTOSÍTÁSA",null,null,null,null,null,null,null,{"$f":"IF(AND(Tomb!D83,Haz!$X$38>0),\"X\",0)","v":"X"},"ASSISTANCE BIZT."]
[{"$f":"IF(AND(Tomb!D78,Haz!$X$33>0,Haz!U33>0),Haz!$U$33&\" db\",0)","v":0},null,{"$f":"IF(AND(Tomb!D78,Haz!$X$33>0),\" * \"&FIXED(Tomb!J31,0)&\" Ft =\",0)","v":0},null,null,{"$f":"IF(AND(Tomb!D78,Haz!$X$33>0),Haz!$X$33,0)","v":0},null,null,null,null,null,{"$f":"IF(AND(Tomb!D83,Haz!$X$38>0),Haz!$X$38,0)","v":65860},null,null,null,"Kelt;"]
[]
["NYILATKOZAT"]
[]
[]
["E nyilatkozat a",null,null,502,null,{"$f":"Haz!Q2","v":0},null,null,null,"számú biztosítási ajánlat elválaszthatatlan részét képezi."]
[]
["Alulírott szerződő elismerem, hogy az ajánlat aláírása előtt átvettem, megismertem és áttanulmányozás után elfogadtam az általam igényelt kockázatok az alábbiakban felsorolt általános, különös és kiegészítő biztosítási feltételeit, külön feltételeit, záradékait, vagyonvédelmi előírásait, valamint az aláírást követően átvettem az ajánlat egy másolati példányát is, illetve nyilatkozom a megjelölt pontokról."]
[]
["Tömbházak biztosításának általános\nfeltétele (STÁVBI 2011)",null,null,null,null,null,null,null,null,null,null,null,null,"Tömbházak felelősségbiztosításának\náltalános feltétele (STÁFBI 2011)"]
[]
["Épületbiztosítás feltétele (STÉBI 2011)",null,null,null,null,null,null,null,null,null,null,null,null,"Ingatlanhasználói és- üzemeltetői felelősségbiztosítás\nfeltétele (STIFBI 2011)"]
["Kiegészítő üvegbiztosítás feltétele (STÜBI 2011)",null,null,null,null,null,null,null,null,null,null,null,null,"feltétele (STIFBI 2011)"]
["Felvonók kiegészítő géptörés átalánybiztosítás\nfeltétele (STLIBI 2011)",null,null,null,null,null,null,null,null,null,null,null,null,"Kiegészítő munkáltatói felelősségbiztosítás feltétele (STÜBI 2011)"]
["feltétele (STLIBI 2011)",null,null,null,null,null,null,null,null,null,null,null,null,"Társasház-kezelői kiegészítő felelősségbiztosítás\nfeltétele (STÖFBI 2013)"]
["Kiegészítő gépjármű-biztosítás feltétele (STABI 2011)"]
["SIGNAL Assistance biztosítás feltétele (SASBI 2013)",null,null,null,null,null,null,null,null,null,null,null,null,"Feltétel módosítás"]
[]
["Elismerem, hogy az ajánlati nyomtatvány(ok)on és melléklet(ek)en minden, a biztosítással kapcsolatos igényem rögzítésre került, és más szóbeli megállapodás(ok) nem történt(ek). Aláírásommal kizárólagos felelősséget vállalok minden adat helyességéért, még azokért is, melyeket nem sajátkezűleg írtam."]
[]
["Kijelentem, hogy más biztosító társaságnál jelen ajánlaton biztosításra feladott vagyontárgyakra és kockázatokra érvényes szerződéssel nem rendelkezem."]
["1.","A biztosítási összeget saját becslésem alapján határoztam meg. Tudomásul veszem az esetleges alulbiztosítottság következményeit, illetve azt, hogy a biztosítási összegek a feltételekben meghatározottaknak megfelelően értékkövetésre kerülnek."]
["2.","Tudomásul veszem, hogy betöréses lopás biztosítási esemény esetén a behatolás helyén és időpontjában ténylegesen megvalósult védelmi szint szerint, a biztosítási feltételekben található táblázatok alapján történik a kártérítés mértékének megállapítása."]
[null,"Tudomásul veszem, hogy a vagyonvédelmi előírások megvalósítása és fenntartása a Szerződő/Biztosított feladata és kötelezettsége a részére átadott, a szerződés elválaszthatatlan részét képező Vagyonvédelmi Előírások alapján."]
[null,"Tudomásul veszem, hogy a szerződés megkötése (az ajánlatnak a biztosításközvetítő részéről történő aláírása, illetve annak átvétele) nem jelenti a Biztosító részéről a már meglévő védelmi szint minősítését."]
["3.","Kölcsönszerződés fedezetét tartalmazó vagyonbiztosítási szerződés esetén a Szerződő/Biztosított hozzájárulását adja ahhoz, hogy a biztosítási szerződés díjfizetési kötelezettségének 45 napon túli elmulasztása, vagy a biztosítási szerződés bármely okból történő megszűnése esetén a SIGNAL Biztosító Zrt. az engedményest írásban értesítse."]
[]
["Kijelentem, hogy a SIGNAL Biztosító Zrt. (1123 Budapest, Alkotás u. 50.) nevében eljáró, az ajánlaton megnevezett biztosításközvetítő részletesen és mindenre kiterjedően tájékoztatott az általam megkötni kívánt biztosítási szerződéssel kapcsolatban. A biztosításközvetítő által nyújtott tájékoztatást megértettem. Tudomásul veszem, hogy a vonatkozó szerződési feltételekben külön kiemelésre kerültek az ügyféltájékoztatónak is minősülő rendelkezések, valamint a szokásos szerződéskötési gyakorlattól esetlegesen eltérő rendelkezések, amelyekről a szerződés megkötése előtt külön is tájékoztatást kaptam, azokat megismertem és áttanulmányoztam. A tájékoztatás és az átvett dokumentumok hiánytalanul tartalmazták az alábbi információkat:"]
["■","biztosítási időszakot és tartamot;",null,null,null,null,null,null,null,null,null,null,null,"■","fogyasztói panaszokkal foglalkozó szerv megnevezését és székhelyét, valamint a panaszok előterjesztésének egyéb fórumait, illetve a bírói út igénybevételének lehetőségét;"]
["■","a kockázatviselés kezdetét, szünetelését és végét;"]
["■","biztosítási eseményeket; bejelentésük módját és határidejét;"]
["■","díjfizetés, díjmódosítás módját, idejét és lehetőségét az alapbiztosításokra és a kiegészítő kockázatokra;",null,null,null,null,null,null,null,null,null,null,null,null,"egyes igények elévülési idejét;"]
[null,null,null,null,null,null,null,null,null,null,null,null,null,"■","azoknak a szervezeteknek a felsorolását, amelyeknek a biztosító az ügyfelek adatait – a Bit. 153–165. §-ban foglaltak alapján – továbbíthatja;"]
["■","a biztosító szolgáltatásait, azok teljesítésének módját, idejét és a választható lehetőségeket;"]
[]
["■","szerződés megszűnésének eseteit;",null,null,null,null,null,null,null,null,null,null,null,"■","a személyes adatok kezelésére vonatkozó elvi és gyakorlati tudnivalókat;"]
["■","szerződés felmondásának feltételeit;"]
["■","a biztosító mentesülésének feltételeit, az alkalmazott kizárásokat;",null,null,null,null,null,null,null,null,null,null,null,"■","a szerződés jogának, illetve az alkalmazandó jognak a megjelölését."]
["■","értékkövetés módját, mértékét;"]
[]
[null,null,null,"Mint Ügyfél, a reklám közlése, továbbá adatkezelés tárgyában az alábbi nyilatkozatot teszem a SIGNAL Biztosító Zrt. (székhely: 1123 Budapest, Alkotás u 50, továbbiakban Biztosító) részére. Ezennel önkéntesen és a megfelelő tájékoztatás birtokában hozzájárulok ahhoz, hogy a Biztosító saját termékeivel, szolgáltatásaival, különleges ajánlataival, hirdetési célból reklámküldeményeket, továbbá egyéb, a fogyasztók tájékozottságát segítő információkat közvetlenül megküldjön részemre levélben vagy a megadott e -mail címre, vagy ismertessen velem telefonon, SMS-ben vagy MMS-ben, illetve egyéb elektronikus csatornán, a szerződés megszűnését követően is, hozzájárulásom visszavonásáig. Kijelentem, hogy az adatkezelésre vonatkozó előzetes tájékoztatást a velem szerződésben álló SIGNAL Biztosító Zrt. részéről teljes körűen megkaptam. Felhatalmazom a Biztosítót arra, hogy fenti adataimat a hozzájárulásommal elfogadott célból, az adatok biztonságáról gondoskodva hozzájárulásom visszavonásáig kezelje."]
[]
[null,"Igen"]
[]
[]
[null,"Nem"]
[]
[]
[]
["Vállalom, hogy a fenti adataimban bekövetkezett változást 5 munkanapon belül bejelentem az alábbi módok egyikén: e-mail: info@signal.hu, telefon: 06 40 405 405 (helyi tarifával hívható kékszám), fax: 06 1 458 4260, postacím: SIGNAL Biztosító Zrt. 1519 Bp. Pf. 260, valamint személyesen, bármely SIGNAL ügyfélszolgálati irodában. Tudomással bírok arról, hogy a fenti e-mail címre küldött kérésemre, vagy telefonon a 06 40 405 405 számon, postai úton vagy személyesen a Biztosító bármely ügyfélszolgálati irodájában, illetve az Ügyfélportálon a SIGNAL Biztosító Zrt-től bármikor tájékoztatást kérhetek a fenti személyes adataim kezeléséről, illetve jelen nyilatkozatot bármikor, indoklás nélkül, ingyenesen visszavonhatom."]
[]
[]
[]
[]
[]
[]
[]
["Kelt:"]
[]
[]
["Szerződő neve:",null,null,null,{"$f":"A5","v":"kk"},null,null,null,null,null,null,null,null,null,null,null,null,null,"Szerződő aláírása:"]
[]
[]
["Szerződő címe:",null,null,{"$f":"CONCATENATE(A8,\" \",C8,\" \",H8)","v":"1075 Budapest Rumbach Sebestyén u. 12."},null,null,null,null,null,null,null,null,null,null,null,null,null,null,"Biztosításközvetítő aláírása:"]
[null,null,null,null,null,null,null,null,null,null,null,null,null,null,null,null,null,null,null,null,null,null,{"$f":"IF(Tomb!R42=0,\"\",IF(Tomb!R42>0,VLOOKUP(Tomb!R42,Ker!A2:K125,2,0)))","v":0}]

{"sheet":"Ugyf","index":5,"n_rows":208,"n_cols":27,"rows_kept":208,"cut":false,"hidden":false,"merged":[[6,19,6,25],[7,20,7,25],[37,2,37,25],[51,4,51,25],[38,2,38,25],[9,20,9,25],[8,20,8,25],[10,22,10,25],[9,3,9,10],[8,1,8,10],[19,11,19,25],[35,2,35,25],[36,2,36,25],[40,2,40,25],[43,2,43,25],[39,2,39,25],[49,4,49,25],[50,4,50,25],[53,4,53,25],[54,4,54,25],[68,16,68,19],[56,4,56,25],[58,4,58,25],[60,22,60,24],[74,16,74,19],[67,16,67,19],[111,2,111,25],[112,2,112,25],[113,2,113,25],[96,2,96,25],[93,2,93,25],[89,22,89,24],[88,22,88,24],[87,22,87,24],[86,17,86,18],[78,22,78,24],[72,16,72,19],[70,16,70,19],[71,16,71,19],[69,16,69,19],[117,1,117,25],[101,2,101,25],[102,2,102,25],[103,2,103,25],[104,2,104,25],[105,2,105,25],[106,2,106,25],[107,2,107,25],[108,2,108,25],[109,2,109,25],[116,1,116,25],[110,2,110,25],[114,2,114,25],[73,16,73,19],[1,1,1,10],[2,1,2,25],[5,1,5,13],[4,21,4,25],[5,19,5,25],[4,1,4,13],[41,2,41,25],[66,16,66,19],[23,1,23,25],[45,2,45,25],[44,2,44,25],[42,2,42,25],[52,4,52,25],[63,9,63,12],[65,16,65,19],[123,17,123,22],[57,4,57,25],[55,4,55,25],[95,2,95,25],[94,2,94,25],[84,22,84,24],[77,16,77,19],[81,22,81,24],[85,17,85,18],[85,22,85,24],[79,22,79,24],[79,7,79,21],[80,22,80,24],[78,16,78,19],[77,22,77,24],[86,22,86,24]]}
[]
[null,null,null,null,null,null,null,null,null,null,null,null,null,null,null,null,null,null,null,null,null,null,null,null,null,null,27]
[null,"SIGNAL Biztosító Zrt. 1123 BUDAPEST, Alkotás u. 50. Tel: 458-4222, Fax: 458-4151 E-mail: info@signal.hu, Internet: http://www.signal.hu",null,null,null,null,null,null,null,null,null,null,null,null,null,null,null,null,null,null,null,null,null,null,null,null,{"$f":"SUM(AA64:AA75)+SUM(AA78:AA82)+SUM(AA85:AA89)+SUM(AA92:AA98)+SUM(AA102:AA110)","v":23}]
[null,null,null,null,null,null,null,null,null,null,null,null,null,null,null,null,null,null,null,null,null,null,null,null,null,null,{"$f":"SUM(AA35:AA44)+SUM(AA49:AA59)","v":4}]
[null,{"$f":"IF(Haz!AA2,Haz!C5,\"\")","v":"1075  Budapest  Rumbach Sebestyén u. 12.   (Társasház)"},null,null,null,null,null,null,null,null,null,null,null,null,null,null,null,null,"ügyintéző:",null,null,{"$f":"IF(Tomb!R42=0,\"\",IF(Tomb!R42>0,VLOOKUP(Tomb!R42,Ker!A2:K150,2,0)))","v":0},null,null,null,null,{"$f":"SUM(AA20:AA59)","v":5}]
[null,{"$f":"IF(Haz!AA2,Haz!C6,IF(Tomb!R42=0,\"\",IF(Tomb!R42>0,VLOOKUP(Tomb!R42,Ker!A2:K125,2,0))))","v":"kk"},null,null,null,null,null,null,null,null,null,null,null,null,null,null,null,null,"tel:","06309342756"]
[null,"részére",null,null,null,null,null,null,null,null,null,null,null,null,null,null,null,null,"fax:","0613810204"]
[null,null,null,null,null,null,null,null,null,null,null,null,null,null,null,null,null,null,"e-mail:",null,"n.gabriella@prezerval.hu"]
[null,{"$f":"IF(AND(Haz!$AA$2,Haz!$O$7=0),Haz!C4&\" \"&Haz!E4&\" \"&Haz!J4,IF(AND(Haz!$AA$2,Haz!$O$7=1),Haz!C7&\" \"&Haz!E7&\" \"&Haz!J7,IF(Tomb!R42=0,\"\",IF(Tomb!R42>0,VLOOKUP(Tomb!R42,Ker!A2:K125,4,0)))))","v":"1075 Budapest Rumbach Sebestyén u. 12."},null,null,null,null,null,null,null,null,null,null,null,null,null,null,null,null,"dátum:",null,{"$f":"NOW()","v":"2014-09-28T14:55:02.800"}]
[null,"Fax:",null,{"$f":"IF(Haz!$AA$2,\"\",IF(Tomb!A51=0,\"\",IF(Tomb!A51>0,VLOOKUP(Tomb!A51,Ker!A2:K150,7,0))))","v":""},null,null,null,null,null,null,null,null,null,null,null,null,null,null,"közvetítő:",null,{"$f":"Haz!S5","v":0}]
[null,"e-mail:",null,{"$f":"IF(Haz!$AA$2,Haz!L6,IF(Tomb!A51=0,\"\",IF(Tomb!A51>0,VLOOKUP(Tomb!A51,Ker!A2:K150,9,0))))","v":0},null,null,null,null,null,null,null,null,null,null,null,null,null,null,null,null,null,{"$f":"IF(Haz!Q6=0,\"\",IF(Haz!Q6=1,\"Átdolgozás:\",\"\"))","v":""},{"$f":"IF(Haz!Q6=0,0,IF(Haz!Q6=1,Haz!R6,0))","v":0}]
[null,null,null,null,null,null,null,null,null,null,null,null,null,null,null,null,null,null,null,null,null,null,null,null,null,null,{"$f":"IF(AA5>=3,0,0)","v":0}]
[]
[null,null,null,null,null,null,null,null,null,null,null,null,null,null,null,null,null,null,null,null,null,null,null,null,null,null,{"$f":"IF($AA$4>=1,0,1)","v":0}]
[null,"Tárgy:",null,{"$f":"\"Előzetes díjajánlat;   \"&Haz!C5&\" számára\"","v":"Előzetes díjajánlat;   1075  Budapest  Rumbach Sebestyén u. 12.   (Társasház) számára"}]
[]
[null,null,null,null,null,null,null,null,null,null,null,null,null,null,null,null,null,null,null,null,null,null,null,null,null,null,{"$f":"IF($AA$4>=2,0,1)","v":0}]
[null,"Tisztelt",null,{"$f":"IF(AND(Haz!$AA$2,Haz!O6=0),B6&\" !\",IF(AND(Haz!$AA$2,Haz!O6=1),B6&\" Úr!\",IF(AND(Haz!$AA$2,Haz!O6=2),B6&\" Úrhölgy!\",IF(Tomb!$R$42=0,\"Üzletkötő!\",IF(Tomb!$R$42>0,B6&IF(VLOOKUP(Tomb!R42,Ker!A2:K150,3,0)=1,\" Úr!\",IF(VLOOKUP(Tomb!A51,Ker!A2:K150,3,0)=2,\" Úrhölgy!\",\"\")))))))","v":"kk !"}]
[]
[null,"Megtiszteltetésként fogadtuk, hogy a(z)",null,null,null,null,null,null,null,null,null,{"$f":"IF(Haz!C5>\"\",Haz!C5,0)","v":"1075  Budapest  Rumbach Sebestyén u. 12.   (Társasház)"}]
[null,null,{"$f":"IF(Haz!C6>0,Tomb!B115,0)","v":"Közösképviselője: kk (1075 Budapest Rumbach Sebestyén u. 12. )"},null,null,null,null,null,null,null,null,null,null,null,null,null,null,null,null,null,null,null,null,null,null,null,{"$f":"IF(C21=0,1,0)","v":0}]
[null,"vagyonbiztosítási ajánlatával a SIGNAL Biztosító Zrt-hez fordultak."]
[null,"Az Önök által közölt adatok alapján az alábbi előzetes díjajánlattal tudunk a rendelkezésükre állni."]
[null,{"$f":"Tomb!B113","v":"Jelen előzetes díjajánlatunk tájékoztató jellegű. A végleges díjajánlat elkészítéséhez  helyszíni szemle, kockázat-elbírálás, valamint kárelőzmény megadása szükséges, amelyek módosíthatnak az előzetes díjajánlaton."},null,null,null,null,null,null,null,null,null,null,null,null,null,null,null,null,null,null,null,null,null,null,null,null,{"$f":"IF(B24=0,1,0)","v":0}]
[null,"Jelen előzetes díjajánlatunk 30 napig érvényes."]
[null,"Ezen díjszámítás nem pótolja a SIGNAL biztosító Zrt-nél rendszeresített ajánlati nyomtatvány kitöltését!"]
[]
[null,null,null,null,null,null,null,null,null,null,null,null,null,null,null,null,null,null,null,null,null,null,null,null,null,null,{"$f":"IF($AA$4>=3,0,1)","v":0}]
[null,null,{"$f":"IF(Haz!I20=100%,\"A TELJES TÁRSASHÁZ EGÉSZÉRE,   (AZ ALAPÍTÓ OKIRAT SZERINTI KÜLÖNTULAJDONOK\",IF(Haz!I20<100%,\"AZ ALAPÍTÓ OKIRAT SZERINTI KÖZÖS TULAJDONRA,   (AZ ALAPÍTÓ OKIRAT SZERINTI KÜLÖN-\",\"\"))","v":"A TELJES TÁRSASHÁZ EGÉSZÉRE,   (AZ ALAPÍTÓ OKIRAT SZERINTI KÜLÖNTULAJDONOK"}]
[null,null,{"$f":"Tomb!B101","v":"ALAPTERÜLETÉT 225 000 Ft/m2 ÚJRAELŐÁLLÍTÁSI ÉRTÉKEN ALAPULVÉVE)"}]
[null,null,null,null,null,null,null,null,null,null,null,null,null,null,null,null,null,null,null,null,null,null,null,null,null,null,{"$f":"IF($AA$4>=4,0,1)","v":0}]
[]
[null,"Biztosítási összegek, kártérítési limitek a biztosított által feladott értéken, díjszámítás, feltételek:"]
[]
[null,"Biztosított kockázatok:"]
[null,null,{"$f":"IF(Haz!X42>0,\"Tűz, elektromos tűz, közvetlen villámcsapás, villámcsapás másodlagos hatása, robbanás, összeroppanás, légi jármű lezuhanása, vihar, felhőszakadás, jégverés, hónyomás, hó dinamikus hatása (lavina), árvíz,\",0)","v":"Tűz, elektromos tűz, közvetlen villámcsapás, villámcsapás másodlagos hatása, robbanás, összeroppanás, légi jármű lezuhanása, vihar, felhőszakadás, jégverés, hónyomás, hó dinamikus hatása (lavina), árvíz,"},null,null,null,null,null,null,null,null,null,null,null,null,null,null,null,null,null,null,null,null,null,null,null,{"$f":"IF(C36=0,1,0)","v":0}]
[null,null,{"$f":"IF(Haz!X42>0,\"földrengés, sziklaomlás, kőomlás,  földcsuszamlás, ismeretlen építmény vagy üreg beomlása, vezetékesvíz-károk, tűzoltó berendezés kilyukadása, csőtörés-károk, idegen jármű beleütközése,\",0)","v":"földrengés, sziklaomlás, kőomlás,  földcsuszamlás, ismeretlen építmény vagy üreg beomlása, vezetékesvíz-károk, tűzoltó berendezés kilyukadása, csőtörés-károk, idegen jármű beleütközése,"},null,null,null,null,null,null,null,null,null,null,null,null,null,null,null,null,null,null,null,null,null,null,null,0]
[null,null,{"$f":"Tomb!E102","v":"idegen tárgyak rádölése, üvegtörés átalánybiztosítása, közös tulajdonú ingóságok kiegészítő biztosítása,"},null,null,null,null,null,null,null,null,null,null,null,null,null,null,null,null,null,null,null,null,null,null,null,0]
[null,null,{"$f":"IF(Tomb!B103=\"\",0,Tomb!B103)","v":"felvonók kiegészítő géptörés átalánybiztosítása, ."},null,null,null,null,null,null,null,null,null,null,null,null,null,null,null,null,null,null,null,null,null,null,null,0]
[null,null,{"$f":"IF(AND(Haz!X42>0,NOT(Tomb!O75),Haz!K30>0),\"Nyitva hagyott nyílászáró beázás kára, tető- és panelhézag beázások, vandalizmus, grafiti károk, kerti növényi kultúrák és kerti berendezési/felszerelési tárgyak, kukák kiegészítő biztosítása,\",0)","v":"Nyitva hagyott nyílászáró beázás kára, tető- és panelhézag beázások, vandalizmus, grafiti károk, kerti növényi kultúrák és kerti berendezési/felszerelési tárgyak, kukák kiegészítő biztosítása,"},null,null,null,null,null,null,null,null,null,null,null,null,null,null,null,null,null,null,null,null,null,null,null,0]
[null,null,{"$f":"IF(AND(Haz!X42>0,NOT(Tomb!O76),Haz!K30>0),\"betöréses lopás, rablás kár, homlokzaton, tetőn rögzített felszerelési tárgyak kiegészítő lopás biztosítása,\",0)","v":"betöréses lopás, rablás kár, homlokzaton, tetőn rögzített felszerelési tárgyak kiegészítő lopás biztosítása,"},null,null,null,null,null,null,null,null,null,null,null,null,null,null,null,null,null,null,null,null,null,null,null,{"$f":"IF(C41=0,1,0)","v":0}]
[null,null,{"$f":"IF(Haz!X42>0,Tomb!B109,0)","v":"Az üvegbiztosítás kártérítési határa, üveg átalánybiztosítás alapján a feltételeinkben leírtak szerint."},null,null,null,null,null,null,null,null,null,null,null,null,null,null,null,null,null,null,null,null,null,null,null,{"$f":"IF(C42=0,1,0)","v":0}]
[null,null,{"$f":"IF(AND(Haz!X42>0,NOT(Tomb!O75),Haz!K30>0),\"A biztosító a STÉBI 2011, 1.6, 1.7, 1.21-23, 1.26, pontokban meghatározott veszélynemekre kártérítésként mindösszesen, évente legfeljebb \"&FIXED(Haz!K30,0)&\" Ft-ig fizet. Az egyes záradékok külön kártérítési limiteit az átadott feltételek tartalmazzák.\",0)","v":"A biztosító a STÉBI 2011, 1.6, 1.7, 1.21-23, 1.26, pontokban meghatározott veszélynemekre kártérítésként mindösszesen, évente legfeljebb 688 800 Ft-ig fizet. Az egyes záradékok külön kártérítési limiteit az átadott feltételek tartalmazzák."},null,null,null,null,null,null,null,null,null,null,null,null,null,null,null,null,null,null,null,null,null,null,null,0]
[null,null,{"$f":"IF(Haz!X44>0,Tomb!B111,0)","v":"Ingatlanhasználói és -üzemeltetői felelősségbiztosítás illetve a lakók egymásnak okozott káraira. (Feltételeinktől eltérően önrész nélkül)"},null,null,null,null,null,null,null,null,null,null,null,null,null,null,null,null,null,null,null,null,null,null,null,0]
[null,null,{"$f":"IF(AND(Haz!X44>0,Haz!M61>0),Tomb!B105,0)","v":"Ingatlanhasználói és -Üzemeltetői felelősségbiztosítás kártérítési limite alapfedezet esetén 15 mFt/kár/év ezen belül a bővített fedezetben meghatározott károk sublimite 7,5 mFt/kár."},null,null,null,null,null,null,null,null,null,null,null,null,null,null,null,null,null,null,null,null,null,null,null,0]
[null,null,{"$f":"IF(AND(Haz!X42>0,Haz!X45>0),Tomb!B107,0)","v":"A SIGNAL Assistance vészelhárítási szolgáltatás limite 25.000.- Ft"},null,null,null,null,null,null,null,null,null,null,null,null,null,null,null,null,null,null,null,null,null,null,null,0]
[]
[null,null,null,null,null,null,null,null,null,null,null,null,null,null,null,null,null,null,null,null,null,null,null,null,null,null,{"$f":"IF($AA$4>=5,0,1)","v":1}]
[null,"Vonatkozó általános biztosítási feltételek: "]
[null,null,null,"-","Tömbházak Biztosításának Általános Feltétele (STÁVBI 2011)"]
[null,null,null,"-","Épületbiztosítás Feltétele (STÉBI 2011)"]
[null,null,null,{"$f":"IF(E52>0,\"-\",0)","v":0},{"$f":"IF(AND(Tomb!G63>1,Haz!M57>0),\"Kiegészítő Üvegbiztosítás Feltétele (STÜBI 2011)\",0)","v":0},null,null,null,null,null,null,null,null,null,null,null,null,null,null,null,null,null,null,null,null,null,{"$f":"IF(E52=0,1,0)","v":1}]
[null,null,null,"-",{"$f":"IF(AND(Tomb!B80,Haz!M64>0),\"Tömbházak Felelősségbiztosításának Általános Feltétele (STÁFBI 2011)\",0)","v":"Tömbházak Felelősségbiztosításának Általános Feltétele (STÁFBI 2011)"},null,null,null,null,null,null,null,null,null,null,null,null,null,null,null,null,null,null,null,null,null,0]
[null,null,null,"-",{"$f":"IF(AND(Tomb!B81,Haz!M61>0),\"Ingatlanhasználói és -Üzemeltetői Felelősségbiztosítás Feltételei (STIFBI 2011)\",0)","v":"Ingatlanhasználói és -Üzemeltetői Felelősségbiztosítás Feltételei (STIFBI 2011)"},null,null,null,null,null,null,null,null,null,null,null,null,null,null,null,null,null,null,null,null,null,0]
[null,null,null,0,{"$f":"IF(AND(Tomb!B82,Haz!M62>0),\"Kiegészítő Munkáltatói Felelősségbiztosítás Feltétele (STUBI 2011)\",0)","v":0},null,null,null,null,null,null,null,null,null,null,null,null,null,null,null,null,null,null,null,null,null,1]
[null,null,null,0,{"$f":"IF(AND(Tomb!B83,Haz!M63>0),\"Kiegészítő Társasház-Kezelői Felelősségbiztosítás Feltétele (STÖFBI 2013)\",0)","v":0},null,null,null,null,null,null,null,null,null,null,null,null,null,null,null,null,null,null,null,null,null,1]
[null,null,null,"-",{"$f":"IF(AND(Tomb!B79,Haz!X36>0),\"Felvonók Kiegészítő Géptörés Átalánybiztosításnak Feltétele (STLIBI 2011)\",0)","v":"Felvonók Kiegészítő Géptörés Átalánybiztosításnak Feltétele (STLIBI 2011)"},null,null,null,null,null,null,null,null,null,null,null,null,null,null,null,null,null,null,null,null,null,0]
[null,null,null,0,{"$f":"IF(AND(Tomb!B78,Haz!X33>0),\"Kiegészítő Gépjármű-Biztosítás Feltétele (STABI 2011)\",0)","v":0},null,null,null,null,null,null,null,null,null,null,null,null,null,null,null,null,null,null,null,null,null,1]
[null,null,null,"-",{"$f":"IF(AND(Tomb!D83,Haz!X38>0),\"Signal Lakás Assistance Biztosítás Feltétele (SASBI 2013)\",0)","v":"Signal Lakás Assistance Biztosítás Feltétele (SASBI 2013)"},null,null,null,null,null,null,null,null,null,null,null,null,null,null,null,null,null,null,null,null,null,0]
[null,null,null,null,null,null,null,null,null,null,null,null,null,null,null,null,null,null,null,null,null,null,null,null,null,null,{"$f":"IF($AA$3>=2,0,1)","v":0}]
[null,"A fenti kockázatokra biztosított vagyontárgyak",null,null,null,null,null,null,null,null,null,null,null,null,null,"Biztosítási összeg (eFt)",null,null,null,null,null,null,"Díj (Ft)"]
[]
[null,null,null,null,null,null,null,null,null,null,null,null,null,null,null,null,null,null,null,null,null,null,null,null,null,null,{"$f":"IF($AA$3>=3,0,1)","v":0}]
[null,"Teljes épület újraépítési értéke:",null,null,null,null,null,null,null,{"$f":"IF(Haz!I20=100%,0,Haz!K20/1000)","v":0},null,null,null,"eFt",null,null,null,null,null,null,null,null,null,null,null,null,{"$f":"IF(J64=0,1,0)","v":1}]
[null,"Közös tulajdon aránya:",null,null,null,null,null,null,null,null,null,null,null,null,null,{"$f":"IF(Haz!I20=100%,0,Haz!I20*100)","v":0},"%",null,null,null,null,null,null,null,null,null,{"$f":"IF(P65=0,1,0)","v":1}]
[null,null,{"$f":"IF(Haz!I20=100%,\"Épület:\",\"Közös tulajdonú épületrészek:\")","v":"Épület:"},null,null,null,null,null,null,null,null,null,null,null,null,null,{"$f":"IF(Haz!O20=0,0,Haz!O20/1000)","v":668700},null,null,null,"eFt",null,null,null,null,null,{"$f":"IF(Q66=0,1,0)","v":0}]
[null,null,{"$f":"VLOOKUP(Tomb!D95,Tomb!J95:K98,2,0)","v":"Közös tul. tűztávon belüli mellékép."},null,null,null,null,null,null,null,null,null,null,null,null,null,{"$f":"IF(Haz!O21=0,0,Haz!O21/1000)","v":0},null,null,null,"eFt",null,null,null,null,null,1]
[null,null,{"$f":"\"Központi berendezés:\"&IF(Haz!O22>0,\" (\"&Haz!F22&\")\",\"\")","v":"Központi berendezés: (Kaputelefonrendszer)"},null,null,null,null,null,null,null,null,null,null,null,null,null,{"$f":"IF(Haz!O22=0,0,Haz!O22/1000)","v":100},null,null,null,"eFt",null,null,null,null,null,0]
[null,null,{"$f":"\"Központi berendezés:\"&IF(Haz!O23>0,\" (\"&Haz!F23&\")\",\"\")","v":"Központi berendezés: (Lift)"},null,null,null,null,null,null,null,null,null,null,null,null,null,{"$f":"IF(Haz!O23=0,0,Haz!O23/1000)","v":20000},null,null,null,"eFt",null,null,null,null,null,0]
[null,null,{"$f":"\"Kerítés fajtája:\"&IF(Haz!O24>0,\" (\"&Haz!F24&\")\",\"\")","v":"Kerítés fajtája:"},null,null,null,null,null,null,null,null,null,null,null,null,null,{"$f":"IF(Haz!O24=0,0,Haz!O24/1000)","v":0},null,null,null,"eFt",null,null,null,null,null,1]
[null,null,{"$f":"\"Kerítés fajtája:\"&IF(Haz!O25>0,\" (\"&Haz!F25&\")\",\"\")","v":"Kerítés fajtája:"},null,null,null,null,null,null,null,null,null,null,null,null,null,{"$f":"IF(Haz!O25=0,0,Haz!O25/1000)","v":0},null,null,null,"eFt",null,null,null,null,null,1]
[null,null,{"$f":"\"Egyéb:\"&IF(Haz!O26>0,\" (\"&Haz!F26&\")\",\"\")","v":"Egyéb:"},null,null,null,null,null,null,null,null,null,null,null,null,null,{"$f":"IF(Haz!O26=0,0,Haz!O26/1000)","v":0},null,null,null,"eFt",null,null,null,null,null,1]
[null,null,{"$f":"\"Egyéb:\"&IF(Haz!O27>0,\" (\"&Haz!F27&\")\",\"\")","v":"Egyéb:"},null,null,null,null,null,null,null,null,null,null,null,null,null,{"$f":"IF(Haz!O27=0,0,Haz!O27/1000)","v":0},null,null,null,"eFt",null,null,null,null,null,1]
[null,null,{"$f":"\"Közös tul. ingóságok:\"&IF(Haz!O28>0,\" (\"&Haz!F28&\")\",\"\")","v":"Közös tul. ingóságok:"},null,null,null,null,null,null,null,null,null,null,null,null,null,{"$f":"IF(Haz!O28=0,0,Haz!O28/1000)","v":0},null,null,null,"eFt",null,null,null,null,null,1]
[null,null,{"$f":"\"Közös tul. ingóságok:\"&IF(Haz!O29>0,\" (\"&Haz!F29&\")\",\"\")","v":"Közös tul. ingóságok:"},null,null,null,null,null,null,null,null,null,null,null,null,null,{"$f":"IF(Haz!O29=0,0,Haz!O29/1000)","v":0},null,null,null,"eFt",null,null,null,null,null,1]
[]
[null,null,null,null,null,null,null,null,null,null,null,null,null,null,null,null,null,null,null,null,null,null,null,null,null,null,{"$f":"IF($AA$3>=4,0,1)","v":0}]
[null,"Biztosított vagyontárgyak összesen:",null,null,null,null,null,null,null,null,null,null,null,null,null,null,{"$f":"IF(Haz!O30=0,0,Haz!O30/1000)","v":688800},null,null,null,{"$f":"IF(Q78>0,\"eFt\",\"\")","v":"eFt"},null,{"$f":"IF(Haz!X42>0,Haz!X42,0)","v":571704},null,null,{"$f":"IF(W78>0,\"Ft\",\"\")","v":"Ft"},{"$f":"IF(W78=0,1,0)","v":0}]
[null,"Kiegészítő üvegbiztosítás:",null,null,null,null,null,null,null,null,null,null,null,null,null,null,{"$f":"IF(Haz!M57>0,Haz!I57,0)","v":0},null,null,null,{"$f":"IF(Q79>0,\"Ft\",\"\")","v":""},null,{"$f":"IF(Haz!X43>0,Haz!X43,0)","v":0},null,null,{"$f":"IF(W79>0,\"Ft\",\"\")","v":""},{"$f":"IF(W79=0,1,0)","v":1}]
[null,"Felelősségbiztosítás:",null,null,null,null,null,{"$f":"IF(W80>0,Tomb!B117,0)","v":"Alap 15 mFt/kár/év + Bővített 7,5 mFt/kár   "},null,null,null,null,null,null,null,null,null,null,null,null,null,null,{"$f":"IF(Haz!X44>0,Haz!X44,0)","v":103320},null,null,"Ft",{"$f":"IF(W80=0,1,0)","v":0}]
[null,"Gépjárművek biztosítása:",null,null,null,null,null,null,null,{"$f":"IF(W81>0,FIXED(Tomb!I31,0)&\" Ft/jármű/év\",\"\")","v":""},null,null,null,null,null,null,null,null,null,null,null,null,{"$f":"IF(Haz!X47>0,Haz!X47,0)","v":0},null,null,"",{"$f":"IF(W81=0,1,0)","v":1}]
[null,"Felvonók géptörés biztosítása:",null,null,null,null,null,null,null,null,{"$f":"IF(AND(Tomb!D79,W82>0),FIXED(VLOOKUP(Tomb!W65,Tomb!G34:J37,2,0),0)&\" eFt/kár \"&FIXED(VLOOKUP(Tomb!W65,Tomb!G34:J37,3,0),0)&\" eFt/év/felv.\",0)","v":"150 eFt/kár 500 eFt/év/felv."},null,null,null,null,null,null,null,null,null,null,null,{"$f":"IF(Haz!X48>0,Haz!X48,0)","v":12000},null,null,"Ft",{"$f":"IF(W82=0,1,0)","v":0}]
[null,null,null,null,null,null,null,null,null,null,null,null,null,null,null,null,null,null,null,null,null,null,null,null,null,null,{"$f":"IF($AA$3>=5,0,1)","v":0}]
[null,null,null,null,null,null,null,null,null,null,null,null,null,null,null,null,null,null,null,null,null,null,null,null,null,null,{"$f":"IF($W$85=0,1,0)","v":0}]
[null,"Biztosítási díj:",null,null,null,null,null,{"$f":"IF(Haz!I20=100%,\"(a teljes épület biztosításra)\",IF(Haz!I20<100%,\"(alapító okirat szerinti közös tulajdonra)\",\"\"))","v":"(a teljes épület biztosításra)"},null,null,null,null,null,null,null,null,null,null,null,null,null,null,{"$f":"IF(Haz!X49>0,Haz!X49,0)","v":752884},null,null,"Ft",0]
[null,null,null,null,null,null,null,null,null,null,"Engedmények összesen:",null,null,null,null,null,null,{"$f":"IF(SUM(Haz!X50:Z56)>0,SUM(Haz!U50:U56),0)","v":0.14000000000000001},null,null,null,null,{"$f":"IF(SUM(Haz!X50:Z56)>0,SUM(Haz!X50:Z56)*-1,0)","v":-105404},null,null,{"$f":"IF(W86<>0,\"Ft\",\"\")","v":"Ft"},0]
[null,null,null,null,null,null,null,null,null,null,"Díjfizetési ütem:",null,null,null,{"$f":"IF(Haz!X59>0,VLOOKUP(Tomb!I49,Tomb!A44:C47,3,0),0)","v":"(éves)"},null,null,{"$f":"IF(Haz!U58>0,Haz!U58,0)","v":0},null,{"$f":"IF(R87>0,\"(pótdíj)\",\"\")","v":""},null,null,{"$f":"IF(Haz!X58>0,Haz!X58,0)","v":0},null,null,"",0]
[null,null,null,null,null,null,null,null,null,"Fizetendő éves díj összesen:",null,null,null,null,null,null,null,null,null,null,null,null,{"$f":"IF(Haz!X59>0,Haz!X59,0)","v":647480},null,null,{"$f":"IF(W88>0,\"Ft\",\"\")","v":"Ft"},0]
[null,null,null,null,null,null,null,null,null,null,{"$f":"IF(Haz!X59>0,VLOOKUP(Tomb!I49,Tomb!A44:C47,2,0)&\":\",0)","v":"Éves díj:"},null,null,null,null,null,null,null,null,null,null,null,{"$f":"IF(Haz!X60>0,Haz!X60,0)","v":647480},null,null,"Ft",0]
[]
[null,null,null,null,null,null,null,null,null,null,null,null,null,null,null,null,null,null,null,null,null,null,null,null,null,null,{"$f":"IF($AA$3>=6,0,1)","v":0}]
[null,"Megjegyzések:",null,null,null,null,null,null,null,null,null,null,null,null,null,null,null,null,null,null,null,null,null,null,null,null,{"$f":"IF(SUM(AA94:AA98)=3,1,0)","v":1}]
[null,null,null,null,null,null,null,null,null,null,null,null,null,null,null,null,null,null,null,null,null,null,null,null,null,null,{"$f":"IF(SUM(AA94:AA98)=5,1,0)","v":0}]
[null,null,{"$f":"IF(Tomb!K55=2,\"Az építés, átépítés, összeszerelés alatt levő biztosított vagyontárgyakban bekövetkezett kárt a biztosító a káridőpontig ténylegesen felmerült építési, átépítési, összeszerelési költségek mértékéig téríti meg,\",0)","v":0},null,null,null,null,null,null,null,null,null,null,null,null,null,null,null,null,null,null,null,null,null,null,null,{"$f":"IF(C94=0,1,0)","v":1}]
[null,{"$f":"IF(AND(AA95=0,C95>0),\"•\",\"\")","v":"•"},"Szerződő/Biztosított tudomásul veszi az esetleges alulbiztosítottság következményeit.",null,null,null,null,null,null,null,null,null,null,null,null,null,null,null,null,null,null,null,null,null,null,null,{"$f":"IF(C95=0,1,0)","v":0}]
[null,{"$f":"IF(AND(AA96=0,C96>0),\"•\",\"\")","v":""},null,null,null,null,null,null,null,null,null,null,null,null,null,null,null,null,null,null,null,null,null,null,null,null,{"$f":"IF(C96=0,1,0)","v":1}]
[null,null,{"$f":"IF(AND(Haz!Q63=1,Haz!Q64>\"\"),Haz!Q64,0)","v":0},null,null,null,null,null,null,null,null,null,null,null,null,null,null,null,null,null,null,null,null,null,null,null,{"$f":"IF(C97=0,1,0)","v":1}]
[]
[null,null,null,null,null,null,null,null,null,null,null,null,null,null,null,null,null,null,null,null,null,null,null,null,null,null,{"$f":"IF($AA$3>=7,0,1)","v":0}]
[null,"Az ájánlat pontos elkészítéséhez  az alábbi adatpótlások szükségesek.",null,null,null,null,null,null,null,null,null,null,null,null,null,null,null,null,null,null,null,null,null,null,null,null,{"$f":"IF(SUM(AA102:AA115)=15,1,0)","v":0}]
[null,null,null,null,null,null,null,null,null,null,null,null,null,null,null,null,null,null,null,null,null,null,null,null,null,null,{"$f":"IF(SUM(AA102:AA115)=15,1,0)","v":0}]
[null,{"$f":"IF(AND(AA102=0,C102>0),\"•\",\"\")","v":""},{"$f":"IF(AND(Haz!Q6=1,OR(Haz!R6=\"\",Haz!R6=\"?\")),\"Amennyiben a szerződés átdolgozás, úgy a régi kötvényszám megadása szükséges.\",0)","v":0},null,null,null,null,null,null,null,null,null,null,null,null,null,null,null,null,null,null,null,null,null,null,null,{"$f":"IF(C102=0,1,0)","v":1}]
[null,{"$f":"IF(AND(AA103=0,C103>0),\"•\",\"\")","v":""},{"$f":"IF(Haz!C6=0,\"Kérem adja meg, hogy pontosan kinek címezzük az ajánlatot?\",0)","v":0},null,null,null,null,null,null,null,null,null,null,null,null,null,null,null,null,null,null,null,null,null,null,null,{"$f":"IF(C103=0,1,0)","v":1}]
[null,"",{"$f":"IF(AND(Haz!O7=1,OR(Haz!C7=0,Haz!E7=0,Haz!J7=0)),\"A szerződés megkötéséhez a pontos levelezési cím szükséges. (Irányítószámmal együtt)\",0)","v":0},null,null,null,null,null,null,null,null,null,null,null,null,null,null,null,null,null,null,null,null,null,null,null,1]
[null,"",{"$f":"IF(OR(Haz!W6=0,Haz!W6<NOW()),\"Kérem adja meg, mikor kezdődjön a biztosítás, valamint a díjfizetés ütemét.\",0)","v":0},null,null,null,null,null,null,null,null,null,null,null,null,null,null,null,null,null,null,null,null,null,null,null,1]
[null,"",{"$f":"IF(OR(Haz!C4=0,Haz!C4=\"?\",Haz!E4=0,Haz!E4=\"?\",Haz!J4=0,Haz!J4=\"?\"),\"A kockázatviselés helyének pontos megadása elengedhetetlen a szerződés megkötéséhez!\",0)","v":0},null,null,null,null,null,null,null,null,null,null,null,null,null,null,null,null,null,null,null,null,null,null,null,1]
[null,"•",{"$f":"IF(Haz!L6=\"\",\"A szerződő képviseletében eljáró személy Email címének megadása szükséges!\",\"\")","v":"A szerződő képviseletében eljáró személy Email címének megadása szükséges!"},null,null,null,null,null,null,null,null,null,null,null,null,null,null,null,null,null,null,null,null,null,null,null,0]
[null,"",null,null,null,null,null,null,null,null,null,null,null,null,null,null,null,null,null,null,null,null,null,null,null,null,1]
[null,"",null,null,null,null,null,null,null,null,null,null,null,null,null,null,null,null,null,null,null,null,null,null,null,null,1]
[null,"",null,null,null,null,null,null,null,null,null,null,null,null,null,null,null,null,null,null,null,null,null,null,null,null,1]
[null,"",null,null,null,null,null,null,null,null,null,null,null,null,null,null,null,null,null,null,null,null,null,null,null,null,{"$f":"IF($AA$3>=8,0,1)","v":0}]
[null,"",null,null,null,null,null,null,null,null,null,null,null,null,null,null,null,null,null,null,null,null,null,null,null,null,{"$f":"IF($AA$3>=9,0,1)","v":0}]
[null,"",null,null,null,null,null,null,null,null,null,null,null,null,null,null,null,null,null,null,null,null,null,null,null,null,{"$f":"IF($AA$3>=10,0,1)","v":0}]
[null,"",null,null,null,null,null,null,null,null,null,null,null,null,null,null,null,null,null,null,null,null,null,null,null,null,{"$f":"IF($AA$3>=11,0,1)","v":0}]
[null,"",null,null,null,null,null,null,null,null,null,null,null,null,null,null,null,null,null,null,null,null,null,null,null,null,{"$f":"IF($AA$3>=12,0,1)","v":0}]
[]
[null,"A fenti, illetve az itt nem érintett egyéb biztosítási kérdésekben a jövőben is készséggel állunk rendelkezésükre."]
[null,"Jelen díjajánlat elfogadása esetén kérjük visszajelzésüket, hogy egyeztethessünk a helyszíni kockázat-elbírálásról és az esetleges hiányzó adatok pótlásáról."]
[]
[null,null,null,null,null,null,null,null,null,null,null,null,null,null,null,null,null,null,null,null,null,null,null,null,null,null,{"$f":"IF($AA$3>=1,0,1)","v":0}]
[null,null,"A sikeres üzletkötés reményében!"]
[]
[null,null,null,null,null,null,null,null,null,null,null,null,"Tisztelettel;"]
[]
[null,null,null,null,null,null,null,null,null,null,null,null,null,null,null,null,null,null,"Biztosítási képviselő"]
[]
[]
[]
[]
[]
[]
[]
[]
[]
[]
[]
[]
[]
[]
[]
[]
[]
[]
[]
[]
[]
[]
[]
[]
[]
[]
[]
[]
[]
[]
[]
[]
[]
[]
[]
[]
[]
[]
[]
[]
[]
[]
[]
[]
[]
[]
[]
[]
[]
[]
[]
[]
[]
[]
[]
[]
[]
[]
[]
[]
[]
[]
[]
[]
[]
[]
[]
[]
[]
[]
[]
[]
[]
[]
[]
[]
[]
[]
[]
[]
[]
[]
[null,"Makró vége"]

{"sheet":"Da","index":6,"n_rows":208,"n_cols":27,"rows_kept":208,"cut":false,"hidden":false,"merged":[[169,1,169,25],[94,2,94,25],[90,2,90,25],[201,1,201,8],[201,17,201,24],[201,9,201,16],[99,2,99,25],[96,2,96,25],[97,2,97,25],[142,3,142,12],[142,15,142,24],[138,8,138,16],[138,20,138,24],[200,1,200,24],[170,1,170,25],[193,6,193,16],[192,8,192,14],[192,18,192,23],[182,3,182,9],[184,1,184,4],[184,5,184,7],[184,8,184,17],[164,1,164,25],[166,1,166,25],[167,1,167,25],[20,11,20,25],[98,2,98,25],[78,2,78,25],[76,2,76,25],[88,2,88,25],[89,2,89,25],[92,2,92,25],[95,2,95,25],[70,14,70,17],[41,4,41,25],[44,4,44,25],[48,4,48,25],[91,2,91,25],[93,2,93,25],[84,10,84,13],[84,17,84,19],[82,22,82,24],[84,22,84,24],[45,4,45,25],[46,4,46,25],[49,4,49,25],[79,2,79,25],[75,2,75,25],[77,2,77,25],[4,1,4,13],[17,3,17,24],[1,1,1,10],[2,1,2,25],[5,1,5,13],[8,1,8,8],[9,1,9,8],[9,20,9,25],[10,1,10,2],[8,20,8,25],[10,22,10,25],[11,21,11,24],[73,2,73,25],[74,2,74,25],[26,7,26,25],[66,14,66,17],[40,4,40,25],[52,14,52,17],[58,14,58,17],[59,14,59,17],[28,12,28,18],[30,9,30,25],[67,14,67,17],[60,14,60,17],[61,14,61,17],[62,14,62,17],[63,14,63,17],[64,14,64,17],[65,14,65,17],[43,4,43,25],[47,4,47,25],[50,4,50,25],[42,4,42,25],[27,4,27,5],[148,3,148,12],[148,15,148,24],[150,6,150,14],[150,20,150,24],[152,19,152,24],[163,1,163,25],[111,2,111,25],[112,2,112,25],[113,2,113,25],[114,2,114,25],[144,6,144,14],[144,20,144,24],[104,14,104,16],[106,14,106,16],[132,1,132,25],[134,8,134,17],[134,20,134,24],[136,8,136,24],[115,2,115,25],[116,2,116,25],[117,2,117,25],[130,1,130,25]]}
[]
[null,null,null,null,null,null,null,null,null,null,null,null,null,null,null,null,null,null,null,null,null,null,null,null,null,null,27]
[null,"SIGNAL Biztosító Zrt. 1123 BUDAPEST, Alkotás u. 50. Tel: 458-4222, Fax: 458-4151 E-mail: info@signal.hu, Internet: http://www.signal.hu",null,null,null,null,null,null,null,null,null,null,null,null,null,null,null,null,null,null,null,null,null,null,null,null,{"$f":"SUM(AA41:AA54)+SUM(AA57:AA68)","v":13}]
[null,null,null,null,null,null,null,null,null,null,null,null,null,null,null,null,null,null,null,null,null,null,null,null,null,null,{"$f":"SUM(AA73:AA80)+SUM(AA82:AA86)+SUM(AA88:AA100)+SUM(AA103:AA108)","v":6}]
[null,{"$f":"IF(OR(Haz!H6=\"\",Haz!H6=0),Haz!C5,Haz!H6)","v":"1075  Budapest  Rumbach Sebestyén u. 12.   (Társasház)"},null,null,null,null,null,null,null,null,null,null,null,null,null,null,null,null,"ügyintéző:",null,null,null,null,null,null,{"$f":"Ugyf!V5","v":0}]
[null,{"$f":"IF(OR(Haz!C6=\"\",Haz!C6=0),0,Haz!C6)","v":"kk"},null,null,null,null,null,null,null,null,null,null,null,null,null,null,null,null,"tel:",null,null,null,null,null,null,{"$f":"Ugyf!T6","v":"06309342756"}]
[null,"részére",null,null,null,null,null,null,null,null,null,null,null,null,null,null,null,null,"fax:",null,null,null,null,null,null,{"$f":"Ugyf!T7","v":"0613810204"}]
[null,null,null,null,null,null,null,null,null,null,null,null,null,null,null,null,null,null,"e-mail:",null,null,null,null,null,null,{"$f":"Ugyf!U8","v":"n.gabriella@prezerval.hu"}]
[null,{"$f":"IF(AND(Haz!$O$7=0,Haz!E4>\"\"),Haz!E4,IF(AND(Haz!$O$7=1,Haz!E7>\"\"),Haz!E7,\"Kérem megadni.\"))","v":"Budapest"},null,null,null,null,null,null,null,null,null,null,null,null,null,null,null,null,"dátum:",null,{"$f":"NOW()","v":"2014-09-28T14:55:02.800"}]
[null,{"$f":"IF(AND(Haz!$O$7=0,Haz!J4>\"\"),Haz!J4,IF(AND(Haz!$O$7=1,Haz!J7>\"\"),Haz!J7,\"Kérem megadni.\"))","v":"Rumbach Sebestyén u. 12."},null,null,null,null,null,null,null,null,null,null,null,null,null,null,null,null,"közvetítő:",null,{"$f":"Haz!S5","v":0}]
[null,{"$f":"IF(AND(Haz!$O$7=0,Haz!C4>0),Haz!C4,IF(AND(Haz!$O$7=1,Haz!C7>0),Haz!C7,0))","v":1075},null,null,null,null,null,null,null,null,null,null,null,null,null,null,null,null,null,null,null,{"$f":"IF(Haz!Q6=0,\"\",IF(Haz!Q6=1,\"Átdolgozás:\",\"\"))","v":""},{"$f":"IF(Haz!Q6=0,0,IF(Haz!Q6=1,Haz!R6,0))","v":0}]
[null,null,{"$f":"IF(OR(Haz!L6=\"\",Haz!L6=0),\"\",\"e-mail:\")","v":""},{"$f":"IF(OR(Haz!L6=\"\",Haz!L6=0),\"\",Haz!L6)","v":""},null,null,null,null,null,null,null,null,null,null,null,null,null,null,null,null,{"$f":"IF(OR(Haz!Q6=0,V12>\"\"),\"Kötvényszám:\",\"\")","v":"Kötvényszám:"},{"$f":"IF(AND(Haz!Q6=0,Haz!Q2>\"\"),502&Haz!Q2,\"\")","v":""}]
[]
[null,null,null,null,null,null,null,null,null,null,null,null,null,null,null,null,null,null,null,null,null,null,null,null,null,null,{"$f":"IF($AA$3>=2,0,1)","v":0}]
[null,"Tárgy:",null,{"$f":"\"Előzetes díjajánlat;   \"&Haz!C5&\" számára\"","v":"Előzetes díjajánlat;   1075  Budapest  Rumbach Sebestyén u. 12.   (Társasház) számára"}]
[]
[null,null,null,null,null,null,null,null,null,null,null,null,null,null,null,null,null,null,null,null,null,null,null,null,null,null,{"$f":"IF($AA$3>=4,0,1)","v":0}]
[null,"Tisztelt",null,{"$f":"IF(AND(Haz!O6=0,Haz!C6=\"\",Haz!L6=\"\"),\"Társasházi közös képviselő!\",IF(Haz!C6>\"\",Haz!C6&IF(Haz!O6=0,\"!\",IF(Haz!O6=1,\" Úr!\",IF(Haz!O6=2,\" Úrhölgy!\",0))),IF(Haz!L6>\"\",Haz!L6&IF(Haz!O6=0,\"!\",IF(Haz!O6=1,\" Úr!\",IF(Haz!O6=2,\" Úrhölgy!\",0))),0)))","v":"kk!"}]
[]
[null,null,null,null,null,null,null,null,null,null,null,null,null,null,null,null,null,null,null,null,null,null,null,null,null,null,{"$f":"IF($AA$3>=6,0,1)","v":0}]
[null,"Megtiszteltetésként fogadtuk, hogy a(z)",null,null,null,null,null,null,null,null,null,{"$f":"IF(Haz!C5>\"\",Haz!C5,0)","v":"1075  Budapest  Rumbach Sebestyén u. 12.   (Társasház)"}]
[null,"vagyonbiztosítási ajánlatával a SIGNAL Biztosító Zrt-hez fordultak."]
[null,"Az Önök által közölt adatok alapján az alábbi előzetes díjajánlattal tudunk a rendelkezésükre állni."]
[null,"A dijajánlat elfogadása esetén kérjük szíveskedjenek kezdeményezni a szerződéskötést."]
[]
[null,null,null,null,null,null,null,null,null,null,null,null,null,null,null,null,null,null,null,null,null,null,null,null,null,null,{"$f":"IF($AA$3>=8,0,1)","v":0}]
[null,"I.","A szerződő neve:",null,null,null,null,{"$f":"IF(Haz!C5>\"\",Haz!C5,0)","v":"1075  Budapest  Rumbach Sebestyén u. 12.   (Társasház)"}]
[]
[null,"II.","A kockázatviselés igényelt kezdete:",null,null,null,null,null,null,null,null,null,{"$f":"IF(Haz!W6>0,Haz!W6,0)","v":"2014-12-01"}]
[]
[null,"III.","A kockázatviselés helye:",null,null,null,null,null,null,{"$f":"IF(AND(Haz!C4>0,Haz!E4>\"\",Haz!J4>\"\"),Haz!C4&\"  \"&Haz!E4&\"  \"&Haz!J4,0)","v":"1075  Budapest  Rumbach Sebestyén u. 12."}]
[]
[null,"IV.",{"$f":"IF(Haz!I20=100%,\"A TELJES TÁRSASHÁZ EGÉSZÉRE,   (AZ ALAPÍTÓ OKIRAT SZERINTI KÜLÖNTULAJDONOK\",IF(Haz!I20<100%,\"AZ ALAPÍTÓ OKIRAT SZERINTI KÖZÖS TULAJDONRA,   (AZ ALAPÍTÓ OKIRAT SZERINTI KÜLÖN-\",\"\"))","v":"A TELJES TÁRSASHÁZ EGÉSZÉRE,   (AZ ALAPÍTÓ OKIRAT SZERINTI KÜLÖNTULAJDONOK"}]
[null,null,{"$f":"Tomb!B101","v":"ALAPTERÜLETÉT 225 000 Ft/m2 ÚJRAELŐÁLLÍTÁSI ÉRTÉKEN ALAPULVÉVE)"}]
[]
[null,null,"Biztosítási összegek, kártérítési limitek a biztosított által feladott értéken, díjszámítás, feltételek:"]
[]
[null,null,"(Biztosítási összegek a mellékelt táblázat szerint)."]
[]
[null,"V.","Vonatkozó általános biztosítási feltételek: "]
[null,null,null,"-","Tömbházak Biztosításának Általános Feltétele (STÁVBI 2011)"]
[null,null,null,"-","Épületbiztosítás Feltétele (STÉBI 2011)"]
[null,null,null,"-","Feltétel Módosítás"]
[null,null,null,{"$f":"IF(E44>0,\"-\",0)","v":0},{"$f":"IF(AND(Tomb!G63>1,Haz!M57>0),\"Kiegészítő Üvegbiztosítás Feltétele (STÜBI 2011)\",0)","v":0},null,null,null,null,null,null,null,null,null,null,null,null,null,null,null,null,null,null,null,null,null,{"$f":"IF(E44=0,1,0)","v":1}]
[null,null,null,"-",{"$f":"IF(AND(Tomb!B80,Haz!M64>0),\"Tömbházak Felelősségbiztosításának Általános Feltétele (STÁFBI 2011)\",0)","v":"Tömbházak Felelősségbiztosításának Általános Feltétele (STÁFBI 2011)"},null,null,null,null,null,null,null,null,null,null,null,null,null,null,null,null,null,null,null,null,null,0]
[null,null,null,"-",{"$f":"IF(AND(Tomb!B81,Haz!M61>0),\"Ingatlanhasználói és -Üzemeltetői Felelősségbiztosítás Feltételei (STIFBI 2011)\",0)","v":"Ingatlanhasználói és -Üzemeltetői Felelősségbiztosítás Feltételei (STIFBI 2011)"},null,null,null,null,null,null,null,null,null,null,null,null,null,null,null,null,null,null,null,null,null,0]
[null,null,null,0,{"$f":"IF(AND(Tomb!B82,Haz!M62>0),\"Kiegészítő Munkáltatói Felelősségbiztosítás Feltétele (STUBI 2011)\",0)","v":0},null,null,null,null,null,null,null,null,null,null,null,null,null,null,null,null,null,null,null,null,null,1]
[null,null,null,0,{"$f":"IF(AND(Tomb!B83,Haz!M63>0),\"Kiegészítő Társasház-Kezelői Felelősségbiztosítás Feltétele (STÖFBI 2013)\",0)","v":0},null,null,null,null,null,null,null,null,null,null,null,null,null,null,null,null,null,null,null,null,null,1]
[null,null,null,"-",{"$f":"IF(AND(Tomb!B79,Haz!X36>0),\"Felvonók Kiegészítő Géptörés Átalánybiztosításnak Feltétele (STLIBI 2011)\",0)","v":"Felvonók Kiegészítő Géptörés Átalánybiztosításnak Feltétele (STLIBI 2011)"},null,null,null,null,null,null,null,null,null,null,null,null,null,null,null,null,null,null,null,null,null,0]
[null,null,null,0,{"$f":"IF(AND(Tomb!B78,Haz!X33>0),\"Kiegészítő Gépjármű-Biztosítás Feltétele (STABI 2011)\",0)","v":0},null,null,null,null,null,null,null,null,null,null,null,null,null,null,null,null,null,null,null,null,null,1]
[null,null,null,"-",{"$f":"IF(AND(Tomb!D83,Haz!X38>0),\"Signal Lakás Assistance Biztosítás Feltétele (SASBI 2013)\",0)","v":"Signal Lakás Assistance Biztosítás Feltétele (SASBI 2013)"},null,null,null,null,null,null,null,null,null,null,null,null,null,null,null,null,null,null,null,null,null,0]
[]
[null,null,"Teljes épület újraépítési értéke:",null,null,null,null,null,null,null,null,null,null,null,{"$f":"IF(Haz!I20=100%,0,Haz!K20/1000)","v":0},null,null,null,"eFt",null,null,null,null,null,null,null,{"$f":"IF(O53=0,1,0)","v":1}]
[null,null,"Közös tulajdon aránya:",null,null,null,null,null,null,null,null,null,null,null,null,null,null,{"$f":"IF(Haz!I20=100%,0,Haz!I20*100)","v":0},"%",null,null,null,null,null,null,null,{"$f":"IF(R54=0,1,0)","v":1}]
[null,null,null,null,null,null,null,null,null,null,null,null,null,null,null,null,null,null,null,null,null,null,null,null,null,null,{"$f":"IF($AA$3>=10,0,1)","v":0}]
[]
[null,"VI.","Biztosított vagyontárgyak",null,null,null,null,null,null,null,null,null,null,null,"Biztosítási összeg (eFt)"]
[]
[null,null,{"$f":"IF(Haz!I20=100%,\"Épület:\",\"Közös tulajdonú épületrészek:\")","v":"Épület:"},null,null,null,null,null,null,null,null,null,null,null,{"$f":"IF(Haz!O20=0,0,Haz!O20/1000)","v":668700},null,null,null,"eFt",null,null,null,null,null,null,null,{"$f":"IF(O59=0,1,0)","v":0}]
[null,null,{"$f":"VLOOKUP(Tomb!D95,Tomb!J95:K98,2,0)","v":"Közös tul. tűztávon belüli mellékép."},null,null,null,null,null,null,null,null,null,null,null,{"$f":"IF(Haz!O21=0,0,Haz!O21/1000)","v":0},null,null,null,"eFt",null,null,null,null,null,null,null,{"$f":"IF(O60=0,1,0)","v":1}]
[null,null,{"$f":"\"Központi berendezés:\"&IF(Haz!O22>0,\" (\"&Haz!F22&\")\",\"\")","v":"Központi berendezés: (Kaputelefonrendszer)"},null,null,null,null,null,null,null,null,null,null,null,{"$f":"IF(Haz!O22=0,0,Haz!O22/1000)","v":100},null,null,null,"eFt",null,null,null,null,null,null,null,0]
[null,null,{"$f":"\"Központi berendezés:\"&IF(Haz!O23>0,\" (\"&Haz!F23&\")\",\"\")","v":"Központi berendezés: (Lift)"},null,null,null,null,null,null,null,null,null,null,null,{"$f":"IF(Haz!O23=0,0,Haz!O23/1000)","v":20000},null,null,null,"eFt",null,null,null,null,null,null,null,0]
[null,null,{"$f":"\"Kerítés fajtája:\"&IF(Haz!O24>0,\" (\"&Haz!F24&\")\",\"\")","v":"Kerítés fajtája:"},null,null,null,null,null,null,null,null,null,null,null,{"$f":"IF(Haz!O24=0,0,Haz!O24/1000)","v":0},null,null,null,"eFt",null,null,null,null,null,null,null,1]
[null,null,{"$f":"\"Kerítés fajtája:\"&IF(Haz!O25>0,\" (\"&Haz!F25&\")\",\"\")","v":"Kerítés fajtája:"},null,null,null,null,null,null,null,null,null,null,null,{"$f":"IF(Haz!O25=0,0,Haz!O25/1000)","v":0},null,null,null,"eFt",null,null,null,null,null,null,null,1]
[null,null,{"$f":"\"Egyéb:\"&IF(Haz!O26>0,\" (\"&Haz!F26&\")\",\"\")","v":"Egyéb:"},null,null,null,null,null,null,null,null,null,null,null,{"$f":"IF(Haz!O26=0,0,Haz!O26/1000)","v":0},null,null,null,"eFt",null,null,null,null,null,null,null,1]
[null,null,{"$f":"\"Egyéb:\"&IF(Haz!O27>0,\" (\"&Haz!F27&\")\",\"\")","v":"Egyéb:"},null,null,null,null,null,null,null,null,null,null,null,{"$f":"IF(Haz!O27=0,0,Haz!O27/1000)","v":0},null,null,null,"eFt",null,null,null,null,null,null,null,1]
[null,null,{"$f":"\"Közös tul. ingóságok:\"&IF(Haz!O28>0,\" (\"&Haz!F28&\")\",\"\")","v":"Közös tul. ingóságok:"},null,null,null,null,null,null,null,null,null,null,null,{"$f":"IF(Haz!O28=0,0,Haz!O28/1000)","v":0},null,null,null,"eFt",null,null,null,null,null,null,null,1]
[null,null,{"$f":"\"Közös tul. ingóságok:\"&IF(Haz!O29>0,\" (\"&Haz!F29&\")\",\"\")","v":"Közös tul. ingóságok:"},null,null,null,null,null,null,null,null,null,null,null,{"$f":"IF(Haz!O29=0,0,Haz!O29/1000)","v":0},null,null,null,"eFt",null,null,null,null,null,null,null,1]
[]
[null,null,null,null,null,null,null,null,null,null,null,null,null,null,null,null,null,null,null,null,null,null,null,null,null,null,{"$f":"IF($AA$3>=12,0,1)","v":0}]
[null,null,null,null,null,null,null,"összesen:",null,null,null,null,null,null,{"$f":"IF(Haz!O30=0,0,Haz!O30/1000)","v":688800},null,null,null,"eFt",null,null,null,null,null,null,null,0]
[]
[null,"VII.","Biztosított kockázatok:"]
[null,null,{"$f":"IF(Haz!X42>0,\"Tűz, elektromos tűz, közvetlen villámcsapás, villámcsapás másodlagos hatása, robbanás, összeroppanás, légi jármű lezuhanása, vihar, felhőszakadás, jégverés, hónyomás, hó dinamikus hatása (lavina), árvíz,\",0)","v":"Tűz, elektromos tűz, közvetlen villámcsapás, villámcsapás másodlagos hatása, robbanás, összeroppanás, légi jármű lezuhanása, vihar, felhőszakadás, jégverés, hónyomás, hó dinamikus hatása (lavina), árvíz,"},null,null,null,null,null,null,null,null,null,null,null,null,null,null,null,null,null,null,null,null,null,null,null,{"$f":"IF(C74=0,1,0)","v":0}]
[null,null,{"$f":"IF(Haz!X42>0,\"földrengés, sziklaomlás, kőomlás,  földcsuszamlás, ismeretlen építmény vagy üreg beomlása, vezetékesvíz-károk, tűzoltó berendezés kilyukadása, csőtörés-károk, idegen jármű beleütközése,\",0)","v":"földrengés, sziklaomlás, kőomlás,  földcsuszamlás, ismeretlen építmény vagy üreg beomlása, vezetékesvíz-károk, tűzoltó berendezés kilyukadása, csőtörés-károk, idegen jármű beleütközése,"},null,null,null,null,null,null,null,null,null,null,null,null,null,null,null,null,null,null,null,null,null,null,null,0]
[null,null,{"$f":"IF(AND(Haz!X42>0,NOT(Tomb!O75),Haz!K30>0),\"Nyitva hagyott nyílászáró beázás kára, tető- és panelhézag beázások, vandalizmus, grafiti károk, kerti növényi kultúrák és kerti berendezési/felszerelési tárgyak, kukák kiegészítő biztosítása,\",0)","v":"Nyitva hagyott nyílászáró beázás kára, tető- és panelhézag beázások, vandalizmus, grafiti károk, kerti növényi kultúrák és kerti berendezési/felszerelési tárgyak, kukák kiegészítő biztosítása,"},null,null,null,null,null,null,null,null,null,null,null,null,null,null,null,null,null,null,null,null,null,null,null,0]
[null,null,{"$f":"IF(AND(Haz!X42>0,NOT(Tomb!O76),Haz!K30>0),\"betöréses lopás, rablás kár, homlokzaton, tetőn rögzített felszerelési tárgyak kiegészítő lopás biztosítása,\",0)","v":"betöréses lopás, rablás kár, homlokzaton, tetőn rögzített felszerelési tárgyak kiegészítő lopás biztosítása,"},null,null,null,null,null,null,null,null,null,null,null,null,null,null,null,null,null,null,null,null,null,null,null,0]
[null,null,{"$f":"Tomb!E102","v":"idegen tárgyak rádölése, üvegtörés átalánybiztosítása, közös tulajdonú ingóságok kiegészítő biztosítása,"},null,null,null,null,null,null,null,null,null,null,null,null,null,null,null,null,null,null,null,null,null,null,null,0]
[null,null,{"$f":"IF(Tomb!B103=\"\",0,Tomb!B103)","v":"felvonók kiegészítő géptörés átalánybiztosítása, ."},null,null,null,null,null,null,null,null,null,null,null,null,null,null,null,null,null,null,null,null,null,null,null,0]
[null,null,{"$f":"IF(Haz!X44>0,Tomb!B111,0)","v":"Ingatlanhasználói és -üzemeltetői felelősségbiztosítás illetve a lakók egymásnak okozott káraira. (Feltételeinktől eltérően önrész nélkül)"},null,null,null,null,null,null,null,null,null,null,null,null,null,null,null,null,null,null,null,null,null,null,null,0]
[null,null,null,null,null,null,null,null,null,null,null,null,null,null,null,null,null,null,null,null,null,null,null,null,null,null,{"$f":"IF($AA$4>=5,0,1)","v":0}]
[null,null,null,null,null,null,null,null,null,null,null,null,null,null,null,null,null,null,null,null,null,null,null,null,null,null,{"$f":"IF($W$85=0,1,0)","v":0}]
[null,"A fenti kockázatokra",null,null,null,null,null,null,null,"Biztosítási összeg (eFt)",null,null,null,null,null,null,null,"díjtétel (‰)",null,null,null,null,"Díj (Ft)",null,null,null,{"$f":"IF($W$85=0,1,0)","v":0}]
[null,null,null,null,null,null,null,null,null,null,null,null,null,null,null,null,null,null,null,null,null,null,null,null,null,null,{"$f":"IF($W$85=0,1,0)","v":0}]
[null,null,"Biztosított vagyontárgyak",null,null,null,null,null,null,null,{"$f":"IF(Haz!O30>0,Haz!O30/1000,0)","v":688800},null,null,null,null,null,null,{"$f":"IF(AND(K85>0,W85>0),W85/K85,0)","v":0.94001161440185832},null,null,null,null,{"$f":"IF(AND(Haz!O30>0,Haz!X59>0),Haz!X59,0)","v":647480},null,null,null,{"$f":"IF($W$85=0,1,0)","v":0}]
[null,null,null,null,null,null,null,null,null,null,null,null,null,null,null,null,null,null,null,null,null,null,null,null,null,null,{"$f":"IF($W$85=0,1,0)","v":0}]
[null,null,null,null,null,null,null,null,null,null,null,null,null,null,null,null,null,null,null,null,null,null,null,null,null,null,{"$f":"IF($AA$4>=6,1,0)","v":1}]
[null,"VIII.","Záradékok:"]
[null,null,{"$f":"IF(Haz!X42>0,Tomb!B109,0)","v":"Az üvegbiztosítás kártérítési határa, üveg átalánybiztosítás alapján a feltételeinkben leírtak szerint."},null,null,null,null,null,null,null,null,null,null,null,null,null,null,null,null,null,null,null,null,null,null,null,{"$f":"IF(C89=0,1,0)","v":0}]
[null,null,{"$f":"IF(AND(Haz!X44>0,Haz!M61>0),Tomb!B105,0)","v":"Ingatlanhasználói és -Üzemeltetői felelősségbiztosítás kártérítési limite alapfedezet esetén 15 mFt/kár/év ezen belül a bővített fedezetben meghatározott károk sublimite 7,5 mFt/kár."},null,null,null,null,null,null,null,null,null,null,null,null,null,null,null,null,null,null,null,null,null,null,null,{"$f":"IF(C90=0,1,0)","v":0}]
[null,null,{"$f":"IF(AND(Haz!X44>0,Haz!M62>0),Tomb!E106,0)","v":0},null,null,null,null,null,null,null,null,null,null,null,null,null,null,null,null,null,null,null,null,null,null,null,{"$f":"IF(C91=0,1,0)","v":1}]
[null,null,{"$f":"IF(AND(Haz!X42>0,Haz!X45>0),Tomb!B107,0)","v":"A SIGNAL Assistance vészelhárítási szolgáltatás limite 25.000.- Ft"},null,null,null,null,null,null,null,null,null,null,null,null,null,null,null,null,null,null,null,null,null,null,null,{"$f":"IF(C92=0,1,0)","v":0}]
[null,null,{"$f":"IF(AND(Haz!X42>0,NOT(Tomb!O75),Haz!K30>0),\"A biztosító a STÉBI 2011, 1.6, 1.7, 1.21-23, 1.26, pontokban meghatározott veszélynemekre kártérítésként mindösszesen, évente legfeljebb \"&FIXED(Haz!K30,0)&\" Ft-ig fizet. Az egyes záradékok külön kártérítési limiteit az átadott feltételek tartalmazzák.\",0)","v":"A biztosító a STÉBI 2011, 1.6, 1.7, 1.21-23, 1.26, pontokban meghatározott veszélynemekre kártérítésként mindösszesen, évente legfeljebb 688 800 Ft-ig fizet. Az egyes záradékok külön kártérítési limiteit az átadott feltételek tartalmazzák."},null,null,null,null,null,null,null,null,null,null,null,null,null,null,null,null,null,null,null,null,null,null,null,0]
[null,null,{"$f":"IF(AND(Haz!X48,Haz!X57>0),Tomb!B121,0)","v":"Felvonók géptörés biztosításának kártérítési limite 150 eFt/kár 500 eFt/év /felvonó."},null,null,null,null,null,null,null,null,null,null,null,null,null,null,null,null,null,null,null,null,null,null,null,0]
[null,null,{"$f":"IF(AND(Haz!X47,Haz!X57>0),Tomb!B123,0)","v":0},null,null,null,null,null,null,null,null,null,null,null,null,null,null,null,null,null,null,null,null,null,null,null,1]
[null,null,{"$f":"IF(Tomb!K55=2,\"Az építés, átépítés, összeszerelés alatt levő biztosított vagyontárgyakban bekövetkezett kárt a biztosító a káridőpontig ténylegesen felmerült építési, átépítési, összeszerelési költségek mértékéig téríti meg,\",0)","v":0},null,null,null,null,null,null,null,null,null,null,null,null,null,null,null,null,null,null,null,null,null,null,null,1]
[null,null,{"$f":"IF(Tomb!K55=2,\"a káridőponti beszerzési árak, illetve előállítási vagy építési költségek figyelembevételével.\",0)","v":0},null,null,null,null,null,null,null,null,null,null,null,null,null,null,null,null,null,null,null,null,null,null,null,{"$f":"IF(C97=0,1,0)","v":1}]
[null,null,{"$f":"IF(AND(Haz!Q63=1,Haz!Q64>\"\"),Haz!Q64,0)","v":0},null,null,null,null,null,null,null,null,null,null,null,null,null,null,null,null,null,null,null,null,null,null,null,{"$f":"IF(C98=0,1,0)","v":1}]
[null,null,{"$f":"IF(Tomb!A31=1,0,\"A biztosítási szerződés \"&INDEX(Tomb!C30:C33,Tomb!A31)&\" eFt/kár levonásos önrész tartalmaz.\")","v":0},null,null,null,null,null,null,null,null,null,null,null,null,null,null,null,null,null,null,null,null,null,null,null,{"$f":"IF(C99=0,1,0)","v":1}]
[null,null,"A további kockázatok egyes szublimiteit az átadott feltételek tartalmazzák.",null,null,null,null,null,null,null,null,null,null,null,null,null,null,null,null,null,null,null,null,null,null,null,0]
[]
[null,null,null,null,null,null,null,null,null,null,null,null,null,null,null,null,null,null,null,null,null,null,null,null,null,null,{"$f":"IF($AA$4>=2,0,1)","v":0}]
[null,"IX.","Biztosítási díj",null,null,null,{"$f":"IF(Haz!I20=100%,\"(a teljes épület biztosításra)\",IF(Haz!I20<100%,\"(alapító okirat szerinti közös tulajdonra)\",\"\"))","v":"(a teljes épület biztosításra)"},null,null,null,null,null,null,null,null,null,null,null,null,null,null,null,null,null,null,null,{"$f":"IF($O$105=0,1,0)","v":0}]
[null,null,null,null,null,null,null,null,null,null,null,null,null,null,null,null,null,null,null,null,null,null,null,null,null,null,{"$f":"IF($O$105=0,1,0)","v":0}]
[null,null,null,null,null,"Éves díj összesen:",null,null,null,null,null,null,null,null,{"$f":"IF(Haz!X59>0,Haz!X59,0)","v":647480},null,null,"Ft",null,null,null,null,null,null,null,null,{"$f":"IF($O$105=0,1,0)","v":0}]
[null,null,null,null,null,"Díjfizetési ütem:",null,null,null,{"$f":"IF(Haz!X59>0,VLOOKUP(Tomb!I49,Tomb!A44:C47,3,0),0)","v":"(éves)"},null,null,null,null,null,null,null,null,null,null,null,null,null,null,null,null,{"$f":"IF($O$105=0,1,0)","v":0}]
[null,null,null,null,null,{"$f":"IF(Haz!X59>0,VLOOKUP(Tomb!I49,Tomb!A44:C47,2,0)&\":\",0)","v":"Éves díj:"},null,null,null,null,null,null,null,null,{"$f":"IF(Haz!X60>0,Haz!X60,0)","v":647480},null,null,"Ft",null,null,null,null,null,null,null,null,{"$f":"IF($O$107=0,1,0)","v":0}]
[null,null,null,null,null,null,null,null,null,null,null,null,null,null,null,null,null,null,null,null,null,null,null,null,null,null,{"$f":"IF($O$107=0,1,0)","v":0}]
[null,null,null,null,null,null,null,null,null,null,null,null,null,null,null,null,null,null,null,null,null,null,null,null,null,null,{"$f":"IF($AA$4>=3,1,0)","v":1}]
[null,"X.","Egyebek"]
[]
[null,null,"A biztosítási szerződés értékkövetéses rendszerű.",null,null,null,null,null,null,null,null,null,null,null,null,null,null,null,null,null,null,null,null,null,null,null,{"$f":"IF(C112=0,1,0)","v":0}]
[null,null,{"$f":"Tomb!B113","v":"Jelen előzetes díjajánlatunk tájékoztató jellegű. A végleges díjajánlat elkészítéséhez  helyszíni szemle, kockázat-elbírálás, valamint kárelőzmény megadása szükséges, amelyek módosíthatnak az előzetes díjajánlaton."},null,null,null,null,null,null,null,null,null,null,null,null,null,null,null,null,null,null,null,null,null,null,null,0]
[null,null,"Jelen díjajánlat elfogadása esetén kérjük visszajelzésüket, hogy egyeztethessünk a helyszíni kockázat-elbírálásról és az esetleges hiányzó adatok pótlásáról.",null,null,null,null,null,null,null,null,null,null,null,null,null,null,null,null,null,null,null,null,null,null,null,0]
[null,null,"A TÖMBHÁZAK BIZTOSÍTÁSÁNAK ÁLTALÁNOS FELTÉTELE (STÁVBI 2011). 10.4.1. pontjában leírtaknak megfelelően az alulbiztosítottság következményeit a szerződő tudomásul veszi.",null,null,null,null,null,null,null,null,null,null,null,null,null,null,null,null,null,null,null,null,null,null,null,0]
[null,null,"Jelen előzetes díjajánlatunk 30 napig érvényes.",null,null,null,null,null,null,null,null,null,null,null,null,null,null,null,null,null,null,null,null,null,null,null,0]
[null,null,"A vonatkozó feltételeket az előzetes díjajánlattal együtt postázzuk/átadtuk.",null,null,null,null,null,null,null,null,null,null,null,null,null,null,null,null,null,null,null,null,null,null,null,0]
[null,null,"A fenti, illetve az itt nem érintett egyéb biztosítási kérdésekben a jövőben is készséggel állunk rendelkezésükre.",null,null,null,null,null,null,null,null,null,null,null,null,null,null,null,null,null,null,null,null,null,null,null,0]
[]
[null,null,"Üdvözlettel:"]
[]
[null,null,null,null,null,null,null,null,null,null,null,null,null,null,null,null,null,null,null,null,null,null,null,null,null,null,{"$f":"IF($AA$4>=4,0,1)","v":0}]
[null,null,null,null,null,null,null,null,{"$f":"IF(Tomb!R39,VLOOKUP(Ker!G154,Tomb!R36:T38,2,0),IF(K85<=Tomb!R34*1000,Tomb!S34,IF(AND(K85>Tomb!R34*1000,K85<=Tomb!R35*1000),Tomb!S35,Tomb!S36)))","v":"Kiss Zoltán"},null,null,null,null,null,null,null,null,null,null,{"$f":"IF(K85<=Tomb!R34*1000,Tomb!S35,IF(AND(K85>Tomb!R34*1000,K85<=Tomb!R35*1000),Tomb!S39,Tomb!S39))","v":"Mikó János"}]
[null,null,null,null,null,null,null,null,{"$f":"IF(Tomb!R39,VLOOKUP(Ker!G154,Tomb!R36:T38,3,0),IF(K85<=Tomb!R34*1000,Tomb!T34,IF(AND(K85>Tomb!R34*1000,K85<=Tomb!R35*1000),Tomb!T35,Tomb!T36)))","v":"Mid-Office vagyon kockázatvállaló"},null,null,null,null,null,null,null,null,null,null,{"$f":"IF(K85<=Tomb!R34*1000,Tomb!T35,IF(AND(K85>Tomb!R34*1000,K85<=Tomb!R35*1000),Tomb!T39,Tomb!T39))","v":"kockázatvállaló, termékfelelős"}]
[]
[null,"Az előzetes díjajánlat egy példányát a cégszerű aláírás után átvettem."]
[null,null,null,null,null,null,null,null,null,null,null,null,null,null,null,null,null,null,null,null,null,null,null,null,null,null,{"$f":"IF($AA$4>=7,0,1)","v":1}]
[]
[null,null,null,"Dátum: …………………………………………………………",null,null,null,null,null,null,null,null,null,null,null,null,null,null,null,null,"………………………………………….."]
[null,null,null,null,null,null,null,null,null,null,null,null,null,null,null,null,null,null,null,null,"Szerződő cégszerű aláírása"]
[null,"A szerződő nyilatkozata:"]
[]
[null,{"$f":"\"Az  \"&IF(OR(V12>\"\",W11=0),V12,W11)&\" számú díjszámítással egyetértünk, az abban foglaltakat elfogadjuk. Ez alapján kérjük, szíveskedjenek a díjszámítást biztosítási ajánlatként kezelni, és a biztosítási kötvényt részünkre kiállítani az alábbi adatok figyelembevételével:\"","v":"Az   számú díjszámítással egyetértünk, az abban foglaltakat elfogadjuk. Ez alapján kérjük, szíveskedjenek a díjszámítást biztosítási ajánlatként kezelni, és a biztosítási kötvényt részünkre kiállítani az alábbi adatok figyelembevételével:"}]
[]
[null,"Szerződő pénzintézetének neve:",null,null,null,null,null,null,null,null,null,null,null,null,null,null,null,null,null,"fiókja:"]
[]
[null,null,null,null,null,null,null,"címe:"]
[]
[null,"Szerződő teljes számlaszáma:",null,null,null,null,null,null,null,null,null,null,null,null,null,null,null,null,null,"adószáma:"]
[]
[null,"Biztosított (ha nem azonos a Szerződővel):"]
[]
[null,null,"neve:",null,null,null,null,null,null,null,null,null,null,null,"címe:"]
[]
[null,null,null,null,null,"teljes számlaszáma:",null,null,null,null,null,null,null,null,null,null,null,null,null,"adószáma:","28544661-1-43"]
[]
[null,"Kedvezményezett:"]
[]
[null,null,"neve:",null,null,null,null,null,null,null,null,null,null,null,"címe:"]
[]
[null,null,null,null,null,"teljes számlaszáma:",null,null,null,null,null,null,null,null,null,null,null,null,null,"Szerződés száma:"]
[]
[null,null,null,null,null,null,null,null,null,null,null,null,null,null,null,null,null,null,"Hitel összege:"]
[]
[null,"A szerződő ÁFA visszatérítésre jogosult:",null,null,null,null,null,null,null,null,null,null,null,null,null,null,null,null,"X","Igen",null,null,"Nem"]
[]
[null,"A biztosítandó vagyontárgyak tulajdonviszonya:",null,null,null,null,null,null,null,null,null,null,null,null,null,null,null,null,null,"Idegen",null,"X","Saját"]
[]
[null,"A biztosítandó vagyontárgyak kifogástalan, üzemképes állapotban vannak:",null,null,null,null,null,null,null,null,null,null,null,null,null,null,null,null,"X","Igen",null,null,"Nem"]
[]
[null,"Az igényelt biztosítást más biztosító elutasította vagy felmondta:",null,null,null,null,null,null,null,null,null,null,null,null,null,null,null,null,null,"Igen",null,"X","Nem"]
[]
[null,"Ha igen, az elutasítás részletes indoklása, leírása:"]
[]
[]
[null,"A korábbi károk részletes leírása:"]
[]
[]
[]
[null,"Az 1995. évi XCVI. Törvény (Bit.), valamint a 45/1996. (XII. 29.) PM rendeletben foglaltaknak megfelelően a biztosítótársaságoknak bejelentési kötelezettségük van a Pénzügyi Szervezetek Állami Felügyelete felé az ún. nagykockázatokról."]
[null,"Fenti bejelentés teljesítéséhez a szerződés biztosítottjának adatairól az alábbiakban nyilatkozunk:"]
[]
[null,"Mérleg főösszege:",null,null,null,null,null,null,null,null,null,null,null,null,null,"meghaladja az 1,5 milliárd forintot",null,null,null,"Igen",null,"x","Nem"]
[]
[null,"Nettó üzleti forgalom:",null,null,null,null,null,null,null,null,null,null,null,null,null,"meghaladja a 3 milliárd forintot",null,null,null,"Igen",null,"x","Nem"]
[]
[null,"Átlagos alkalmazotti létszám:",null,null,null,null,null,null,null,null,null,null,null,null,null,"meghaladja az 1000 főt",null,null,null,"Igen",null,"x","Nem"]
[]
[null,"Díjfizetés módja;"]
[null,null,null,null,null,null,null,null,null,null,null,null,null,null,null,null,null,null,null,null,null,null,null,null,null,3]
[null,"A közölt adatok a valóságnak megfelelnek:"]
[]
[null,"Dátum:",null,null,null,null,null,null,null,null,null,"Szerződő cégszerű aláírása:"]
[]
[null,null,null,null,null,"Ft-ot, azaz",null,null,null,null,null,null,null,null,null,null,null,null,"Ft-ot a biztosításközvetítő átvett."]
[]
[null,"Utalás esetén kérjük a díjat az ajánlatszámra hivatkozva a 11500092-11041623 számlaszámra teljesíteni."]
[]
[null,"A biztosításközvetítő aláírása:"]
[]
[null,null,"A SIGNAL Biztosító Zrt. belső feljegyzései:"]
[]
[null,null,"Biztosításközvetítő neve:",null,null,null,null,null,{"$f":"IF(Haz!S5>\"\",Haz!S5,0)","v":0},null,null,null,null,null,null,null,"kódja:",null,{"$f":"IF(Tomb!R42>0,VLOOKUP(Tomb!R42,Ker!A2:K150,10,0),0)","v":0}]
[null,null,"Képviselet neve:",null,null,null,{"$f":"IF(Tomb!T42>0,VLOOKUP(Tomb!T42,Tomb!R43:S50,2,0))","v":{"$error":"#N/A"}}]
[null,null,"Dátum:",null,null,null,null,null,null,null,null,"Szakreferens aláírása:"]
[]
[null,null,"Kötvényesíthető:",null,null,null,null,null,null,null,null,null,null,null,null,null,"Dátum:"]
[null,null,"Kötvényesítésre került:",null,null,null,null,null,null,null,null,null,null,null,null,null,"Dátum:"]
[]
[]
[null,"SIGNAL Biztosító Zrt.    1123 Budapest, Alkotás utca 50."]
[null,"Adószám: 10828704-2-44",null,null,null,null,null,null,null,"SzJ szám: 66.03.40.0",null,null,null,null,null,null,null,"ÁFA: tárgyi adómentes"]
[]
[]
[]
[]
[]
[null,"Makró vége!"]

{"sheet":"Resz (2)","index":7,"n_rows":157,"n_cols":26,"rows_kept":157,"cut":false,"hidden":true,"merged":[[142,4,142,6],[129,18,129,19],[129,20,129,22],[121,22,121,24],[122,4,122,6],[122,7,122,8],[122,9,122,12],[155,10,155,13],[156,0,156,1],[156,2,156,4],[156,5,156,7],[156,11,156,13],[156,16,156,20],[148,0,148,5],[148,6,148,7],[148,8,148,9],[148,10,148,11],[148,12,148,13],[149,23,149,25],[150,7,150,8],[150,11,150,13],[150,23,150,25],[152,23,152,25],[153,0,153,4],[153,5,153,7],[153,8,153,10],[153,11,153,13],[149,0,149,5],[149,6,149,7],[149,8,149,9],[149,10,149,11],[149,12,149,13],[149,19,149,20],[148,23,148,25],[146,23,146,25],[147,0,147,5],[147,6,147,7],[147,8,147,9],[147,10,147,11],[147,12,147,13],[147,19,147,20],[147,23,147,25],[146,0,146,5],[146,6,146,7],[146,8,146,9],[146,10,146,11],[146,12,146,13],[146,19,146,20],[142,23,142,25],[144,19,144,20],[144,23,144,25],[145,8,145,9],[145,12,145,13],[145,19,145,20],[145,23,145,25],[137,23,137,25],[138,23,138,25],[139,23,139,25],[141,12,141,13],[141,23,141,25],[142,8,142,9],[142,11,142,13],[142,15,147,15],[142,19,142,20],[129,24,129,25],[130,24,130,25],[132,0,139,0],[132,15,132,21],[132,23,132,25],[134,23,134,25],[135,23,135,25],[136,23,136,25],[127,19,127,20],[127,21,127,22],[127,24,127,25],[128,15,128,16],[128,18,128,20],[128,21,128,22],[128,23,128,25],[122,13,122,15],[122,16,122,17],[122,18,122,21],[122,22,122,24],[121,2,121,5],[121,6,121,7],[121,8,121,11],[121,12,121,15],[121,16,121,17],[121,18,121,21],[119,22,119,24],[120,8,120,9],[120,10,120,11],[120,12,120,14],[120,15,120,16],[120,17,120,18],[120,19,120,21],[120,22,120,24],[119,4,119,6],[119,7,119,8],[119,9,119,12],[119,13,119,15],[119,16,119,17],[119,18,119,21],[115,19,115,21],[115,22,115,24],[117,8,117,10],[117,22,117,24],[118,6,118,8],[118,9,118,11],[118,13,118,15],[118,16,118,18],[118,19,118,21],[118,22,118,24],[115,7,115,8],[115,9,115,11],[115,12,115,15],[115,16,115,18],[113,9,113,11],[113,12,113,15],[113,16,113,18],[113,19,113,21],[113,22,113,25],[114,9,114,11],[114,12,114,15],[114,16,114,18],[114,19,114,21],[114,22,114,24],[108,19,108,25],[109,2,109,11],[109,14,109,25],[110,0,110,5],[110,6,110,12],[110,13,110,15],[110,16,110,17],[110,18,110,20],[110,21,110,22],[110,23,110,25],[108,2,108,5],[108,7,108,11],[108,14,108,17],[100,14,101,15],[100,16,101,17],[100,21,101,22],[100,23,101,24],[106,0,107,4],[106,5,107,11],[106,12,106,19],[107,12,107,25],[89,0,89,1],[90,0,90,1],[90,2,90,6],[90,7,90,12],[90,14,90,19],[90,20,90,22],[96,23,96,24],[97,23,97,25],[99,18,99,22],[100,0,101,11],[90,23,90,25],[84,0,85,1],[84,2,85,6],[84,7,85,14],[85,16,86,21],[85,22,86,25],[86,0,86,1],[86,2,86,6],[86,7,86,14],[79,0,79,2],[79,3,79,12],[79,22,79,25],[81,22,81,25],[82,0,82,5],[82,6,82,10],[82,16,83,25],[83,0,83,5],[83,6,83,10],[83,11,83,14],[76,10,76,13],[77,0,77,1],[77,2,77,4],[77,5,77,7],[77,11,77,13],[77,16,77,20],[70,23,70,25],[71,7,71,8],[71,11,71,13],[71,23,71,25],[73,23,73,25],[74,0,74,4],[74,5,74,7],[74,8,74,10],[74,11,74,13],[70,0,70,5],[70,6,70,7],[70,8,70,9],[70,10,70,11],[70,12,70,13],[70,19,70,20],[69,0,69,5],[69,6,69,7],[69,8,69,9],[69,10,69,11],[69,12,69,13],[69,23,69,25],[67,23,67,25],[68,0,68,5],[68,6,68,7],[68,8,68,9],[68,10,68,11],[68,12,68,13],[68,19,68,20],[68,23,68,25],[67,0,67,5],[67,6,67,7],[67,8,67,9],[67,10,67,11],[67,12,67,13],[67,19,67,20],[63,4,63,6],[63,8,63,9],[63,11,63,13],[63,15,68,15],[63,19,63,20],[50,18,50,19],[50,20,50,22],[50,24,50,25],[51,24,51,25],[63,23,63,25],[65,19,65,20],[65,23,65,25],[66,8,66,9],[66,12,66,13],[66,19,66,20],[66,23,66,25],[58,23,58,25],[59,23,59,25],[60,23,60,25],[62,12,62,13],[62,23,62,25],[53,0,60,0],[53,15,53,21],[53,23,53,25],[55,23,55,25],[56,23,56,25],[57,23,57,25],[48,19,48,20],[48,21,48,22],[48,24,48,25],[49,15,49,16],[49,18,49,20],[49,21,49,22],[49,23,49,25],[42,22,42,24],[43,4,43,6],[43,7,43,8],[43,9,43,12],[43,13,43,15],[43,16,43,17],[43,18,43,21],[43,22,43,24],[42,2,42,5],[42,6,42,7],[42,8,42,11],[42,12,42,15],[42,16,42,17],[42,18,42,21],[40,22,40,24],[41,8,41,9],[41,10,41,11],[41,12,41,14],[41,15,41,16],[41,17,41,18],[41,19,41,21],[41,22,41,24],[40,4,40,6],[40,13,40,15],[40,9,40,10],[40,11,40,12],[40,18,40,19],[40,20,40,21],[38,8,38,10],[38,22,38,24],[39,6,39,8],[39,9,39,11],[39,16,39,18],[39,19,39,21],[39,22,39,24],[36,7,36,8],[36,9,36,11],[36,12,36,15],[36,16,36,18],[36,19,36,21],[36,22,36,24],[39,13,39,14],[34,9,34,11],[34,12,34,15],[34,16,34,18],[34,19,34,21],[34,22,34,25],[35,9,35,11],[35,16,35,18],[35,19,35,21],[35,22,35,24],[35,12,35,14],[30,2,30,11],[30,14,30,25],[31,0,31,5],[31,6,31,12],[31,13,31,15],[31,16,31,17],[31,18,31,20],[31,21,31,22],[31,23,31,25],[27,0,28,4],[27,5,28,11],[27,12,27,19],[28,12,28,25],[29,2,29,5],[29,7,29,11],[29,14,29,17],[29,19,29,25],[11,23,11,25],[17,23,17,24],[18,23,18,25],[20,18,20,22],[21,0,22,11],[21,14,22,15],[21,16,22,17],[21,21,22,22],[21,23,22,24],[10,0,10,1],[11,0,11,1],[11,2,11,6],[11,7,11,12],[11,14,11,19],[11,20,11,22],[5,0,6,1],[5,2,6,6],[5,7,6,14],[6,16,7,21],[6,22,7,25],[7,0,7,1],[7,2,7,6],[7,7,7,14],[0,0,0,2],[0,3,0,12],[0,22,0,25],[2,22,2,25],[3,0,3,5],[3,6,3,10],[3,16,4,25],[4,0,4,5],[4,6,4,10],[4,11,4,14]]}
["SZERZŐDŐ",null,null,{"$f":"IF(Haz!C5>\"\",Haz!C5,0)","v":"1075  Budapest  Rumbach Sebestyén u. 12.   (Társasház)"},null,null,null,null,null,null,null,null,null,{"$f":"Tomb!Q1","v":0},"Ajánlat száma:",null,null,null,null,null,null,{"$f":"IF(AND(Haz!Q6=0),\"Új szerződés:\",IF(AND(Haz!Q6=1,Haz!R6>\"\"),\"Átdolgozás:\",0))","v":"Új szerződés:"},{"$f":"IF(AND(Haz!Q6=0,Haz!Q2>\"\"),502&Haz!Q2,IF(AND(Haz!Q6=1,Haz!R6>\"\"),Haz!R6,0))","v":0}]
[]
["SZERZŐDŐ KÉPVISELÉTÉBEN ELJÁRÓ SZEMÉLY",null,null,null,null,null,null,null,null,null,null,null,null,null,null,null,"Képviselőj:",null,null,null,null,"Kódja:",{"$f":"IF(Tomb!R42>0,VLOOKUP(Tomb!R42,Ker!A2:K150,10,0))","v":0}]
["Név:",null,null,null,null,null,"Vállalkozás:",null,null,null,null,"E-mail címe:",null,null,null,null,{"$f":"IF(Haz!S5>\"\",Haz!S5,0)","v":0}]
[{"$f":"IF(Haz!C6>\"\",Haz!C6,0)","v":"kk"},null,null,null,null,null,{"$f":"IF(Haz!H6>\"\",Haz!H6,0)","v":0},null,null,null,null,{"$f":"IF(Haz!L6>\"\",Haz!L6,0)","v":0}]
["Irányítószám:",null,"Helység:",null,null,null,null,"Út, utca, tér:"]
[null,null,null,null,null,null,null,null,null,null,null,null,null,null,null,null,"Biztosítás igényelt kezdete:",null,null,null,null,null,{"$f":"IF(Haz!W6>0,Haz!W6,0)","v":"2014-12-01"}]
[{"$f":"IF(AND(Haz!$O$7=1,OR(Haz!C6>\"\",Haz!H6>\"\"),Haz!C7>0),Haz!C7,IF(AND(Haz!$O$7=0,OR(Haz!C6>\"\",Haz!H6>\"\"),Haz!C7>=0),Haz!C4,0))","v":1075},null,{"$f":"IF(AND(Haz!$O$7=1,OR(Haz!C6>\"\",Haz!H6>\"\"),Haz!E7>0),Haz!E7,IF(AND(Haz!$O$7=0,OR(Haz!C6>\"\",Haz!H6>\"\"),Haz!E7>=0),Haz!E4,0))","v":"Budapest"},null,null,null,null,{"$f":"IF(AND(Haz!$O$7=1,OR(Haz!C6>\"\",Haz!H6>\"\"),Haz!J7>0),Haz!J7,IF(AND(Haz!$O$7=0,OR(Haz!C6>\"\",Haz!H6>\"\"),Haz!J7>=0),Haz!J4,0))","v":"Rumbach Sebestyén u. 12."}]
[]
["KOCKÁZATVISELÉS HELYE",null,null,null,null,null,null,null,null,null,null,null,null,null,"HITELFEDEZETI KEDVEZMÉNYEZETT"]
["Irányítószám:",null,"Helység:",null,null,null,null,"Út, utca, tér:",null,null,null,null,null,null,"Kedvezményezett hitelnyújtó neve, címe :",null,null,null,null,null,"Hitelszerződés összege:",null,null,"Hitelszerződés száma:"]
[{"$f":"IF(Haz!C4>0,Haz!C4,0)","v":1075},null,{"$f":"IF(Haz!E4>0,Haz!E4,0)","v":"Budapest"},null,null,null,null,{"$f":"IF(Haz!J4>0,Haz!J4,0)","v":"Rumbach Sebestyén u. 12."},null,null,null,null,null,null,{"$f":"IF(Resz!O12>\"\",Resz!O12,\"\")","v":""},null,null,null,null,null,{"$f":"IF(Resz!U12>\"\",Resz!U12,\"\")","v":""},null,null,{"$f":"IF(Resz!X12>\"\",Resz!X12,\"\")","v":""}]
[]
[" ÁLTALÁNOS ADATOK : ",null,null,null,null,null,null,null,null,null,null,null,null,null,null,null,null,null,null,null,null,null,null,"Részletező;",12]
["TULAJDONFORMA:",null,null,null,null,null,{"$f":"IF(Tomb!C55=1,\"X\",0)","v":"X"},"Társasházi tulajdon ",null,null,null,{"$f":"IF(Tomb!C55=2,\"X\",0)","v":0},"Szövetkezeti tulajdon       ",null,null,null,"ÁFA-körbe tartozik:",null,null,null,{"$f":"IF(Tomb!C59=1,\"X\",0)","v":0},"igen",null,{"$f":"IF(Tomb!C59=2,\"X\",0)","v":"X"},"nem"]
["RENDELTETÉS:",null,null,null,null,null,{"$f":"IF(Tomb!G55=1,\"X\",0)","v":"X"},"Lakóépület         ",null,null,null,{"$f":"IF(Tomb!G55=2,\"X\",0)","v":0},"Nyaralóépület         ",null,null,null,{"$f":"IF(Tomb!G55=3,\"X\",0)","v":0},"Üzletház              ",null,null,null,{"$f":"IF(Tomb!G55=4,\"X\",0)","v":0},"Irodaház                "]
["AZ ÉPÜLET JELLEMZŐI: ",null,null,null,null,null,null,null,"Befejezett épület:",null,null,null,{"$f":"IF(Tomb!K55=1,\"X\",0)","v":"X"},"igen",{"$f":"IF(Tomb!K55=2,\"X\",0)","v":0},"nem",null,"  Műemlék(jellegű) épület:",null,null,null,null,{"$f":"IF(Tomb!K59=1,\"X\",0)","v":0},"igen",{"$f":"IF(Tomb!K59=2,\"X\",0)","v":"X"},"nem"]
["Épület kora:",null,null,{"$f":"IF(Haz!L11>0,Haz!L11,0)","v":71},{"$f":"IF(D18>0,\"év\",0)","v":"év"},null,null,null,"Szintek száma:",null,null,{"$f":"IF(Haz!L13>0,Haz!L13,0)","v":8},{"$f":"IF(L18>0,\"szintes\",0)","v":"szintes"},null,null,null,null,"Albetétek / külön tulajdonok száma:",null,null,null,null,null,20,null,{"$f":"IF(X18>0,\"db\",0)","v":"db"}]
["FALAZAT:",null,null,null,null,{"$f":"IF(Tomb!O54=1,\"X\",0)","v":"X"},"tégla",null,{"$f":"IF(Tomb!O54=2,\"X\",0)","v":0},"panel",null,null,{"$f":"IF(Tomb!O54=3,\"X\",0)","v":0},"monolit vb.",null,null,null,{"$f":"IF(Tomb!O54=4,\"X\",0)","v":0},"bauxitbeton",null,null,{"$f":"IF(Tomb!O54=5,\"X\",0)","v":0},"egyéb:",{"$f":"IF(Haz!S11=1,Haz!P12,0)","v":0}]
["FÖDÉM:",null,null,null,null,{"$f":"IF(Tomb!S55=3,\"X\",0)","v":0},"közbenső fafödém",null,null,null,{"$f":"IF(Tomb!S55=4,\"X\",0)","v":0},"záró fafödém belső nyitott csapadék-elvezetéssel ",null,null,null,null,null,null,null,null,null,{"$f":"IF(Tomb!S55=5,\"X\",0)","v":0},"bauxitbeton födém"]
["A biztosított épületben „C”, vagy annál magasabb tűzveszélyességű tevékenységet folytatnak:",null,null,null,null,null,null,null,null,null,null,null,null,null,null,null,{"$f":"IF(Tomb!W55=1,\"X\",0)","v":0},"igen",{"$f":"IF(Haz!S14=1,Haz!P15,0)","v":0},null,null,null,null,{"$f":"IF(Tomb!W55=2,\"X\",0)","v":"X"},"nem"]
["AZ ÉPÜLET ÁLLAGA:",null,null,null,null,null,null,null,null,null,null,null,null,null,"5 éven belül  felújítva",null,"Karbantar- tásra szorul",null,null,null,null,"5 éven belül  felújítva",null,"Karbantar- tásra szorul"]
[null,null,null,null,null,null,null,null,null,null,null,null,null,null,"felújítva",null,null,null,null,null,null,"felújítva"]
["Az épületen beázások, csőtörések nyomai láthatóak:",null,null,null,null,null,null,null,{"$f":"IF(Tomb!K65,\"X\",0)","v":0},"igen",{"$f":"IF(Tomb!M64,\"X\",0)","v":"X"},"nem","Víz csőhálózat: ",null,null,{"$f":"IF(AND(Tomb!I73,Tomb!L73),\"X\",0)","v":0},null,{"$f":"IF(AND(Tomb!K73,Tomb!L73),\"X\",0)","v":0},null,"Homlokzatok",null,null,{"$f":"IF(AND(Tomb!I77,Tomb!L77),\"X\",0)","v":0},null,{"$f":"IF(AND(Tomb!K77,Tomb!L77),\"X\",0)","v":0}]
["Az épület teteje hullámos, cserepezés, bádogozás hiányos:",null,null,null,null,null,null,null,{"$f":"IF(Tomb!K66,\"X\",0)","v":0},"igen",{"$f":"IF(Tomb!M65,\"X\",0)","v":"X"},"nem","Fűtés csőhálózat",null,null,{"$f":"IF(AND(Tomb!I74,Tomb!L74),\"X\",0)","v":0},null,{"$f":"IF(AND(Tomb!K74,Tomb!L74),\"X\",0)","v":0},null,"Tető szerkezet",null,null,{"$f":"IF(AND(Tomb!I78,Tomb!L78),\"X\",0)","v":0},null,{"$f":"IF(AND(Tomb!K78,Tomb!L78),\"X\",0)","v":0}]
["Épületen ferde (kb. 45o-os) repedés(ek) van(nak):",null,null,null,null,null,null,null,{"$f":"IF(Tomb!K67,\"X\",0)","v":0},"igen",{"$f":"IF(Tomb!M66,\"X\",0)","v":"X"},"nem","Csatorna",null,null,{"$f":"IF(AND(Tomb!I75,Tomb!L75),\"X\",0)","v":0},null,{"$f":"IF(AND(Tomb!K75,Tomb!L75),\"X\",0)","v":0},null,"Tetőszigetelés",null,null,{"$f":"IF(AND(Tomb!I79,Tomb!L79),\"X\",0)","v":0},null,{"$f":"IF(AND(Tomb!K79,Tomb!L79),\"X\",0)","v":0}]
["Épületen dúcolás utólagos alátámasztás található:",null,null,null,null,null,null,null,{"$f":"IF(Tomb!K68,\"X\",0)","v":0},"igen",{"$f":"IF(Tomb!M67,\"X\",0)","v":"X"},"nem","Gázcső hálózat",null,null,{"$f":"IF(AND(Tomb!I76,Tomb!L76),\"X\",0)","v":0},null,{"$f":"IF(AND(Tomb!K76,Tomb!L76),\"X\",0)","v":0},null,"Tetőhéjazat",null,null,{"$f":"IF(AND(Tomb!I80,Tomb!L80),\"X\",0)","v":0},null,{"$f":"IF(AND(Tomb!K80,Tomb!L80),\"X\",0)","v":0}]
["KÁRELŐZMÉNYEK:",null,null,null,null,{"$f":"IF(U28=X28,\"Döntsd el, hogy volt vagy nem volt? >\",0)","v":0},null,null,null,null,null,null,"Korábbi kár(ok) az ajánlatot megelőző öt évben:",null,null,null,null,null,null,null,{"$f":"IF(Resz!U28>\"\",Resz!U28,\"\")","v":""},"volt",{"$f":"IF(AND(U28=\"X\",X28=\"X\"),\"?\",0)","v":0},{"$f":"IF(Resz!X28>\"\",Resz!X28,\"\")","v":"X"},"nem volt"]
[null,null,null,null,null,null,null,null,null,null,null,null," (függetlenül attól, hogy a káridőpontjában volt-e élő biztosítás)"]
["kár időpontja:",null,null,null,null,null,"jellege:",null,null,null,null,null,"kár időpontja:",null,null,null,null,null,"jellege:","Csőtörés"]
[null,"összege:",null,null,null,null,null,null,null,null,null,null,null,"összege:"]
["BIZTOSÍTÁSI ELŐZMÉNYEK:",null,null,null,null,null,"Ha volt biztosítás, akkor az előző biztosító neve:",null,null,null,null,null,null,null,null,null,"kötvényszáma:",null,null,null,null,"megszűnés oka:"]
[]
["LAKÓ / ÜDÜLŐ ÉPÜLETBIZTOSÍTÁS  BIZTOSÍTÁSI ÖSSZEG SZÁMÍTÁSA"]
["Megnevezés",null,null,null,null,null,null,null,null,"Kategória",null,null,"Külön tul. összesített m2-re",null,null,null,"Ft / m2",null,null,"Okiratbani jele",null,null,"Biztosítási összeg  [Ft]"]
["Lakó / üdülőépület",null,null,null,null,null,null,null,null,{"$f":"IF(AND(Tomb!$G$55<5,Haz!$B$17=1,Haz!G18>\"\"),Haz!G18,0)","v":"A / II"},null,null,100,null,null,{"$f":"IF(M36>0,\"m2\",0)","v":"m2"},{"$f":"IF(AND(Tomb!$G$55<5,Haz!$B$17=1,Haz!H18>0,Haz!O18>0),(Haz!O18/Haz!H18),0)","v":225000},null,null,{"$f":"IF(Resz!T36>\"\",Resz!T36,\"\")","v":""},null,null,{"$f":"IF(AND(M36>0,Q36>0),ROUND(M36*Q36/1000,0),0)","v":22500},null,null,"                                   .000.-"]
[{"$f":"Resz!A37","v":0},null,null,null,null,null,null,"Garázs",null,{"$f":"IF(AND(Tomb!$G$55=5,Haz!$B$17=1,Haz!G19>\"\"),Haz!G19,0)","v":0},null,null,{"$f":"IF(AND(Tomb!$G$55=5,Haz!$B$17=1,Haz!H19>0),FIXED(Haz!H19,0)&\" m2\",0)","v":0},null,null,null,{"$f":"IF(AND(Tomb!$G$55=5,Haz!$B$17=1,Haz!H19>0,Haz!O19>0),(Haz!O19/Haz!H19),0)","v":0},null,null,null,null,null,{"$f":"IF(AND(Tomb!$G$55=5,Haz!$B$17=1,Haz!O19>0),(Haz!O19/1000),0)","v":0},null,null,"                                   .000.-"]
[]
[" Épületnek a közös tulajdoni része..........………..",null,null,null,null,null,null,null,{"$f":"IF(AND(Haz!$B$17=1,Haz!K20>0),Haz!I20,0)","v":1},null,null,null,null,null,null,null,null,null,null,null,null,null,{"$f":"IF(SUM(W36:Y37)>0,SUM(W36:Y37)*I39,0)","v":22500},null,null,"                                  .000.-"]
[{"$f":"Resz!A40","v":0},null,null,null,null,null,null,null,null,{"$f":"IF(AND(Haz!$B$17=1,Haz!F21>\"\",Haz!H21>\"\",Haz!I21>0),Haz!F21&\" / \"&Haz!H21,0)","v":0},null,null,null,null,null,{"$f":"IF(N40>0,\"m2\",0)","v":0},{"$f":"IF(AND(Haz!$B$17=1,Haz!F21>\"\",Haz!H21>\"\",Haz!I21>0),(Haz!O21/Haz!I21),0)","v":0},null,null,null,null,null,{"$f":"IF(AND(N40>0,Q40>0),ROUND(N40*Q40,0),0)","v":0},null,null,"                                   .000.-"]
["Központi berendezés :",null,null,null,{"$f":"IF(AND(Haz!$B$17=1,Haz!O22>0,Haz!F22>\"\"),Haz!F22,0)","v":"Kaputelefonrendszer"},null,null,2,{"$f":"IF(AND(Haz!$B$17=1,Haz!O22>0,Haz!I22>0),\"db\",0)","v":"db"},150000,null,{"$f":"IF(AND(Haz!$B$17=1,Haz!O22>0,Haz!K22>0),\"Ft/db\",0)","v":"Ft/db"},null,{"$f":"IF(AND(Haz!$B$17=1,Haz!O23>0,Haz!F23>\"\"),Haz!F23,0)","v":"Lift"},null,null,0,{"$f":"IF(AND(Haz!$B$17=1,Haz!O23>0,Haz!I23>0),\"db\",0)","v":"db"},10000,null,{"$f":"IF(AND(Haz!$B$17=1,Haz!O23>0,Haz!K23>0),\"Ft/db\",0)","v":"Ft/db"},null,{"$f":"IF(AND(Haz!$B$17=1,OR(Haz!O22>0,Haz!O23>0)),((H41*J41+Q41*S41)/1000),0)","v":300},null,null,"                                   .000.-"]
["Kerítés fajtája (egy kerítést csak egy lapon lehet felvenni):",null,null,null,null,null,null,null,{"$f":"IF(AND(Haz!$B$17=1,Haz!O24>0,Haz!F24>\"\"),Haz!F24,0)","v":0},null,{"$f":"IF(AND(Haz!$B$17=1,Haz!O24>0,Haz!I24>0),Haz!I24&\" fm\",0)","v":0},null,{"$f":"IF(AND(Haz!$B$17=1,Haz!O24>0,Haz!K24>0),FIXED(Haz!K24,0)&\" Ft/fm\",0)","v":0},null,null,{"$f":"IF(AND(Haz!$B$17=1,Haz!O25>0,Haz!F25>\"\"),Haz!F25,0)","v":0},null,{"$f":"IF(AND(Haz!$B$17=1,Haz!O25>0,Haz!I25>0),Haz!I25&\" fm\",0)","v":0},null,{"$f":"IF(AND(Haz!$B$17=1,Haz!O25>0,Haz!K25>0),FIXED(Haz!K25,0)&\" Ft/fm\",0)","v":0},null,null,{"$f":"IF(AND(Haz!$B$17=1,OR(Haz!O24>0,Haz!O25>0)),((Haz!O24+Haz!O25)/1000),0)","v":0},null,null,"                                  .000.-"]
["Egyéb :",null,{"$f":"IF(AND(Haz!$B$17=1,Haz!O26>0,Haz!F26>\"\"),Haz!F26,0)","v":0},null,null,null,{"$f":"IF(AND(Haz!$B$17=1,Haz!O26>0,Haz!I26>0),Haz!I26&\" db\",0)","v":0},null,{"$f":"IF(AND(Haz!$B$17=1,Haz!O26>0,Haz!K26>0),FIXED(Haz!K26,0)&\" Ft/db\",0)","v":0},null,null,null,{"$f":"IF(AND(Haz!$B$17=1,Haz!O27>0,Haz!F27>\"\"),Haz!F27,0)","v":0},null,null,null,{"$f":"IF(AND(Haz!$B$17=1,Haz!O27>0,Haz!I27>0),Haz!I27&\" db\",0)","v":0},null,{"$f":"IF(AND(Haz!$B$17=1,Haz!O27>0,Haz!K27>0),FIXED(Haz!K27,0)&\" Ft/db\",0)","v":0},null,null,null,{"$f":"IF(AND(Haz!$B$17=1,OR(Haz!O26>0,Haz!O27>0)),((Haz!O26+Haz!O27)/1000),0)","v":0},null,null,"                                   .000.-"]
["Közös tulajdonú ingóságok:",null,null,null,{"$f":"IF(AND(Haz!$B$17=1,Haz!O28>0,Haz!F28>\"\"),Haz!F28,0)","v":0},null,null,{"$f":"IF(AND(Haz!$B$17=1,Haz!O28>0,Haz!I28>0),Haz!I28&\" db\",0)","v":0},null,{"$f":"IF(AND(Haz!$B$17=1,Haz!O28>0,Haz!K28>0),FIXED(Haz!K28,0)&\" Ft/db\",0)","v":0},null,null,null,{"$f":"IF(AND(Haz!$B$17=1,Haz!O29>0,Haz!F29>\"\"),Haz!F29,0)","v":0},null,null,{"$f":"IF(AND(Haz!$B$17=1,Haz!O29>0,Haz!I29>0),Haz!I29&\" db\",0)","v":0},null,{"$f":"IF(AND(Haz!$B$17=1,Haz!O29>0,Haz!K29>0),FIXED(Haz!K29,0)&\" Ft/db\",0)","v":0},null,null,null,{"$f":"IF(AND(Haz!$B$17=1,OR(Haz!O28>0,Haz!O29>0)),((Haz!O28+Haz!O29)/1000),0)","v":0},null,null,"                                   .000.-"]
[]
[" ÖSSZESEN",null,null,null,null,null,null,null,null,null,null,null,null,null,null,null,null,null,null,null,null,null,null,null,null,{"$f":"IF(Haz!O30>0,FIXED(SUM(W39:Y44),0)&\" 000.-\",\"\")","v":"22 800 000.-"}]
[]
["ÉPÜLETBIZTOSÍTÁS DÍJTÉTELE",null,null,null,null,null,null,null,null,null,null,null,null,"Díjtétel ‰",null,{"$f":"IF(AND(Tomb!B80,Haz!M64>0),\"X\",0)","v":"X"},"FELELŐSSÉGBIZTOSÍTÁS"]
["   Alapfedezet:",null,null,null,null,null,null,null,null,{"$f":"IF(Haz!N33>0,\"X\",0)","v":"X"},{"$f":"IF(Haz!N33>0,VLOOKUP(Haz!L11,Tomb!J2:M7,4),0)","v":"51-100 év"},null,"+",{"$f":"IF(Haz!N33>0,Haz!N33,\"\")","v":0.9},null," Ingatlantulajdonosi:",null,null,null,{"$f":"IF(AND(Tomb!$B$80,Tomb!B81,Haz!$M$64>0,Haz!M61>0,Haz!F61>0),FIXED(Haz!F61,0),0)","v":"688 800"},null,{"$f":"IF(AND(Tomb!$B$80,Tomb!B81,Haz!$M$64>0,Haz!J61>0,Haz!M61>0),\"* \"&Haz!J61&\"‰ =\",0)","v":"* 0,15‰ ="},null,"+",{"$f":"IF(AND(Tomb!$B$80,Tomb!B81,Haz!$M$64>0,Haz!M61>0),Haz!M61,0)","v":103320}]
["Többszörözhető limitel rend.",null,null,null,null,{"$f":"IF(AND(Haz!N34>0,Tomb!P64=1),\"X\",0)","v":0},"kétszerez",null,{"$f":"IF(AND(Haz!N34>0,Tomb!P64=2),\"X\",0)","v":0},null,null,null,"+",{"$f":"IF(Haz!N34>0,Haz!N34,\"\")","v":""},null,{"$f":"IF(OR(Tomb!K55=2,AND(Tomb!$B$80,Tomb!B81,Haz!$M$64>0,Haz!M61>0,Tomb!C73=1)),Tomb!B74,IF(AND(Tomb!$B$80,Tomb!B81,Haz!$M$64>0,Haz!M61>0,Tomb!C73=2),Tomb!B75,IF(AND(Tomb!$B$80,Tomb!B81,Haz!$M$64>0,Haz!M61>0,Tomb!C73=3),Tomb!B76,0)))","v":"I Fedezet."},null,{"$f":"IF(AND(Tomb!$B$80,Tomb!B81,Haz!$M$64>0,Haz!M61>0,OR(Tomb!G74=1,Tomb!G74=2)),Tomb!F75,0)","v":"Alap"},{"$f":"IF(AND(Tomb!$B$80,Tomb!B81,Haz!$M$64>0,Haz!M61>0,OR(Tomb!G74=1,Tomb!G74=2)),INDEX(Tomb!I25:J27,VLOOKUP(IF(Tomb!K55=1,Tomb!C73,1),Tomb!H25:J27,1,0),HLOOKUP(1,Tomb!I24:J27,1,0))&\" mFt/kár/év\",0)","v":"15 mFt/kár/év"},null,null,{"$f":"IF(AND(Tomb!$B$80,Tomb!B81,Haz!$M$64>0,Haz!M61>0,Tomb!G74=2),\"+ \"&Tomb!F76,0)","v":"+ Bővített"},null,{"$f":"IF(AND(Tomb!$B$80,Tomb!B81,Haz!$M$64>0,Haz!M61>0,Tomb!G74=2),INDEX(Tomb!I25:J27,VLOOKUP(IF(Tomb!K55=1,Tomb!C73,1),Tomb!H25:J27,1,0),HLOOKUP(Tomb!G74,Tomb!I24:J27,1,0))&\" mFt/kár\",0)","v":"7,5 mFt/kár"}]
[" Be nem fejezett épület ",null,null,null,null,null,null,null,null,null,null,{"$f":"IF(AND(Haz!N35>0,Tomb!K55=2),\"X\",0)","v":0},"+",{"$f":"IF(Haz!N35>0,Haz!N35,\"\")","v":""},null," Munkáltatói:",null,null,{"$f":"IF(AND(Tomb!$B$80,Tomb!B82,Haz!$M$64>0,Haz!M62>0,Haz!J62>0),Haz!J62&\" fő\",0)","v":0},null,{"$f":"IF(AND(Tomb!$B$80,Tomb!B82,Haz!$M$64>0,Haz!M62>0,Haz!G62>0),\" * \"&FIXED(Tomb!J28,0)&\" Ft =\",0)","v":0},null,null,"+",{"$f":"IF(AND(Tomb!$B$80,Tomb!B82,Haz!$M$64>0,Haz!M62>0),Haz!M62,0)","v":0}]
[" „C”, vagy annál magasabb tűzveszélyességű tevékenység",null,null,null,null,null,null,null,null,null,null,{"$f":"IF(AND(Haz!N36>0,Tomb!W55=1),\"X\",0)","v":0},"+",{"$f":"IF(Haz!N36>0,Haz!N36,\"\")","v":""},null," Közös képviselői felelősségbiztosítás:",null,null,null,null,null,null,null,"+",{"$f":"IF(AND(Tomb!$B$80,Tomb!B83,Haz!$M$64>0,Haz!M63>0),Haz!M63,0)","v":0}]
[null,null,null,null,null,null,null,null,null,null,null,null,null,null,null,null,{"$f":"\"A díjfizetés módja; \"&IF(Haz!$Z$40=1,\" Inkasszó.\",IF(Haz!$Z$40=2,\" Csekk.\",IF(Haz!$Z$40=3,\" Átutalás.\",\"\")))","v":"A díjfizetés módja; "}]
["engedmények","Felújítás 5 éven belül",null,null,null,null,null,null,null,{"$f":"IF(AND(Haz!N38>0,Tomb!I81>=1),\"X\",0)","v":0},{"$f":"IF(AND(Haz!N38>0,Tomb!I81>=2),\"X\",0)","v":0},{"$f":"IF(AND(Haz!N38>0,Tomb!I81>=3),\"X\",0)","v":0},"-",{"$f":"IF(Haz!N38>0,Haz!N38,\"\")","v":""},null,"Éves felelősségbiztosítási díj összesen",null,null,null,null,null,null,"=",{"$f":"IF(AND(Tomb!$B$80,Haz!$M$64>0),Haz!M64,0)","v":103320}]
[null,"Lakóépület, üzletház, iroda épület",null,null,null,null,null,null,null,null,null,{"$f":"IF(AND(Haz!N39>0,OR(Tomb!G55=1,Tomb!G55=3,Tomb!G55=4)),\"X\",0)","v":"X"},"-",{"$f":"IF(Haz!N39>0,Haz!N39,\"\")","v":0.05}]
[null,"Van állandó/bentlakó személyzet",null,null,null,null,null,null,null,null,null,{"$f":"IF(AND(Haz!N40>0,Tomb!O72),\"X\",0)","v":0},"-",{"$f":"IF(Haz!N40>0,Haz!N40,\"\")","v":""},null,"Lakó / üdülö épületbiztosítás",null,null,null,null,null,null,"+",{"$f":"IF(Haz!X42>0,L64,0)","v":18924}]
[null,"Nem paneles technológiával készült épület",null,null,null,null,null,null,null,null,null,{"$f":"IF(AND(Haz!N41>0,Tomb!O73),\"X\",0)","v":"X"},"-",{"$f":"IF(Haz!N41>0,Haz!N41,\"\")","v":0.02},null,"Kiegészítő üvegbiztosítás",null,null,null,null,null,null,"+",{"$f":"IF(Haz!X43>0,Haz!X43,0)","v":0}]
[null,"Önrész:",null,{"$f":"IF(AND(Haz!N42>0,Tomb!O66),\"X\",0)","v":0},"25 eFt",null,{"$f":"IF(AND(Haz!N42>0,Tomb!P66),\"X\",0)","v":0},"50 eFt",null,{"$f":"IF(AND(Haz!N42>0,Tomb!Q67),\"X\",0)","v":0},"100 eFt",null,"-",{"$f":"IF(Haz!N42>0,Haz!N42,\"\")","v":""},null,"Felelősségbiztosítás",null,null,null,null,null,null,"+"]
[null,"Árvíz kizárása (SIGinfóban meghatározottak szerint)",null,null,null,null,null,null,null,null,null,{"$f":"IF(AND(Haz!N43>0,Tomb!O74,Tomb!AF1=1),\"X\",0)","v":0},"-",{"$f":"IF(Haz!N43>0,Haz!N43,\"\")","v":""},null,"Assistance biztosítás",null,null,null,null,null,null,"+",{"$f":"IF(Haz!X45>0,L78,0)","v":35600}]
[null,"Beázás (STÉBI 2011,1.6;1.7),(STÉBI 2011, 1.21-23, 1.26), károk kizárása",null,null,null,null,null,null,null,null,null,{"$f":"IF(AND(Haz!N44>0,Tomb!O75),\"X\",0)","v":0},"-",{"$f":"IF(Haz!N44>0,Haz!N44,\"\")","v":""},null,"Gépjárművek biztosítása",null,null,null,null,null,null,"+"]
[null,"Betöréses lopás károk kizárása (STÉBI 2011, 1.24-25)",null,null,null,null,null,null,null,null,null,{"$f":"IF(AND(Haz!N45>0,Tomb!O76),\"X\",0)","v":0},"-",{"$f":"IF(Haz!N45>0,Haz!N45,\"\")","v":""},null,"Felvonók géptörés biztosítása",null,null,null,null,null,null,"+"]
[]
["   Épületbiztosítás díjtétele:",null,null,null,null,null,null,null,null,null,null,"=",{"$f":"IF(Haz!N47>0,Haz!N47&\"  ‰\",\"\")","v":"0,83  ‰"},null,null,null,"DÍJ ÖSSZESEN;",null,null,null,null,null,"=",{"$f":"SUM(X56:Z61)","v":54524}]
["Éves épületbizt. díj:",null,null,null,{"$f":"IF(Z46>0,FIXED(SUM(W39:Y44),0)&\" eFt\",0)","v":"22 800 eFt"},null,null,"*",{"$f":"IF(Haz!J48>0,'Resz (2)'!M63,\"\")","v":"0,83  ‰"},null,"=",{"$f":"IF(AND(Z46>0,M63>0),ROUND(SUM(W39:Y44)*Haz!N47,0),0)","v":18924},null,null,null,"Engedmények","Mennyiségi",null,null,{"$f":"IF(AND(Haz!X50>0,Haz!U50>0),Haz!U50,0)","v":0.14000000000000001},null,{"$f":"N(Tomb!D94)","v":0},"-",{"$f":"IF(AND($X63>0,T64>0),ROUND($X$63*T64,0),0)","v":7633}]
[]
[{"$f":"IF(AND(Tomb!$F$78,Haz!$M$57>0),\"X\",0)","v":0},"KIEGÉSZÍTŐ ÜVEGBIZTOSÍTÁS",null,null,null,null,null,null,null,null,null,null,null,null,null,null,"Kockázati",null,null,{"$f":"IF(AND(Haz!X52>0,Haz!U52>0),Haz!U52,0)","v":0},null,{"$f":"N(Tomb!D95)","v":1},"-",{"$f":"IF(AND($X63>0,T66>0),ROUND($X$63*T66,0),0)","v":0}]
["Egyéb biztosított üvegek megnev.",null,null,null,null,null,"Bizt felület",null,"Bö.;  Ft",null,"Díjtétel %",null,"Díj   Ft",null,null,null,"Inkasszó",null,null,{"$f":"IF(AND(Haz!X53>0,Haz!U53>0),Haz!U53,0)","v":0},null,{"$f":"N(Tomb!D96)","v":0},"-",{"$f":"IF(AND($X63>0,T67>0),ROUND($X$63*T67,0),0)","v":0}]
[{"$f":"IF(AND(Tomb!$F$78,Haz!$M$57>0,Haz!M52>0),Haz!C52,0)","v":0},null,null,null,null,null,{"$f":"IF(AND(Tomb!$F$78,Haz!$M$57>0,Haz!M52>0,Haz!H52>0),Haz!H52&\" m2\",0)","v":0},null,{"$f":"IF(AND(Tomb!$F$78,Haz!$M$57>0,Haz!M52>0,Haz!J52>0),Haz!J52,0)","v":0},null,{"$f":"IF(AND(Tomb!$F$78,Haz!$M$57>0,Haz!M52>0,Haz!L52>0),Haz!L52,0)","v":0},null,{"$f":"IF(AND(Tomb!$F$78,Haz!$M$57>0,Haz!M52>0),Haz!M52,0)","v":0},null,null,null,"Képviselői",null,null,{"$f":"IF(AND(Haz!X54>0,Haz!U54>0),Haz!U54,0)","v":0},null,{"$f":"N(Tomb!D96)","v":0},"-",{"$f":"IF(AND($X63>0,T68>0),ROUND($X$63*T68,0),0)","v":0}]
[{"$f":"IF(AND(Tomb!$F$78,Haz!$M$57>0,Haz!M53>0),Haz!C53,0)","v":0},null,null,null,null,null,{"$f":"IF(AND(Tomb!$F$78,Haz!$M$57>0,Haz!M53>0,Haz!H53>0),Haz!H53&\" m2\",0)","v":0},null,{"$f":"IF(AND(Tomb!$F$78,Haz!$M$57>0,Haz!M53>0,Haz!J53>0),Haz!J53,0)","v":0},null,{"$f":"IF(AND(Tomb!$F$78,Haz!$M$57>0,Haz!M53>0,Haz!L53>0),Haz!L53,0)","v":0},null,{"$f":"IF(AND(Tomb!$F$78,Haz!$M$57>0,Haz!M53>0),Haz!M53,0)","v":0},null,null,null,{"$f":"IF(T69>0,\"VIG\",\"\")","v":""},null,null,{"$f":"IF(AND(Haz!X56>0,Haz!U56>0),Haz!U56,0)","v":0},null,{"$f":"N(Tomb!D70)","v":0},{"$f":"IF(T69>0,\"-\",\"\")","v":""},{"$f":"IF(AND($X63>0,T69>0),ROUND($X$63*T69,0),0)","v":0}]
[{"$f":"IF(AND(Tomb!$F$78,Haz!$M$57>0,Haz!M54>0),Haz!C54,0)","v":0},null,null,null,null,null,{"$f":"IF(AND(Tomb!$F$78,Haz!$M$57>0,Haz!M54>0,Haz!H54>0),Haz!H54&\" m2\",0)","v":0},null,{"$f":"IF(AND(Tomb!$F$78,Haz!$M$57>0,Haz!M54>0,Haz!J54>0),Haz!J54,0)","v":0},null,{"$f":"IF(AND(Tomb!$F$78,Haz!$M$57>0,Haz!M54>0,Haz!L54>0),Haz!L54,0)","v":0},null,{"$f":"IF(AND(Tomb!$F$78,Haz!$M$57>0,Haz!M54>0),Haz!M54,0)","v":0},null,null,null,"ÉVES DÍJ;",null,null,null,null,null,"=",{"$f":"IF(X63>0,X63-SUM(X64:Z69),0)","v":46891}]
[{"$f":"IF(AND(Tomb!$F$78,Haz!$M$57>0,Haz!M56>0),Haz!C56,0)","v":0},null,null,null,null,null,null,null,{"$f":"IF(AND(Tomb!$F$78,Haz!$M$57>0,Haz!M56>0,Haz!I56>0),Haz!I56,0)","v":0},null,{"$f":"IF(AND(Tomb!$F$78,Haz!$M$57>0,Haz!M56>0,Haz!L56>0),Haz!L56,0)","v":0},null,{"$f":"IF(AND(Tomb!$F$78,Haz!$M$57>0,Haz!M56>0),Haz!M56,0)","v":0},null,null,"Részletfizetési pótdíj",null,null,null,{"$f":"IF(AND(Haz!X58>0,Haz!U58>0),Haz!U58,0)","v":0},null,null,"+"]
[null,null,null,null,null,null,"Biztosítási összeg Ft:",{"$f":"IF(AND(Tomb!$F$78,Haz!$M$57>0,Haz!I57>0),Haz!I57,0)","v":0},null,null,"Éves díj:",{"$f":"IF(AND(Tomb!$F$78,Haz!$M$57>0),Haz!M57,0)","v":0},null,null,null,"Fizetendő éves díj;",null,null,null,null,null,null,"="]
[]
[null,"FELVONÓK GÉPTÖRÉS BIZTOSÍTÁSA",null,null,null,null,null,null,null,null,null,null,null,null,null,"1 /",{"$f":"IF(Haz!X60>0,Haz!R60,0)","v":1},"-éves díjrészlet",null,null,null,{"$f":"IF(Tomb!R64=Tomb!Q64,\"\",\"!!!\")","v":""},"="]
[null,null,null,null,null,null,null,null,null,null,null,null,null,null,null,null,{"$f":"\"A díjfizetés módja; \"&IF(Da!$Z$180=1,\" Inkasszó.\",IF(Da!$Z$180=2,\" Csekk.\",IF(Da!$Z$180=3,\" Átutalás.\",\"\")))","v":"A díjfizetés módja;  Átutalás."}]
[]
[null,"GÉPJÁRMŰVEK BIZTOSÍTÁSA",null,null,null,null,null,null,null,{"$f":"IF(AND(Tomb!D83,Haz!$X$38>0),\"X\",0)","v":"X"},"ASSISTANCE BIZT."]
[null,null,null,null,null,null,null,null,null,null,null,{"$f":"IF(AND(SUM(W39:Y44)>0,L64>0,X18>0,J77=\"X\"),ROUND(X18*Tomb!J39,0),0)","v":35600},null,null,null,"Kelt;",{"$f":"Resz!Q78","v":0}]
[]
["SZERZŐDŐ",null,null,{"$f":"IF(Haz!C5>\"\",Haz!C5,0)","v":"1075  Budapest  Rumbach Sebestyén u. 12.   (Társasház)"},null,null,null,null,null,null,null,null,null,{"$f":"Tomb!Q1","v":0},"Ajánlat száma:",null,null,null,null,null,null,{"$f":"IF(AND(Haz!Q6=0),\"Új szerződés:\",IF(AND(Haz!Q6=1,Haz!R6>\"\"),\"Átdolgozás:\",0))","v":"Új szerződés:"},{"$f":"IF(AND(Haz!Q6=0,Haz!Q2>\"\"),502&Haz!Q2,IF(AND(Haz!Q6=1,Haz!R6>\"\"),Haz!R6,0))","v":0}]
[]
["SZERZŐDŐ KÉPVISELÉTÉBEN ELJÁRÓ SZEMÉLY",null,null,null,null,null,null,null,null,null,null,null,null,null,null,null,"Képviselőj:",null,null,null,null,"Kódja:",{"$f":"IF(Tomb!R42>0,VLOOKUP(Tomb!R42,Ker!A2:K150,10,0))","v":0}]
["Név:",null,null,null,null,null,"Vállalkozás:",null,null,null,null,"E-mail címe:",null,null,null,null,{"$f":"IF(Haz!S5>\"\",Haz!S5,0)","v":0}]
[{"$f":"IF(Haz!C6>\"\",Haz!C6,0)","v":"kk"},null,null,null,null,null,{"$f":"IF(Haz!H6>\"\",Haz!H6,0)","v":0},null,null,null,null,{"$f":"IF(Haz!L6>\"\",Haz!L6,0)","v":0}]
["Irányítószám:",null,"Helység:",null,null,null,null,"Út, utca, tér:"]
[null,null,null,null,null,null,null,null,null,null,null,null,null,null,null,null,"Biztosítás igényelt kezdete:",null,null,null,null,null,{"$f":"IF(Haz!W6>0,Haz!W6,0)","v":"2014-12-01"}]
[{"$f":"IF(AND(Haz!$O$7=1,OR(Haz!C6>\"\",Haz!H6>\"\"),Haz!C7>0),Haz!C7,IF(AND(Haz!$O$7=0,OR(Haz!C6>\"\",Haz!H6>\"\"),Haz!C7>=0),Haz!C4,0))","v":1075},null,{"$f":"IF(AND(Haz!$O$7=1,OR(Haz!C6>\"\",Haz!H6>\"\"),Haz!E7>0),Haz!E7,IF(AND(Haz!$O$7=0,OR(Haz!C6>\"\",Haz!H6>\"\"),Haz!E7>=0),Haz!E4,0))","v":"Budapest"},null,null,null,null,{"$f":"IF(AND(Haz!$O$7=1,OR(Haz!C6>\"\",Haz!H6>\"\"),Haz!J7>0),Haz!J7,IF(AND(Haz!$O$7=0,OR(Haz!C6>\"\",Haz!H6>\"\"),Haz!J7>=0),Haz!J4,0))","v":"Rumbach Sebestyén u. 12."}]
[]
["KOCKÁZATVISELÉS HELYE",null,null,null,null,null,null,null,null,null,null,null,null,null,"HITELFEDEZETI KEDVEZMÉNYEZETT"]
["Irányítószám:",null,"Helység:",null,null,null,null,"Út, utca, tér:",null,null,null,null,null,null,"Kedvezményezett hitelnyújtó neve, címe :",null,null,null,null,null,"Hitelszerződés összege:",null,null,"Hitelszerződés száma:"]
[{"$f":"IF(Haz!C4>0,Haz!C4,0)","v":1075},null,{"$f":"IF(Haz!E4>0,Haz!E4,0)","v":"Budapest"},null,null,null,null,{"$f":"IF(Haz!J4>0,Haz!J4,0)","v":"Rumbach Sebestyén u. 12."},null,null,null,null,null,null,{"$f":"IF(Resz!O12>\"\",Resz!O12,\"\")","v":""},null,null,null,null,null,{"$f":"IF(Resz!U12>\"\",Resz!U12,\"\")","v":""},null,null,{"$f":"IF(Resz!X12>\"\",Resz!X12,\"\")","v":""}]
[]
[" ÁLTALÁNOS ADATOK : ",null,null,null,null,null,null,null,null,null,null,null,null,null,null,null,null,null,null,null,null,null,null,"Részletező;",{"$f":"IF(Y14>0,Y14+1,0)","v":13}]
["TULAJDONFORMA:",null,null,null,null,null,{"$f":"IF(Tomb!C55=1,\"X\",0)","v":"X"},"Társasházi tulajdon ",null,null,null,{"$f":"IF(Tomb!C55=2,\"X\",0)","v":0},"Szövetkezeti tulajdon       ",null,null,null,"ÁFA-körbe tartozik:",null,null,null,{"$f":"IF(Tomb!C59=1,\"X\",0)","v":0},"igen",null,{"$f":"IF(Tomb!C59=2,\"X\",0)","v":"X"},"nem"]
["RENDELTETÉS:",null,null,null,null,null,{"$f":"IF(Tomb!G55=1,\"X\",0)","v":"X"},"Lakóépület         ",null,null,null,{"$f":"IF(Tomb!G55=2,\"X\",0)","v":0},"Nyaralóépület         ",null,null,null,{"$f":"IF(Tomb!G55=3,\"X\",0)","v":0},"Üzletház              ",null,null,null,{"$f":"IF(Tomb!G55=4,\"X\",0)","v":0},"Irodaház                "]
["AZ ÉPÜLET JELLEMZŐI: ",null,null,null,null,null,null,null,"Befejezett épület:",null,null,null,{"$f":"IF(Tomb!K55=1,\"X\",0)","v":"X"},"igen",{"$f":"IF(Tomb!K55=2,\"X\",0)","v":0},"nem",null,"  Műemlék(jellegű) épület:",null,null,null,null,{"$f":"IF(Tomb!K59=1,\"X\",0)","v":0},"igen",{"$f":"IF(Tomb!K59=2,\"X\",0)","v":"X"},"nem"]
["Épület kora:",null,null,{"$f":"IF(Haz!L11>0,Haz!L11,0)","v":71},{"$f":"IF(D97>0,\"év\",0)","v":"év"},null,null,null,"Szintek száma:",null,null,{"$f":"IF(Haz!L13>0,Haz!L13,0)","v":8},{"$f":"IF(L97>0,\"szintes\",0)","v":"szintes"},null,null,null,null,"Albetétek / külön tulajdonok száma:",null,null,null,null,null,{"$f":"IF(Haz!L14>0,Haz!L14,0)","v":37},null,{"$f":"IF(X97>0,\"db\",0)","v":"db"}]
["FALAZAT:",null,null,null,null,{"$f":"IF(Tomb!O54=1,\"X\",0)","v":"X"},"tégla",null,{"$f":"IF(Tomb!O54=2,\"X\",0)","v":0},"panel",null,null,{"$f":"IF(Tomb!O54=3,\"X\",0)","v":0},"monolit vb.",null,null,null,{"$f":"IF(Tomb!O54=4,\"X\",0)","v":0},"bauxitbeton",null,null,{"$f":"IF(Tomb!O54=5,\"X\",0)","v":0},"egyéb:",{"$f":"IF(Haz!S11=1,Haz!P12,0)","v":0}]
["FÖDÉM:",null,null,null,null,{"$f":"IF(Tomb!S55=3,\"X\",0)","v":0},"közbenső fafödém",null,null,null,{"$f":"IF(Tomb!S55=4,\"X\",0)","v":0},"záró fafödém belső nyitott csapadék-elvezetéssel ",null,null,null,null,null,null,null,null,null,{"$f":"IF(Tomb!S55=5,\"X\",0)","v":0},"bauxitbeton födém"]
["A biztosított épületben „C”, vagy annál magasabb tűzveszélyességű tevékenységet folytatnak:",null,null,null,null,null,null,null,null,null,null,null,null,null,null,null,{"$f":"IF(Tomb!W55=1,\"X\",0)","v":0},"igen",{"$f":"IF(Haz!S14=1,Haz!P15,0)","v":0},null,null,null,null,{"$f":"IF(Tomb!W55=2,\"X\",0)","v":"X"},"nem"]
["AZ ÉPÜLET ÁLLAGA:",null,null,null,null,null,null,null,null,null,null,null,null,null,"5 éven belül  felújítva",null,"Karbantar- tásra szorul",null,null,null,null,"5 éven belül  felújítva",null,"Karbantar- tásra szorul"]
[null,null,null,null,null,null,null,null,null,null,null,null,null,null,"felújítva",null,null,null,null,null,null,"felújítva"]
["Az épületen beázások, csőtörések nyomai láthatóak:",null,null,null,null,null,null,null,{"$f":"IF(Tomb!K65,\"X\",0)","v":0},"igen",{"$f":"IF(Tomb!M64,\"X\",0)","v":"X"},"nem","Víz csőhálózat: ",null,null,{"$f":"IF(AND(Tomb!I73,Tomb!L73),\"X\",0)","v":0},null,{"$f":"IF(AND(Tomb!K73,Tomb!L73),\"X\",0)","v":0},null,"Homlokzatok",null,null,{"$f":"IF(AND(Tomb!I77,Tomb!L77),\"X\",0)","v":0},null,{"$f":"IF(AND(Tomb!K77,Tomb!L77),\"X\",0)","v":0}]
["Az épület teteje hullámos, cserepezés, bádogozás hiányos:",null,null,null,null,null,null,null,{"$f":"IF(Tomb!K66,\"X\",0)","v":0},"igen",{"$f":"IF(Tomb!M65,\"X\",0)","v":"X"},"nem","Fűtés csőhálózat",null,null,{"$f":"IF(AND(Tomb!I74,Tomb!L74),\"X\",0)","v":0},null,{"$f":"IF(AND(Tomb!K74,Tomb!L74),\"X\",0)","v":0},null,"Tető szerkezet",null,null,{"$f":"IF(AND(Tomb!I78,Tomb!L78),\"X\",0)","v":0},null,{"$f":"IF(AND(Tomb!K78,Tomb!L78),\"X\",0)","v":0}]
["Épületen ferde (kb. 45o-os) repedés(ek) van(nak):",null,null,null,null,null,null,null,{"$f":"IF(Tomb!K67,\"X\",0)","v":0},"igen",{"$f":"IF(Tomb!M66,\"X\",0)","v":"X"},"nem","Csatorna",null,null,{"$f":"IF(AND(Tomb!I75,Tomb!L75),\"X\",0)","v":0},null,{"$f":"IF(AND(Tomb!K75,Tomb!L75),\"X\",0)","v":0},null,"Tetőszigetelés",null,null,{"$f":"IF(AND(Tomb!I79,Tomb!L79),\"X\",0)","v":0},null,{"$f":"IF(AND(Tomb!K79,Tomb!L79),\"X\",0)","v":0}]
["Épületen dúcolás utólagos alátámasztás található:",null,null,null,null,null,null,null,{"$f":"IF(Tomb!K68,\"X\",0)","v":0},"igen",{"$f":"IF(Tomb!M67,\"X\",0)","v":"X"},"nem","Gázcső hálózat",null,null,{"$f":"IF(AND(Tomb!I76,Tomb!L76),\"X\",0)","v":0},null,{"$f":"IF(AND(Tomb!K76,Tomb!L76),\"X\",0)","v":0},null,"Tetőhéjazat",null,null,{"$f":"IF(AND(Tomb!I80,Tomb!L80),\"X\",0)","v":0},null,{"$f":"IF(AND(Tomb!K80,Tomb!L80),\"X\",0)","v":0}]
["KÁRELŐZMÉNYEK:",null,null,null,null,{"$f":"IF(U107=X107,\"Döntsd el, hogy volt vagy nem volt? >\",0)","v":0},null,null,null,null,null,null,"Korábbi kár(ok) az ajánlatot megelőző öt évben:",null,null,null,null,null,null,null,null,"volt",{"$f":"IF(AND(U107=\"X\",X107=\"X\"),\"?\",0)","v":0},"X","nem volt"]
[null,null,null,null,null,null,null,null,null,null,null,null," (függetlenül attól, hogy a káridőpontjában volt-e élő biztosítás)"]
["kár időpontja:",null,null,null,null,null,"jellege:",null,null,null,null,null,"kár időpontja:",null,null,null,null,null,"jellege:","Csőtörés"]
[null,"összege:",null,null,null,null,null,null,null,null,null,null,null,"összege:"]
["BIZTOSÍTÁSI ELŐZMÉNYEK:",null,null,null,null,null,"Ha volt biztosítás, akkor az előző biztosító neve:",null,null,null,null,null,null,null,null,null,"kötvényszáma:",null,null,null,null,"megszűnés oka:"]
[]
["LAKÓ / ÜDÜLŐ ÉPÜLETBIZTOSÍTÁS  BIZTOSÍTÁSI ÖSSZEG SZÁMÍTÁSA"]
["Megnevezés",null,null,null,null,null,null,null,null,"Kategória",null,null,"Külön tul. összesített m2-re",null,null,null,"Ft / m2",null,null,"Okiratbani jele",null,null,"Biztosítási összeg  [Ft]"]
["Lakó / üdülőépület",null,null,null,null,null,null,null,null,null,null,null,null,null,null,null,null,null,null,null,null,null,null,null,null,"                                   .000.-"]
["Mellékép. (magántulajdont is tartalmaz):............................",null,null,null,null,null,null,"Garázs",null,{"$f":"IF(AND(Tomb!$G$55=5,Haz!$B$17=1,Haz!G19>\"\"),Haz!G19,0)","v":0},null,null,{"$f":"IF(AND(Tomb!$G$55=5,Haz!$B$17=1,Haz!H19>0),FIXED(Haz!H19,0)&\" m2\",0)","v":0},null,null,null,{"$f":"IF(AND(Tomb!$G$55=5,Haz!$B$17=1,Haz!H19>0,Haz!O19>0),(Haz!O19/Haz!H19),0)","v":0},null,null,null,null,null,{"$f":"IF(AND(Tomb!$G$55=5,Haz!$B$17=1,Haz!O19>0),(Haz!O19/1000),0)","v":0},null,null,"                                   .000.-"]
[]
[" Épületnek a közös tulajdoni része..........………..",null,null,null,null,null,null,null,{"$f":"IF(AND(Haz!$B$17=1,Haz!K20>0),Haz!I20,0)","v":1},null,null,null,null,null,null,null,null,null,null,null,null,null,null,null,null,"                                  .000.-"]
[" Melléképület. (csak közös tulajdonú): ........................",null,null,null,null,null,null,null,null,null,null,null,null,null,null,null,null,null,null,null,null,null,null,null,null,"                                   .000.-"]
["Központi berendezés :",null,null,null,null,null,null,null,null,null,null,null,null,null,null,null,null,null,null,null,null,null,null,null,null,"                                   .000.-"]
["Kerítés fajtája (egy kerítést csak egy lapon lehet felvenni):",null,null,null,null,null,null,null,null,null,null,null,null,null,null,null,null,null,null,null,null,null,null,null,null,"                                  .000.-"]
["Egyéb :",null,null,null,null,null,null,null,null,null,null,null,null,null,null,null,null,null,null,null,null,null,null,null,null,"                                   .000.-"]
["Közös tulajdonú ingóságok:",null,null,null,null,null,null,null,null,null,null,null,null,null,null,null,null,null,null,null,null,null,null,null,null,"                                   .000.-"]
[]
[" ÖSSZESEN"]
[]
["ÉPÜLETBIZTOSÍTÁS DÍJTÉTELE",null,null,null,null,null,null,null,null,null,null,null,null,"Díjtétel ‰",null,{"$f":"IF(AND(Tomb!B80,Haz!M64>0),\"X\",0)","v":"X"},"FELELŐSSÉGBIZTOSÍTÁS"]
["   Alapfedezet:",null,null,null,null,null,null,null,null,null,null,null,"+",null,null," Ingatlantulajdonosi:",null,null,null,{"$f":"IF(AND(Tomb!$B$80,Tomb!B81,Haz!$M$64>0,Haz!M61>0,Haz!F61>0),FIXED(Haz!F61,0),0)","v":"688 800"},null,{"$f":"IF(AND(Tomb!$B$80,Tomb!B81,Haz!$M$64>0,Haz!J61>0,Haz!M61>0),\"* \"&Haz!J61&\"‰ =\",0)","v":"* 0,15‰ ="},null,"+",{"$f":"IF(AND(Tomb!$B$80,Tomb!B81,Haz!$M$64>0,Haz!M61>0),Haz!M61,0)","v":103320}]
["Többszörözhető limitel rend.",null,null,null,null,null,"kétszerez",null,{"$f":"IF(AND(Haz!N34>0,Tomb!P64=2),\"X\",0)","v":0},null,null,null,"+",{"$f":"IF(Haz!N34>0,Haz!N34,\"\")","v":""},null,{"$f":"IF(OR(Tomb!K55=2,AND(Tomb!$B$80,Tomb!B81,Haz!$M$64>0,Haz!M61>0,Tomb!C73=1)),Tomb!B74,IF(AND(Tomb!$B$80,Tomb!B81,Haz!$M$64>0,Haz!M61>0,Tomb!C73=2),Tomb!B75,IF(AND(Tomb!$B$80,Tomb!B81,Haz!$M$64>0,Haz!M61>0,Tomb!C73=3),Tomb!B76,0)))","v":"I Fedezet."},null,{"$f":"IF(AND(Tomb!$B$80,Tomb!B81,Haz!$M$64>0,Haz!M61>0,OR(Tomb!G74=1,Tomb!G74=2)),Tomb!F75,0)","v":"Alap"},{"$f":"IF(AND(Tomb!$B$80,Tomb!B81,Haz!$M$64>0,Haz!M61>0,OR(Tomb!G74=1,Tomb!G74=2)),INDEX(Tomb!I25:J27,VLOOKUP(IF(Tomb!K55=1,Tomb!C73,1),Tomb!H25:J27,1,0),HLOOKUP(1,Tomb!I24:J27,1,0))&\" mFt/kár/év\",0)","v":"15 mFt/kár/év"},null,null,{"$f":"IF(AND(Tomb!$B$80,Tomb!B81,Haz!$M$64>0,Haz!M61>0,Tomb!G74=2),\"+ \"&Tomb!F76,0)","v":"+ Bővített"},null,{"$f":"IF(AND(Tomb!$B$80,Tomb!B81,Haz!$M$64>0,Haz!M61>0,Tomb!G74=2),INDEX(Tomb!I25:J27,VLOOKUP(IF(Tomb!K55=1,Tomb!C73,1),Tomb!H25:J27,1,0),HLOOKUP(Tomb!G74,Tomb!I24:J27,1,0))&\" mFt/kár\",0)","v":"7,5 mFt/kár"}]
[" Be nem fejezett épület ",null,null,null,null,null,null,null,null,null,null,{"$f":"IF(AND(Haz!N35>0,Tomb!K55=2),\"X\",0)","v":0},"+",{"$f":"IF(Haz!N35>0,Haz!N35,\"\")","v":""},null," Munkáltatói:",null,null,{"$f":"IF(AND(Tomb!$B$80,Tomb!B82,Haz!$M$64>0,Haz!M62>0,Haz!J62>0),Haz!J62&\" fő\",0)","v":0},null,{"$f":"IF(AND(Tomb!$B$80,Tomb!B82,Haz!$M$64>0,Haz!M62>0,Haz!G62>0),\" * \"&FIXED(Tomb!J28,0)&\" Ft =\",0)","v":0},null,null,"+",{"$f":"IF(AND(Tomb!$B$80,Tomb!B82,Haz!$M$64>0,Haz!M62>0),Haz!M62,0)","v":0}]
[" „C”, vagy annál magasabb tűzveszélyességű tevékenység",null,null,null,null,null,null,null,null,null,null,{"$f":"IF(AND(Haz!N36>0,Tomb!W55=1),\"X\",0)","v":0},"+",{"$f":"IF(Haz!N36>0,Haz!N36,\"\")","v":""},null," Közös képviselői felelősségbiztosítás:",null,null,null,null,null,null,null,"+",{"$f":"IF(AND(Tomb!$B$80,Tomb!B83,Haz!$M$64>0,Haz!M63>0),Haz!M63,0)","v":0}]
[null,null,null,null,null,null,null,null,null,null,null,null,null,null,null,null,{"$f":"\"A díjfizetés módja; \"&IF(Haz!$Z$40=1,\" Inkasszó.\",IF(Haz!$Z$40=2,\" Csekk.\",IF(Haz!$Z$40=3,\" Átutalás.\",\"\")))","v":"A díjfizetés módja; "}]
["engedmények","Felújítás 5 éven belül",null,null,null,null,null,null,null,{"$f":"IF(AND(Haz!N38>0,Tomb!I81>=1),\"X\",0)","v":0},{"$f":"IF(AND(Haz!N38>0,Tomb!I81>=2),\"X\",0)","v":0},{"$f":"IF(AND(Haz!N38>0,Tomb!I81>=3),\"X\",0)","v":0},"-",{"$f":"IF(Haz!N38>0,Haz!N38,\"\")","v":""},null,"Éves felelősségbiztosítási díj összesen",null,null,null,null,null,null,"=",{"$f":"IF(AND(Tomb!$B$80,Haz!$M$64>0),Haz!M64,0)","v":103320}]
[null,"Lakóépület, üzletház, iroda épület",null,null,null,null,null,null,null,null,null,null,"-"]
[null,"Van állandó/bentlakó személyzet",null,null,null,null,null,null,null,null,null,{"$f":"IF(AND(Haz!N40>0,Tomb!O72),\"X\",0)","v":0},"-",{"$f":"IF(Haz!N40>0,Haz!N40,\"\")","v":""},null,"Lakó / üdülö épületbiztosítás",null,null,null,null,null,null,"+"]
[null,"Nem paneles technológiával készült épület",null,null,null,null,null,null,null,null,null,null,"-",null,null,"Kiegészítő üvegbiztosítás",null,null,null,null,null,null,"+",{"$f":"IF(Haz!X43>0,Haz!X43,0)","v":0}]
[null,"Önrész:",null,{"$f":"IF(AND(Haz!N42>0,Tomb!O66),\"X\",0)","v":0},"25 eFt",null,{"$f":"IF(AND(Haz!N42>0,Tomb!P66),\"X\",0)","v":0},"50 eFt",null,{"$f":"IF(AND(Haz!N42>0,Tomb!Q67),\"X\",0)","v":0},"100 eFt",null,"-",{"$f":"IF(Haz!N42>0,Haz!N42,\"\")","v":""},null,"Felelősségbiztosítás",null,null,null,null,null,null,"+",{"$f":"IF(Haz!X44>0,X133,0)","v":103320}]
[null,"Árvíz kizárása (SIGinfóban meghatározottak szerint)",null,null,null,null,null,null,null,null,null,{"$f":"IF(AND(Haz!N43>0,Tomb!O74,Tomb!AF1=1),\"X\",0)","v":0},"-",{"$f":"IF(Haz!N43>0,Haz!N43,\"\")","v":""},null,"Assistance biztosítás",null,null,null,null,null,null,"+"]
[null,"Beázás (STÉBI 2011,1.6;1.7),(STÉBI 2011, 1.21-23, 1.26), károk kizárása",null,null,null,null,null,null,null,null,null,{"$f":"IF(AND(Haz!N44>0,Tomb!O75),\"X\",0)","v":0},"-",{"$f":"IF(Haz!N44>0,Haz!N44,\"\")","v":""},null,"Gépjárművek biztosítása",null,null,null,null,null,null,"+",{"$f":"IF(Haz!X47>0,F157,0)","v":0}]
[null,"Betöréses lopás károk kizárása (STÉBI 2011, 1.24-25)",null,null,null,null,null,null,null,null,null,{"$f":"IF(AND(Haz!N45>0,Tomb!O76),\"X\",0)","v":0},"-",{"$f":"IF(Haz!N45>0,Haz!N45,\"\")","v":""},null,"Felvonók géptörés biztosítása",null,null,null,null,null,null,"+",{"$f":"IF(Haz!X48>0,L154,0)","v":12000}]
[]
["   Épületbiztosítás díjtétele:",null,null,null,null,null,null,null,null,null,null,"=",null,null,null,null,"DÍJ ÖSSZESEN;",null,null,null,null,null,"=",{"$f":"SUM(X135:Z140)","v":115320}]
["Éves épületbizt. díj:",null,null,null,null,null,null,"*",null,null,"=",null,null,null,null,"Engedmények","Mennyiségi",null,null,{"$f":"IF(AND(Haz!X50>0,Haz!U50>0),Haz!U50,0)","v":0.14000000000000001},null,{"$f":"N(Tomb!D94)","v":0},"-",{"$f":"IF(AND($X142>0,T143>0),ROUND($X$63*T143,0),0)","v":7633}]
[]
[{"$f":"IF(AND(Tomb!$F$78,Haz!$M$57>0),\"X\",0)","v":0},"KIEGÉSZÍTŐ ÜVEGBIZTOSÍTÁS",null,null,null,null,null,null,null,null,null,null,null,null,null,null,"Kockázati",null,null,{"$f":"IF(AND(Haz!X52>0,Haz!U52>0),Haz!U52,0)","v":0},null,{"$f":"N(Tomb!D95)","v":1},"-",{"$f":"IF(AND($X142>0,T145>0),ROUND($X$63*T145,0),0)","v":0}]
["Egyéb biztosított üvegek megnev.",null,null,null,null,null,"Bizt felület",null,"Bö.;  Ft",null,"Díjtétel %",null,"Díj   Ft",null,null,null,"Inkasszó",null,null,{"$f":"IF(AND(Haz!X53>0,Haz!U53>0),Haz!U53,0)","v":0},null,{"$f":"N(Tomb!D96)","v":0},"-",{"$f":"IF(AND($X142>0,T146>0),ROUND($X$63*T146,0),0)","v":0}]
[{"$f":"IF(AND(Tomb!$F$78,Haz!$M$57>0,Haz!M52>0),Haz!C52,0)","v":0},null,null,null,null,null,{"$f":"IF(AND(Tomb!$F$78,Haz!$M$57>0,Haz!M52>0,Haz!H52>0),Haz!H52&\" m2\",0)","v":0},null,{"$f":"IF(AND(Tomb!$F$78,Haz!$M$57>0,Haz!M52>0,Haz!J52>0),Haz!J52,0)","v":0},null,{"$f":"IF(AND(Tomb!$F$78,Haz!$M$57>0,Haz!M52>0,Haz!L52>0),Haz!L52,0)","v":0},null,{"$f":"IF(AND(Tomb!$F$78,Haz!$M$57>0,Haz!M52>0),Haz!M52,0)","v":0},null,null,null,"Képviselői",null,null,{"$f":"IF(AND(Haz!X54>0,Haz!U54>0),Haz!U54,0)","v":0},null,{"$f":"N(Tomb!D96)","v":0},"-",{"$f":"IF(AND($X142>0,T147>0),ROUND($X$63*T147,0),0)","v":0}]
[{"$f":"IF(AND(Tomb!$F$78,Haz!$M$57>0,Haz!M53>0),Haz!C53,0)","v":0},null,null,null,null,null,{"$f":"IF(AND(Tomb!$F$78,Haz!$M$57>0,Haz!M53>0,Haz!H53>0),Haz!H53&\" m2\",0)","v":0},null,{"$f":"IF(AND(Tomb!$F$78,Haz!$M$57>0,Haz!M53>0,Haz!J53>0),Haz!J53,0)","v":0},null,{"$f":"IF(AND(Tomb!$F$78,Haz!$M$57>0,Haz!M53>0,Haz!L53>0),Haz!L53,0)","v":0},null,{"$f":"IF(AND(Tomb!$F$78,Haz!$M$57>0,Haz!M53>0),Haz!M53,0)","v":0},null,null,null,{"$f":"IF(T148>0,\"VIG\",\"\")","v":""},null,null,{"$f":"IF(AND(Haz!X56>0,Haz!U56>0),Haz!U56,0)","v":0},null,{"$f":"N(Tomb!D70)","v":0},{"$f":"IF(T148>0,\"-\",\"\")","v":""},{"$f":"IF(AND($X142>0,T148>0),ROUND($X$63*T148,0),0)","v":0}]
[{"$f":"IF(AND(Tomb!$F$78,Haz!$M$57>0,Haz!M54>0),Haz!C54,0)","v":0},null,null,null,null,null,{"$f":"IF(AND(Tomb!$F$78,Haz!$M$57>0,Haz!M54>0,Haz!H54>0),Haz!H54&\" m2\",0)","v":0},null,{"$f":"IF(AND(Tomb!$F$78,Haz!$M$57>0,Haz!M54>0,Haz!J54>0),Haz!J54,0)","v":0},null,{"$f":"IF(AND(Tomb!$F$78,Haz!$M$57>0,Haz!M54>0,Haz!L54>0),Haz!L54,0)","v":0},null,{"$f":"IF(AND(Tomb!$F$78,Haz!$M$57>0,Haz!M54>0),Haz!M54,0)","v":0},null,null,null,"ÉVES DÍJ;",null,null,null,null,null,"=",{"$f":"IF(X142>0,X142-SUM(X143:Z148),0)","v":107687}]
[{"$f":"IF(AND(Tomb!$F$78,Haz!$M$57>0,Haz!M56>0),Haz!C56,0)","v":0},null,null,null,null,null,null,null,{"$f":"IF(AND(Tomb!$F$78,Haz!$M$57>0,Haz!M56>0,Haz!I56>0),Haz!I56,0)","v":0},null,{"$f":"IF(AND(Tomb!$F$78,Haz!$M$57>0,Haz!M56>0,Haz!L56>0),Haz!L56,0)","v":0},null,{"$f":"IF(AND(Tomb!$F$78,Haz!$M$57>0,Haz!M56>0),Haz!M56,0)","v":0},null,null,"Részletfizetési pótdíj",null,null,null,{"$f":"IF(AND(Haz!X58>0,Haz!U58>0),Haz!U58,0)","v":0},null,null,"+"]
[null,null,null,null,null,null,"Biztosítási összeg Ft:",{"$f":"IF(AND(Tomb!$F$78,Haz!$M$57>0,Haz!I57>0),Haz!I57,0)","v":0},null,null,"Éves díj:",{"$f":"IF(AND(Tomb!$F$78,Haz!$M$57>0),Haz!M57,0)","v":0},null,null,null,"Fizetendő éves díj;",null,null,null,null,null,null,"="]
[]
[{"$f":"IF(AND(Tomb!D79,Haz!X36>0),\"X\",0)","v":"X"},"FELVONÓK GÉPTÖRÉS BIZTOSÍTÁSA",null,null,null,null,null,null,null,null,null,null,null,null,null,"1 /",{"$f":"IF(Haz!X60>0,Haz!R60,0)","v":1},"-éves díjrészlet",null,null,null,{"$f":"IF(Tomb!R64=Tomb!Q64,\"\",\"!!!\")","v":""},"="]
[{"$f":"IF(AND(Tomb!D79,Haz!X36>0,Haz!U36>0),FIXED(VLOOKUP(Tomb!W65,Tomb!G34:J37,2,0),0)&\" eFt/kár \"&FIXED(VLOOKUP(Tomb!W65,Tomb!G34:J37,3,0),0)&\" eFt/év/felv.\",0)","v":"150 eFt/kár 500 eFt/év/felv."},null,null,null,null,{"$f":"IF(AND(Tomb!D79,Haz!X36>0,Haz!U36>0),FIXED(VLOOKUP(Tomb!W65,Tomb!G34:J37,4,0),0)&\" eFt\",0)","v":"6 000 eFt"},null,null,{"$f":"IF(AND(Tomb!D79,Haz!X36>0,Haz!U36>0),\"* \"&Haz!U36&\" db felvonó =\",0)","v":"* 2 db felvonó ="},null,null,{"$f":"IF(AND(Tomb!D79,Haz!X36>0),Haz!X36,0)","v":12000},null,null,null,null,{"$f":"\"A díjfizetés módja; \"&IF(Da!$Z$180=1,\" Inkasszó.\",IF(Da!$Z$180=2,\" Csekk.\",IF(Da!$Z$180=3,\" Átutalás.\",\"\")))","v":"A díjfizetés módja;  Átutalás."}]
[]
[{"$f":"IF(AND(Tomb!D78,Haz!$X$33>0),\"X\",0)","v":0},"GÉPJÁRMŰVEK BIZTOSÍTÁSA",null,null,null,null,null,null,null,{"$f":"IF(AND(Tomb!D83,Haz!$X$38>0),\"X\",0)","v":"X"},"ASSISTANCE BIZT."]
[{"$f":"IF(AND(Tomb!D78,Haz!$X$33>0,Haz!U33>0),Haz!$U$33&\" db\",0)","v":0},null,{"$f":"IF(AND(Tomb!D78,Haz!$X$33>0),\" * \"&FIXED(Tomb!J31,0)&\" Ft =\",0)","v":0},null,null,{"$f":"IF(AND(Tomb!D78,Haz!$X$33>0),Haz!$X$33,0)","v":0},null,null,null,null,null,{"$f":"IF(AND(Tomb!D83,Haz!$X$38>0),Haz!$X$38,0)","v":65860},null,null,null,"Kelt;"]